Workbook

Sheet Màj
A4: Ce calculateur a été conçu pour fonctionner sous Excel 2007. Avec Open Office, certaines protections, commentaires et alarmes n'apparaissent pas, des tableaux
A5: sont décalés et il est très facile de supprimer ou modifier une formule d'un simple clic sans s'en apercevoir !
A6: Donc méfiance, je recommande vivement l'acquisition d'Excel 2007 .
C8: Mise à jour du 14 septembre 2012
B10: Ajout de la page 19 : | D10: Trajet scooter retour à la palme
B14: Tous les calculs de ce calculateur sont basés sur les gaz parfaits.
B15: Je travaille actuellement sur les modifications à faire pour les gaz réels, mais les calculs étant complexes (température, nature des gaz, mélanges des gaz, pourcentages etc...!) ce sera pour une prochaine mise à jour.
B16: Les logiciels actuellement sur le marché donnent des résultats très différents et il n'est pas évident de comparer…
B17: Obtenir un résultat n'est pas difficile, mais de là à ce qu'il soit juste, c'est une autre histoire !

Sheet Menu
B4: (fm 12 .4) Excel 2007
C5: AVERTISSEMENT
B6: Tableur Excel uniquement pédagogique, pour plongées réelles consulter des logiciels reconnus
B7: Ce tableur ne dispense en aucun cas d'une formation aux recycleurs, aux mélanges ainsi qu'à leur fabrication
B8: A chaque mise à jour : détruire l'ancienne version
B9: Si vous détectez un"bug", prévenez moi sur le forum du site plongéesout ou par mail
B10: Cliquer sur Affichage, Zoom, 100 ou 80% (pour centrer les pages si besoin)
B11: Cliquer sur Affichage, Plein écran (pour plus de clarté) | D11: CALCULS | E11: RECYCLEUR
C12: TRIMIX / NITROX
B16: Jean-Pierre COULOUMY
A28: Pour des commodités de lecture, certains chiffres sont arrondis au chiffre > ou < , c'est pourquoi il peut y avoir une légère différence d'un tableau à l' autre !
B29: Pour que les pages ne sautent pas lorsqu'on fait "entrée", ne pas faire "entrée" sur le clavier mais, cliquer sur la page !

Sheet 0
A5: JP Couloumy
C6: Quel mélange choisir
D11: PARAMETRES DE LA PLONGEE
D15: Profondeur | F15: PP 02 maxi | H15: PP N2 maxi
D17: 150 | E17: m | F17: 1.30 | G17: b | H17: 3.15 | I17: b
E20: MELANGE A REALISER
C24: =IF(F17/(D17/10+1)>1,1,F17/(D17/10+1)) -> 0.08125 | D24: O2 | E24: =ROUNDDOWN(C24,2) -> 8%
C25: =1-C24-C26 -> 0.72188 | G25: Pne = | H25: =(H17/0.79-1)*10 -> 30 | I25: m
C26: =IF(H17/(D17/10+1)+C24>1,1-C24,H17/(D17/10+1)) -> 0.19688 | D26: Hé | E26: =ROUNDUP(C25,2) -> 73%
D27: N2 | E27: =1-E26-E24 -> 19%
C29: =SUM(C24:C26) -> 1.00000 | E29: =SUM(E24:E27) -> 100%
E31: =IF(E26>0,"Trimix "&TEXT(E24*100,0)&" / "&TEXT(E26*100,0),"Nitrox "&TEXT(E24*100,0)) -> Trimix 8 / 73

Sheet 1
B1: Attention :
B2: L'alarme narcose est réglée pour une PNe de 60m : pour plus de sécurité et pour limiter l'essouflement et la déco, s'en tenir à 30, 35m.
B3: Alarme Hypoxie < 0,19 Alarme Hyperoxie (de 0 à 43 m) >1,6 et (de 44 à 300 m) >1,43 Alarme Narcose >5,53
B4: Les phénomènes de compressibilité des gaz ne sont pas pris en charge dans ce tableur, en tenir compte pour les pressions élevées !
A10: JP Couloumy
D11: HELIUM | F11: OXYGENE | I11: NITROX | L11: AIR
C12: =IF(K18<0,"impossible à réaliser par PP",IF(K19<0,"impossible à réaliser par PP",IF(K20<0,"impossible à réaliser par PP",""))) -> 
J13: Fabrication Héliair
D14: Mélange désiré | J14: Hé | K14: =(F16/100)*H17 -> 0 | L14: B
D15: =IF(D16="Air","",IF(E16<21,IF(E16>17.9,"Héliair < 15% ?",""))) ->  | H15: Pression
D16: =IF(F16=0,"Air","Héliair") -> Air | E16: =N31 -> 21.0 | F16: 0 | H16: désirée | J16: Air | K16: =(H17-K14) -> 200 | L16: B | R16: restante | S16: désirée | T16: rajout
H17: 200 | J17: Fabrication trimix ( PP ) | M17: =K14+K16 -> 200 | Q17: Pression | R17: 0 | S17: =H17 -> 200 | T17: =S17-R17 -> 200.00
D18: =IF(E18+F18=100,"Héliox",IF(F18=0,"Nitrox",IF(F18>0,"Trimix"))) -> Trimix | E18: 10.5 | F18: 50 | H18: Bars | J18: O2 | K18: =F22 -> 0.0 | L18: B | Q18: % o2 | R18: 0% | S18: =E18/100 -> 11%
H19: =IF(K18<0,"?","") ->  | J19: Hé | K19: =G20 -> 100.0 | L19: B | Q19: % Hé | R19: 0% | S19: =(F18/100) -> 50%
C20: Hé = | D20: =F18 -> 50.0 | E20: =IF(E18+F18>100,"> à 100 % !","") ->  | G20: =F18/100*(H17) -> 100.0 | J20: Air | K20: =F23 -> 100.0 | L20: B | Q20: % N2 | R20: =IF(R18=0,0,IF(R19=0,1-R18,1-R18-R19)) -> 0% | S20: =IF(S18=0,0,IF(S19=0,1-S18,IF(S19>0,1-S18-S19))) -> 40%
C21: N2= | D21: =(100-F18)-E18 -> 39.5 | E21: % | F21: =D21/100*(H17) -> 79.0 | G21: bars | I21: Fabrication trimix (stick, tamp) | Q21: PP o2 | R21: =R17*R18 -> 0.00 | S21: =S17*S18 -> 21.00 | T21: =S21-R21 -> 21.00
C22: O2= | D22: =100-(D20+D21) -> 10.5 | E22: % | F22: =H25/100*(H17) -> 0.0 | G22: bars | Q22: PP Hé | R22: =R17*R19 -> 0.00 | S22: =S17*S19 -> 100.00 | T22: =S22-R22 -> 100.00
C23: Air= | D23: =100/79*D21 -> 50.0 | E23: % | F23: =D23/100*(H17) -> 100.0 | G23: bars | I23: Hé | K23: =(F18/100)*H17 -> 100.0 | L23: B | Q23: PP N2 | R23: =R17*R20 -> 0.00 | S23: =S17*S20 -> 79.00 | T23: =S23-R23 -> 79.00
C24: O2 air | D24: =21/79*D21 -> 10.5 | E24: % | F24: stick nitrox
D25: =D20+D21+D22 -> 100.0 | E25: % | F25: =G20+F22+F23 -> 200 | G25: bars | H25: =D22-D24 -> 0.0 | I25: N | J25: 30 | K25: =R27 -> 0.0 | L25: B | Q25: O2 | R25: =J25/100 -> 30% | T25: O2 | U25: 21%
I26: Air | K26: =U31 -> 100.0 | L26: B | Q26: N2 | R26: =1-R25 -> 70% | S26: tampon | T26: N2 | U26: =1-U25 -> 79% | V26: compresseur
C27: =IF(K23<0,"impossible à réaliser avec ce nitrox",IF(K25<0,"impossible à réaliser avec ce nitrox",IF(K26<0,"impossible à réaliser avec ce nitrox",""))) ->  | Q27: ="Nitrox "&TEXT(R25*100,0) -> Nitrox 30 | R27: =(U26*T21-U25*T23)/(R25*U26-R26*U25) -> 0.00 | S27: bars | T27: O2 | U27: =R27*R25+U31*U25+R17*R18 -> 21.00 | V27: bars | W27: =U27/X32 -> 100%
E29: PRIX remplissage | H29: Prix pratiqués à la station de gonflage
E30: Hé | F30: 0.0255 € | G30: le litre | H30: L'AIR DES VASQUES DU QUERCY | P30: =K18+K19+K20 -> 200 | T30: Hélium | U30: =T22 -> 100.00 | V30: bars | W30: He | X30: =U30+R17*R19 -> 100.00 | Y30: bars | Z30: =X30/X32 -> 476%
E31: O2 | F31: 0.0210 € | G31: le litre | H31: à Gramat dans le LOT | M31: = Hr | N31: =(K16)*(21/100)/(H17)*100 -> 21.0 | P31: =K14/H17*100 -> 0 | T31: compresseur | U31: =(R25*T23-R26*T21)/(R25*U26-R26*U25) -> 100.00 | V31: bars | W31: N2 | X31: =R27*R26+U31*U26+R17*R20 -> 79.00 | Y31: bars | Z31: =X31/X32 -> 376%
E32: AIR | F32: 0.0020 € | G32: le litre | H32: Chez André GRIMAL | N32: =IF(K20<0,"Héliox impossible !","") ->  | W32: Total | X32: =SUM(U27:U29) -> 21.00 | Y32: bars | Z32: =SUM(W27:W29) -> 100%
B33: Quantité de bouteilles | M33: N2 = | N33: =100-(N31+P31) -> 79.0 | Y33: =IF(W27=1,"Oxygene",IF(Z30>0,"Trimix "&TEXT(W27*100,0)&"/"&TEXT(Z30*100,0),"Nitrox "&TEXT(W27*100,0))) -> Oxygene
B34: 1 | C34: =IF(B34=0,"","X") -> X | D34: 18 L | E34: =H$17 -> 200 bars | F34: =IF(D$18="Nitrox"," Nitrox",IF(D$18="Trimix","Trimix",IF(D$18="AIR","AIR","Héliox"))) -> Trimix | G34: =IF(D$18="AIR","",E$18) -> 10.5 | H34: =IF(D$18="AIR","",IF(F$18=0,"",F$18)) -> 50 | I34: =(F30*D34*B34*K19)+(F31*D34*B34*K18)+(F32*D34*B34*K20) -> 49.50 € | M34: Total | N34: =K14+K16 -> 200 | P34: bars
B35: 1 | C35: =IF(B35=0,"","X") -> X | D35: 10 L | E35: =H$17 -> 200 bars | F35: =IF(D$18="Nitrox"," Nitrox",IF(D$18="Trimix","Trimix",IF(D$18="AIR","AIR","Héliox"))) -> Trimix | G35: =IF(D$18="AIR","",E$18) -> 10.5 | H35: =IF(D$18="AIR","",IF(F$18=0,"",F$18)) -> 50 | I35: =(F30*D35*B35*K19)+(F31*D35*B35*K18)+(F32*D35*B35*K20) -> 27.50 €
B36: 1 | C36: =IF(B36=0,"","X") -> X | D36: 12 L | E36: =H$17 -> 200 bars | F36: =IF(D$18="Nitrox"," Nitrox",IF(D$18="Trimix","Trimix",IF(D$18="AIR","AIR","Héliox"))) -> Trimix | G36: =IF(D$18="AIR","",E$18) -> 10.5 | H36: =IF(D$18="AIR","",IF(F$18=0,"",F$18)) -> 50 | I36: =(F30*D36*B36*K19)+(F31*D36*B36*K18)+(F32*D36*B36*K20) -> 33.00 €
C37: =IF(B37=0,"","X") ->  | E37: =H$17 -> 200 bars | F37: =IF(D$18="Nitrox"," Nitrox",IF(D$18="Trimix","Trimix",IF(D$18="AIR","AIR","Héliox"))) -> Trimix | G37: =IF(D$18="AIR","",E$18) -> 10.5 | H37: =IF(D$18="AIR","",IF(F$18=0,"",F$18)) -> 50 | I37: =(F30*D37*B37*K19)+(F31*D37*B37*K18)+(F32*D37*B37*K20) -> 0.00 €
B38: Prix total des bouteilles (mélange identique)
D40: =I34+I35+I36+I37 -> 110.00 €
H41: =D40*6.55957 -> (722F)
B43: (aligner en haut de la page)
D47: =D16 -> Air | F47: =E16 -> 21.0 | G47: =F16 -> 0 | K47: =D18 -> Trimix | N47: =E18 -> 10.5 | P47: =F18 -> 50
B48: prof. | D48: pp O2 | E48: pp N2 | F48: Pne | G48: DANGER | J48: prof. | L48: pp O2 | M48: pp N2 | N48: Pne Ppge | P48: DANGER
A50: clic | B50: 0 | C50: m | D50: =((B50/10)+1)*$N$31/100 -> 0.21 | E50: =((B50/10)+1)*$N$33/100 -> 0.79 | F50: =IF(E50<0.79,0,(10*E50)/0.79-7.9/0.79) -> 0 m | G50: =IF(D50>1.47,"Hyperoxie",IF(D50<0.19,"Hypoxie","")) ->  | H50: =IF(E50>5.53,"Narcose",IF(E50>3.56,"pne>35m","")) ->  | J50: 0 | K50: m | L50: =((J50/10)+1)*$D$22/100 -> 0.11 | M50: =((J50/10)+1)*$D$21/100 -> 0.40 | N50: =IF(M50<0.79,0,(10*M50)/0.79-7.9/0.79) -> 0 m | O50: lire | P50: =IF(L50>1.6,"Hyperoxie",IF(L50<0.19,"Hypoxie","")) -> Hypoxie | Q50: =IF(M50>5.53,"Narcose",IF(M50>3.56,"pne > 35m","")) -> 
A51: =(B51/10)+1 -> 1.1 | B51: 1 | C51: m | D51: 0.23 | E51: 0.87 | F51: =IF(E51<0.79,0,(10*E51)/0.79-7.9/0.79) -> 1 m | G51: =IF(D51>1.47,"Hyperoxie",IF(D51<0.19,"Hypoxie","")) ->  | H51: =IF(E51>5.53,"Narcose",IF(E51>3.56,"pne>35m","")) ->  | J51: 1 | K51: m | L51: =((J51/10)+1)*$D$22/100 -> 0.12 | M51: =((J51/10)+1)*$D$21/100 -> 0.43 | N51: =IF(M51<0.79,0,(10*M51)/0.79-7.9/0.79) -> 0 m | O51: =IF(O52<=0,0,(((((($E$18%*1.428)+($F$18%*0.178)+($D$21%*1.25))*A51))/1.28738)*10)-10) -> 0 m | P51: =IF(L51>1.6,"Hyperoxie",IF(L51<0.19,"Hypoxie","")) -> Hypoxie | Q51: =IF(M51>5.53,"Narcose",IF(M51>3.56,"pne > 35m","")) -> 
A52: =(B52/10)+1 -> 1.2 | B52: 2 | C52: m | D52: 0.25 | E52: 0.95 | F52: 2 m | J52: 2 | K52: m | L52: 0.13 | M52: 0.47 | N52: 0 m | O52: =IF(O53<=0,0,(((((($E$18%*1.428)+($F$18%*0.178)+($D$21%*1.25))*A52))/1.28738)*10)-10) -> 0 m | P52: Hypoxie
A53: 1.3 | B53: 3 | C53: m | D53: 0.27 | E53: 1.03 | F53: 3 m | J53: 3 | K53: m | L53: 0.14 | M53: 0.51 | N53: 0 m | O53: 0 m | P53: Hypoxie
A54: 1.4 | B54: 4 | C54: m | D54: 0.29 | E54: 1.11 | F54: 4 m | J54: 4 | K54: m | L54: 0.15 | M54: 0.55 | N54: 0 m | O54: 0 m | P54: Hypoxie
A55: 1.5 | B55: 5 | C55: m | D55: 0.32 | E55: 1.19 | F55: 5 m | J55: 5 | K55: m | L55: 0.16 | M55: 0.59 | N55: 0 m | O55: 0 m | P55: Hypoxie
A56: 1.6 | B56: 6 | C56: m | D56: 0.34 | E56: 1.26 | F56: 6 m | J56: 6 | K56: m | L56: 0.17 | M56: 0.63 | N56: 0 m | O56: 0 m | P56: Hypoxie
A57: 1.7 | B57: 7 | C57: m | D57: 0.36 | E57: 1.34 | F57: 7 m | J57: 7 | K57: m | L57: 0.18 | M57: 0.67 | N57: 0 m | O57: -0 m | P57: Hypoxie
A58: 1.8 | B58: 8 | C58: m | D58: 0.38 | E58: 1.42 | F58: 8 m | J58: 8 | K58: m | L58: 0.19 | M58: 0.71 | N58: 0 m | O58: 0 m | P58: Hypoxie
A59: 1.9 | B59: 9 | C59: m | D59: 0.40 | E59: 1.50 | F59: 9 m | J59: 9 | K59: m | L59: 0.20 | M59: 0.75 | N59: 0 m | O59: 1 m
A60: 2 | B60: 10 | C60: m | D60: 0.42 | E60: 1.58 | F60: 10 m | J60: 10 | K60: m | L60: 0.21 | M60: 0.79 | N60: 0 m | O60: 1 m
A61: 2.1 | B61: 11 | C61: m | D61: 0.44 | E61: 1.66 | F61: 11 m | J61: 11 | K61: m | L61: 0.22 | M61: 0.83 | N61: 1 m | O61: 2 m
A62: 2.2 | B62: 12 | C62: m | D62: 0.46 | E62: 1.74 | F62: 12 m | J62: 12 | K62: m | L62: 0.23 | M62: 0.87 | N62: 1 m | O62: 3 m
A63: 2.3 | B63: 13 | C63: m | D63: 0.48 | E63: 1.82 | F63: 13 m | J63: 13 | K63: m | L63: 0.24 | M63: 0.91 | N63: 2 m | O63: 3 m
A64: 2.4 | B64: 14 | C64: m | D64: 0.50 | E64: 1.90 | F64: 14 m | J64: 14 | K64: m | L64: 0.25 | M64: 0.95 | N64: 2 m | O64: 4 m
A65: 2.5 | B65: 15 | C65: m | D65: 0.53 | E65: 1.98 | F65: 15 m | J65: 15 | K65: m | L65: 0.26 | M65: 0.99 | N65: 3 m | O65: 4 m
A66: 2.6 | B66: 16 | C66: m | D66: 0.55 | E66: 2.05 | F66: 16 m | J66: 16 | K66: m | L66: 0.27 | M66: 1.03 | N66: 3 m | O66: 5 m
A67: 2.7 | B67: 17 | C67: m | D67: 0.57 | E67: 2.13 | F67: 17 m | J67: 17 | K67: m | L67: 0.28 | M67: 1.07 | N67: 4 m | O67: 5 m
A68: 2.8 | B68: 18 | C68: m | D68: 0.59 | E68: 2.21 | F68: 18 m | J68: 18 | K68: m | L68: 0.29 | M68: 1.11 | N68: 4 m | O68: 6 m
A69: 2.9 | B69: 19 | C69: m | D69: 0.61 | E69: 2.29 | F69: 19 m | J69: 19 | K69: m | L69: 0.30 | M69: 1.15 | N69: 5 m | O69: 7 m
A70: 3 | B70: 20 | C70: m | D70: 0.63 | E70: 2.37 | F70: 20 m | J70: 20 | K70: m | L70: 0.32 | M70: 1.19 | N70: 5 m | O70: 7 m
A71: 3.1 | B71: 21 | C71: m | D71: 0.65 | E71: 2.45 | F71: 21 m | J71: 21 | K71: m | L71: 0.33 | M71: 1.22 | N71: 6 m | O71: 8 m
A72: 3.2 | B72: 22 | C72: m | D72: 0.67 | E72: 2.53 | F72: 22 m | J72: 22 | K72: m | L72: 0.34 | M72: 1.26 | N72: 6 m | O72: 8 m
A73: 3.3 | B73: 23 | C73: m | D73: 0.69 | E73: 2.61 | F73: 23 m | J73: 23 | K73: m | L73: 0.35 | M73: 1.30 | N73: 7 m | O73: 9 m
A74: 3.4 | B74: 24 | C74: m | D74: 0.71 | E74: 2.69 | F74: 24 m | J74: 24 | K74: m | L74: 0.36 | M74: 1.34 | N74: 7 m | O74: 9 m
A75: 3.5 | B75: 25 | C75: m | D75: 0.74 | E75: 2.77 | F75: 25 m | J75: 25 | K75: m | L75: 0.37 | M75: 1.38 | N75: 8 m | O75: 10 m
A76: 3.6 | B76: 26 | C76: m | D76: 0.76 | E76: 2.84 | F76: 26 m | J76: 26 | K76: m | L76: 0.38 | M76: 1.42 | N76: 8 m | O76: 10 m
A77: 3.7 | B77: 27 | C77: m | D77: 0.78 | E77: 2.92 | F77: 27 m | J77: 27 | K77: m | L77: 0.39 | M77: 1.46 | N77: 9 m | O77: 11 m
A78: 3.8 | B78: 28 | C78: m | D78: 0.80 | E78: 3.00 | F78: 28 m | J78: 28 | K78: m | L78: 0.40 | M78: 1.50 | N78: 9 m | O78: 12 m
A79: 3.9 | B79: 29 | C79: m | D79: 0.82 | E79: 3.08 | F79: 29 m | J79: 29 | K79: m | L79: 0.41 | M79: 1.54 | N79: 10 m | O79: 12 m
A80: 4 | B80: 30 | C80: m | D80: 0.84 | E80: 3.16 | F80: 30 m | J80: 30 | K80: m | L80: 0.42 | M80: 1.58 | N80: 10 m | O80: 13 m
A81: 4.1 | B81: 31 | C81: m | D81: 0.86 | E81: 3.24 | F81: 31 m | J81: 31 | K81: m | L81: 0.43 | M81: 1.62 | N81: 11 m | O81: 13 m
A82: 4.2 | B82: 32 | C82: m | D82: 0.88 | E82: 3.32 | F82: 32 m | J82: 32 | K82: m | L82: 0.44 | M82: 1.66 | N82: 11 m | O82: 14 m
A83: 4.3 | B83: 33 | C83: m | D83: 0.90 | E83: 3.40 | F83: 33 m | J83: 33 | K83: m | L83: 0.45 | M83: 1.70 | N83: 12 m | O83: 14 m
A84: 4.4 | B84: 34 | C84: m | D84: 0.92 | E84: 3.48 | F84: 34 m | J84: 34 | K84: m | L84: 0.46 | M84: 1.74 | N84: 12 m | O84: 15 m
A85: 4.5 | B85: 35 | C85: m | D85: 0.95 | E85: 3.56 | F85: 35 m | J85: 35 | K85: m | L85: 0.47 | M85: 1.78 | N85: 13 m | O85: 16 m
A86: 4.6 | B86: 36 | C86: m | D86: 0.97 | E86: 3.63 | F86: 36 m | H86: pne>35m | J86: 36 | K86: m | L86: 0.48 | M86: 1.82 | N86: 13 m | O86: 16 m
A87: 4.7 | B87: 37 | C87: m | D87: 0.99 | E87: 3.71 | F87: 37 m | H87: pne>35m | J87: 37 | K87: m | L87: 0.49 | M87: 1.86 | N87: 14 m | O87: 17 m
A88: 4.8 | B88: 38 | C88: m | D88: 1.01 | E88: 3.79 | F88: 38 m | H88: pne>35m | J88: 38 | K88: m | L88: 0.50 | M88: 1.90 | N88: 14 m | O88: 17 m
A89: 4.9 | B89: 39 | C89: m | D89: 1.03 | E89: 3.87 | F89: 39 m | H89: pne>35m | J89: 39 | K89: m | L89: 0.51 | M89: 1.94 | N89: 15 m | O89: 18 m
A90: 5 | B90: 40 | C90: m | D90: 1.05 | E90: 3.95 | F90: 40 m | H90: pne>35m | J90: 40 | K90: m | L90: 0.53 | M90: 1.98 | N90: 15 m | O90: 18 m
A91: 5.1 | B91: 41 | C91: m | D91: 1.07 | E91: 4.03 | F91: 41 m | H91: pne>35m | J91: 41 | K91: m | L91: 0.54 | M91: 2.01 | N91: 16 m | O91: 19 m
A92: 5.2 | B92: 42 | C92: m | D92: 1.09 | E92: 4.11 | F92: 42 m | H92: pne>35m | J92: 42 | K92: m | L92: 0.55 | M92: 2.05 | N92: 16 m | O92: 20 m
A93: 5.3 | B93: 43 | C93: m | D93: 1.11 | E93: 4.19 | F93: 43 m | H93: pne>35m | J93: 43 | K93: m | L93: 0.56 | M93: 2.09 | N93: 17 m | O93: 20 m
A94: 5.4 | B94: 44 | C94: m | D94: 1.13 | E94: 4.27 | F94: 44 m | H94: pne>35m | J94: 44 | K94: m | L94: =((J94/10)+1)*$D$22/100 -> 0.57 | M94: 2.13 | N94: 17 m | O94: 21 m | P94: =IF(L94>1.47,"Hyperoxie",IF(L94<0.19,"Hypoxie","")) -> 
A95: 5.5 | B95: 45 | C95: m | D95: 1.16 | E95: 4.35 | F95: 45 m | H95: pne>35m | J95: 45 | K95: m | L95: 0.58 | M95: 2.17 | N95: 18 m | O95: 21 m
A96: 5.6 | B96: 46 | C96: m | D96: 1.18 | E96: 4.42 | F96: 46 m | H96: pne>35m | J96: 46 | K96: m | L96: 0.59 | M96: 2.21 | N96: 18 m | O96: 22 m
A97: 5.7 | B97: 47 | C97: m | D97: 1.20 | E97: 4.50 | F97: 47 m | H97: pne>35m | J97: 47 | K97: m | L97: 0.60 | M97: 2.25 | N97: 19 m | O97: 22 m
A98: 5.8 | B98: 48 | C98: m | D98: 1.22 | E98: 4.58 | F98: 48 m | H98: pne>35m | J98: 48 | K98: m | L98: 0.61 | M98: 2.29 | N98: 19 m | O98: 23 m
A99: 5.9 | B99: 49 | C99: m | D99: 1.24 | E99: 4.66 | F99: 49 m | H99: pne>35m | J99: 49 | K99: m | L99: 0.62 | M99: 2.33 | N99: 20 m | O99: 24 m
A100: 6 | B100: 50 | C100: m | D100: 1.26 | E100: 4.74 | F100: 50 m | H100: pne>35m | J100: 50 | K100: m | L100: 0.63 | M100: 2.37 | N100: 20 m | O100: 24 m
A101: 6.1 | B101: 51 | C101: m | D101: 1.28 | E101: 4.82 | F101: 51 m | H101: pne>35m | J101: 51 | K101: m | L101: 0.64 | M101: 2.41 | N101: 21 m | O101: =(((((($E$18%*1.428)+($F$18%*0.178)+($D$21%*1.25))*A101))/1.28738)*10)-10 -> 25 m
A102: 6.2 | B102: 52 | C102: m | D102: 1.30 | E102: 4.90 | F102: 52 m | H102: pne>35m | J102: 52 | K102: m | L102: 0.65 | M102: 2.45 | N102: 21 m | O102: 25 m
A103: 6.3 | B103: 53 | C103: m | D103: 1.32 | E103: 4.98 | F103: 53 m | H103: pne>35m | J103: 53 | K103: m | L103: 0.66 | M103: 2.49 | N103: 22 m | O103: 26 m
A104: 6.4 | B104: 54 | C104: m | D104: 1.34 | E104: 5.06 | F104: 54 m | H104: pne>35m | J104: 54 | K104: m | L104: 0.67 | M104: 2.53 | N104: 22 m | O104: 26 m
A105: 6.5 | B105: 55 | C105: m | D105: 1.37 | E105: 5.14 | F105: 55 m | H105: pne>35m | J105: 55 | K105: m | L105: 0.68 | M105: 2.57 | N105: 23 m | O105: 27 m
A106: 6.6 | B106: 56 | C106: m | D106: 1.39 | E106: 5.21 | F106: 56 m | H106: pne>35m | J106: 56 | K106: m | L106: 0.69 | M106: 2.61 | N106: 23 m | O106: 28 m
A107: 6.7 | B107: 57 | C107: m | D107: 1.41 | E107: 5.29 | F107: 57 m | H107: pne>35m | J107: 57 | K107: m | L107: 0.70 | M107: 2.65 | N107: 24 m | O107: 28 m
A108: 6.8 | B108: 58 | C108: m | D108: 1.43 | E108: 5.37 | F108: 58 m | H108: pne>35m | J108: 58 | K108: m | L108: 0.71 | M108: 2.69 | N108: 24 m | O108: 29 m
A109: 6.9 | B109: 59 | C109: m | D109: 1.45 | E109: 5.45 | F109: 59 m | H109: pne>35m | J109: 59 | K109: m | L109: 0.72 | M109: 2.73 | N109: 25 m | O109: 29 m
A110: 7 | B110: 60 | C110: m | D110: 1.47 | E110: 5.53 | F110: 60 m | H110: pne>35m | J110: 60 | K110: m | L110: 0.74 | M110: 2.77 | N110: 25 m | O110: 30 m
A111: 7.1 | B111: 61 | C111: m | D111: 1.49 | E111: 5.61 | F111: 61 m | G111: Hyperoxie | H111: Narcose | J111: 61 | K111: m | L111: 0.75 | M111: 2.80 | N111: 26 m | O111: 30 m
A112: 7.2 | B112: 62 | C112: m | D112: 1.51 | E112: 5.69 | F112: 62 m | G112: Hyperoxie | H112: Narcose | J112: 62 | K112: m | L112: 0.76 | M112: 2.84 | N112: 26 m | O112: 31 m
A113: 7.3 | B113: 63 | C113: m | D113: 1.53 | E113: 5.77 | F113: 63 m | G113: Hyperoxie | H113: Narcose | J113: 63 | K113: m | L113: 0.77 | M113: 2.88 | N113: 27 m | O113: 32 m
A114: 7.4 | B114: 64 | C114: m | D114: =((B114/10)+1)*$N$31/100 -> 1.55 | E114: =((B114/10)+1)*$N$33/100 -> 5.85 | F114: 64 m | G114: Hyperoxie | H114: Narcose | J114: 64 | K114: m | L114: 0.78 | M114: 2.92 | N114: 27 m | O114: 32 m
A115: 7.5 | B115: 65 | C115: m | D115: 1.58 | E115: 5.93 | F115: =IF(E115<0.79,0,(10*E115)/0.79-7.9/0.79) -> 65 m | G115: =IF(D115>1.47,"Hyperoxie",IF(D115<0.19,"Hypoxie","")) -> Hyperoxie | H115: =IF(E115>5.53,"Narcose",IF(E115>3.56,"pne>35m","")) -> Narcose | J115: 65 | K115: m | L115: =((J115/10)+1)*$D$22/100 -> 0.79 | M115: =((J115/10)+1)*$D$21/100 -> 2.96 | N115: =IF(M115<0.79,0,(10*M115)/0.79-7.9/0.79) -> 28 m | O115: =(((((($E$18%*1.428)+($F$18%*0.178)+($D$21%*1.25))*A115))/1.28738)*10)-10 -> 33 m | P115: =IF(L115>1.47,"Hyperoxie",IF(L115<0.19,"Hypoxie","")) ->  | Q115: =IF(M115>5.53,"Narcose",IF(M115>3.56,"pne > 35m","")) -> 
A116: =(B116/10)+1 -> 7.6 | B116: 66 | C116: m | D116: 1.60 | E116: 6.00 | F116: 66 m | G116: Hyperoxie | H116: Narcose | J116: 66 | K116: m | L116: 0.80 | M116: 3.00 | N116: 28 m | O116: 33 m
A117: 7.7 | B117: 67 | C117: m | D117: 1.62 | E117: 6.08 | F117: 67 m | G117: Hyperoxie | H117: Narcose | J117: 67 | K117: m | L117: 0.81 | M117: 3.04 | N117: 29 m | O117: 34 m
A118: 7.8 | B118: 68 | C118: m | D118: 1.64 | E118: 6.16 | F118: 68 m | G118: Hyperoxie | H118: Narcose | J118: 68 | K118: m | L118: 0.82 | M118: 3.08 | N118: 29 m | O118: 34 m
A119: 7.9 | B119: 69 | C119: m | D119: 1.66 | E119: 6.24 | F119: 69 m | G119: Hyperoxie | H119: Narcose | J119: 69 | K119: m | L119: 0.83 | M119: 3.12 | N119: 30 m | O119: 35 m
A120: 8 | B120: 70 | C120: m | D120: 1.68 | E120: 6.32 | F120: 70 m | G120: Hyperoxie | H120: Narcose | J120: 70 | K120: m | L120: 0.84 | M120: 3.16 | N120: 30 m | O120: 36 m
A121: 8.1 | B121: 71 | C121: m | D121: 1.70 | E121: 6.40 | F121: 71 m | G121: Hyperoxie | H121: Narcose | J121: 71 | K121: m | L121: 0.85 | M121: 3.20 | N121: 31 m | O121: 36 m
A122: 8.2 | B122: 72 | C122: m | D122: 1.72 | E122: 6.48 | F122: 72 m | G122: Hyperoxie | H122: Narcose | J122: 72 | K122: m | L122: 0.86 | M122: 3.24 | N122: 31 m | O122: 37 m
A123: 8.3 | B123: 73 | C123: m | D123: 1.74 | E123: 6.56 | F123: 73 m | G123: Hyperoxie | H123: Narcose | J123: 73 | K123: m | L123: 0.87 | M123: 3.28 | N123: 32 m | O123: 37 m
A124: 8.4 | B124: 74 | C124: m | D124: 1.76 | E124: 6.64 | F124: 74 m | G124: Hyperoxie | H124: Narcose | J124: 74 | K124: m | L124: 0.88 | M124: 3.32 | N124: 32 m | O124: 38 m
A125: 8.5 | B125: 75 | C125: m | D125: 1.79 | E125: 6.72 | F125: 75 m | G125: Hyperoxie | H125: Narcose | J125: 75 | K125: m | L125: 0.89 | M125: 3.36 | N125: 33 m | O125: 38 m
A126: 8.6 | B126: 76 | C126: m | D126: 1.81 | E126: 6.79 | F126: 76 m | G126: Hyperoxie | H126: Narcose | J126: 76 | K126: m | L126: 0.90 | M126: 3.40 | N126: 33 m | O126: 39 m
A127: 8.7 | B127: 77 | C127: m | D127: 1.83 | E127: 6.87 | F127: 77 m | G127: Hyperoxie | H127: Narcose | J127: 77 | K127: m | L127: 0.91 | M127: 3.44 | N127: 34 m | O127: 40 m
A128: 8.8 | B128: 78 | C128: m | D128: 1.85 | E128: 6.95 | F128: 78 m | G128: Hyperoxie | H128: Narcose | J128: 78 | K128: m | L128: 0.92 | M128: 3.48 | N128: 34 m | O128: 40 m
A129: 8.9 | B129: 79 | C129: m | D129: 1.87 | E129: 7.03 | F129: 79 m | G129: Hyperoxie | H129: Narcose | J129: 79 | K129: m | L129: 0.93 | M129: 3.52 | N129: 35 m | O129: 41 m
A130: 9 | B130: 80 | C130: m | D130: 1.89 | E130: 7.11 | F130: 80 m | G130: Hyperoxie | H130: Narcose | J130: 80 | K130: m | L130: 0.95 | M130: 3.56 | N130: 35 m | O130: 41 m
A131: 9.1 | B131: 81 | C131: m | D131: 1.91 | E131: 7.19 | F131: 81 m | G131: Hyperoxie | H131: Narcose | J131: 81 | K131: m | L131: 0.96 | M131: 3.59 | N131: 36 m | O131: 42 m | Q131: pne > 35m
A132: 9.2 | B132: 82 | C132: m | D132: 1.93 | E132: 7.27 | F132: 82 m | G132: Hyperoxie | H132: Narcose | J132: 82 | K132: m | L132: 0.97 | M132: 3.63 | N132: 36 m | O132: 42 m | Q132: pne > 35m
A133: 9.3 | B133: 83 | C133: m | D133: 1.95 | E133: 7.35 | F133: 83 m | G133: Hyperoxie | H133: Narcose | J133: 83 | K133: m | L133: 0.98 | M133: 3.67 | N133: 37 m | O133: 43 m | Q133: pne > 35m
A134: 9.4 | B134: 84 | C134: m | D134: 1.97 | E134: 7.43 | F134: 84 m | G134: Hyperoxie | H134: Narcose | J134: 84 | K134: m | L134: 0.99 | M134: 3.71 | N134: 37 m | O134: 43 m | Q134: pne > 35m
A135: 9.5 | B135: 85 | C135: m | D135: 2.00 | E135: 7.51 | F135: 85 m | G135: Hyperoxie | H135: Narcose | J135: 85 | K135: m | L135: 1.00 | M135: 3.75 | N135: 38 m | O135: 44 m | Q135: pne > 35m
A136: 9.6 | B136: 86 | C136: m | D136: 2.02 | E136: 7.58 | F136: 86 m | G136: Hyperoxie | H136: Narcose | J136: 86 | K136: m | L136: 1.01 | M136: 3.79 | N136: 38 m | O136: 45 m | Q136: pne > 35m
A137: 9.7 | B137: 87 | C137: m | D137: 2.04 | E137: 7.66 | F137: 87 m | G137: Hyperoxie | H137: Narcose | J137: 87 | K137: m | L137: 1.02 | M137: 3.83 | N137: 39 m | O137: 45 m | Q137: pne > 35m
A138: 9.8 | B138: 88 | C138: m | D138: 2.06 | E138: 7.74 | F138: 88 m | G138: Hyperoxie | H138: Narcose | J138: 88 | K138: m | L138: 1.03 | M138: 3.87 | N138: 39 m | O138: 46 m | Q138: pne > 35m
A139: 9.9 | B139: 89 | C139: m | D139: 2.08 | E139: 7.82 | F139: 89 m | G139: Hyperoxie | H139: Narcose | J139: 89 | K139: m | L139: 1.04 | M139: 3.91 | N139: 40 m | O139: 46 m | Q139: pne > 35m
A140: 10 | B140: 90 | C140: m | D140: 2.10 | E140: 7.90 | F140: 90 m | G140: Hyperoxie | H140: Narcose | J140: 90 | K140: m | L140: 1.05 | M140: 3.95 | N140: 40 m | O140: 47 m | Q140: pne > 35m
A141: 10.1 | B141: 91 | C141: m | D141: 2.12 | E141: 7.98 | F141: 91 m | G141: Hyperoxie | H141: Narcose | J141: 91 | K141: m | L141: 1.06 | M141: 3.99 | N141: 41 m | O141: 47 m | Q141: pne > 35m
A142: 10.2 | B142: 92 | C142: m | D142: 2.14 | E142: 8.06 | F142: 92 m | G142: Hyperoxie | H142: Narcose | J142: 92 | K142: m | L142: 1.07 | M142: 4.03 | N142: 41 m | O142: 48 m | Q142: pne > 35m
A143: 10.3 | B143: 93 | C143: m | D143: 2.16 | E143: 8.14 | F143: 93 m | G143: Hyperoxie | H143: Narcose | J143: 93 | K143: m | L143: 1.08 | M143: 4.07 | N143: 42 m | O143: 49 m | Q143: pne > 35m
A144: 10.4 | B144: 94 | C144: m | D144: 2.18 | E144: 8.22 | F144: 94 m | G144: Hyperoxie | H144: Narcose | J144: 94 | K144: m | L144: 1.09 | M144: 4.11 | N144: 42 m | O144: 49 m | Q144: pne > 35m
A145: 10.5 | B145: 95 | C145: m | D145: 2.21 | E145: 8.30 | F145: 95 m | G145: Hyperoxie | H145: Narcose | J145: 95 | K145: m | L145: 1.10 | M145: 4.15 | N145: 43 m | O145: 50 m | Q145: pne > 35m
A146: 10.6 | B146: 96 | C146: m | D146: 2.23 | E146: 8.37 | F146: 96 m | G146: Hyperoxie | H146: Narcose | J146: 96 | K146: m | L146: 1.11 | M146: 4.19 | N146: 43 m | O146: 50 m | Q146: pne > 35m
A147: 10.7 | B147: 97 | C147: m | D147: 2.25 | E147: 8.45 | F147: 97 m | G147: Hyperoxie | H147: Narcose | J147: 97 | K147: m | L147: 1.12 | M147: 4.23 | N147: 44 m | O147: 51 m | Q147: pne > 35m
A148: 10.8 | B148: 98 | C148: m | D148: 2.27 | E148: 8.53 | F148: 98 m | G148: Hyperoxie | H148: Narcose | J148: 98 | K148: m | L148: 1.13 | M148: 4.27 | N148: 44 m | O148: 51 m | Q148: pne > 35m
A149: 10.9 | B149: 99 | C149: m | D149: 2.29 | E149: 8.61 | F149: 99 m | G149: Hyperoxie | H149: Narcose | J149: 99 | K149: m | L149: 1.14 | M149: 4.31 | N149: 45 m | O149: 52 m | Q149: pne > 35m
A150: 11 | B150: 100 | C150: m | D150: 2.31 | E150: 8.69 | F150: 100 m | G150: Hyperoxie | H150: Narcose | J150: 100 | K150: m | L150: 1.16 | M150: 4.35 | N150: 45 m | O150: 53 m | Q150: pne > 35m
A151: 11.1 | B151: 101 | C151: m | D151: 2.33 | E151: 8.77 | F151: 101 m | G151: Hyperoxie | H151: Narcose | J151: 101 | K151: m | L151: 1.17 | M151: 4.38 | N151: 46 m | O151: 53 m | Q151: pne > 35m
A152: 11.2 | B152: 102 | C152: m | D152: 2.35 | E152: 8.85 | F152: 102 m | G152: Hyperoxie | H152: Narcose | J152: 102 | K152: m | L152: 1.18 | M152: 4.42 | N152: 46 m | O152: 54 m | Q152: pne > 35m
A153: 11.3 | B153: 103 | C153: m | D153: 2.37 | E153: 8.93 | F153: 103 m | G153: Hyperoxie | H153: Narcose | J153: 103 | K153: m | L153: 1.19 | M153: 4.46 | N153: 47 m | O153: 54 m | Q153: pne > 35m
A154: 11.4 | B154: 104 | C154: m | D154: 2.39 | E154: 9.01 | F154: 104 m | G154: Hyperoxie | H154: Narcose | J154: 104 | K154: m | L154: 1.20 | M154: 4.50 | N154: 47 m | O154: 55 m | Q154: pne > 35m
A155: 11.5 | B155: 105 | C155: m | D155: 2.42 | E155: 9.09 | F155: 105 m | G155: Hyperoxie | H155: Narcose | J155: 105 | K155: m | L155: 1.21 | M155: 4.54 | N155: 48 m | O155: 55 m | Q155: pne > 35m
A156: 11.6 | B156: 106 | C156: m | D156: 2.44 | E156: 9.16 | F156: 106 m | G156: Hyperoxie | H156: Narcose | J156: 106 | K156: m | L156: 1.22 | M156: 4.58 | N156: 48 m | O156: 56 m | Q156: pne > 35m
A157: 11.7 | B157: 107 | C157: m | D157: 2.46 | E157: 9.24 | F157: 107 m | G157: Hyperoxie | H157: Narcose | J157: 107 | K157: m | L157: 1.23 | M157: 4.62 | N157: 49 m | O157: 57 m | Q157: pne > 35m
A158: 11.8 | B158: 108 | C158: m | D158: 2.48 | E158: 9.32 | F158: 108 m | G158: Hyperoxie | H158: Narcose | J158: 108 | K158: m | L158: 1.24 | M158: 4.66 | N158: 49 m | O158: 57 m | Q158: pne > 35m
A159: 11.9 | B159: 109 | C159: m | D159: 2.50 | E159: 9.40 | F159: 109 m | G159: Hyperoxie | H159: Narcose | J159: 109 | K159: m | L159: 1.25 | M159: 4.70 | N159: 50 m | O159: 58 m | Q159: pne > 35m
A160: 12 | B160: 110 | C160: m | D160: 2.52 | E160: 9.48 | F160: 110 m | G160: Hyperoxie | H160: Narcose | J160: 110 | K160: m | L160: 1.26 | M160: 4.74 | N160: 50 m | O160: 58 m | Q160: pne > 35m
A161: 12.1 | B161: 111 | C161: m | D161: 2.54 | E161: 9.56 | F161: 111 m | G161: Hyperoxie | H161: Narcose | J161: 111 | K161: m | L161: 1.27 | M161: 4.78 | N161: 51 m | O161: 59 m | Q161: pne > 35m
A162: 12.2 | B162: 112 | C162: m | D162: 2.56 | E162: 9.64 | F162: 112 m | G162: Hyperoxie | H162: Narcose | J162: 112 | K162: m | L162: 1.28 | M162: 4.82 | N162: 51 m | O162: 59 m | Q162: pne > 35m
A163: 12.3 | B163: 113 | C163: m | D163: 2.58 | E163: 9.72 | F163: 113 m | G163: Hyperoxie | H163: Narcose | J163: 113 | K163: m | L163: 1.29 | M163: 4.86 | N163: 52 m | O163: 60 m | Q163: pne > 35m
A164: 12.4 | B164: 114 | C164: m | D164: 2.60 | E164: 9.80 | F164: 114 m | G164: Hyperoxie | H164: Narcose | J164: 114 | K164: m | L164: 1.30 | M164: 4.90 | N164: 52 m | O164: 61 m | Q164: pne > 35m
A165: 12.5 | B165: 115 | C165: m | D165: 2.63 | E165: 9.88 | F165: 115 m | G165: Hyperoxie | H165: Narcose | J165: 115 | K165: m | L165: 1.31 | M165: 4.94 | N165: 53 m | O165: 61 m | Q165: pne > 35m
A166: 12.6 | B166: 116 | C166: m | D166: 2.65 | E166: 9.95 | F166: 116 m | G166: Hyperoxie | H166: Narcose | J166: 116 | K166: m | L166: 1.32 | M166: 4.98 | N166: 53 m | O166: 62 m | Q166: pne > 35m
A167: 12.7 | B167: 117 | C167: m | D167: 2.67 | E167: 10.03 | F167: 117 m | G167: Hyperoxie | H167: Narcose | J167: 117 | K167: m | L167: 1.33 | M167: 5.02 | N167: 54 m | O167: 62 m | Q167: pne > 35m
A168: 12.8 | B168: 118 | C168: m | D168: 2.69 | E168: 10.11 | F168: 118 m | G168: Hyperoxie | H168: Narcose | J168: 118 | K168: m | L168: 1.34 | M168: 5.06 | N168: 54 m | O168: 63 m | Q168: pne > 35m
A169: 12.9 | B169: 119 | C169: m | D169: 2.71 | E169: 10.19 | F169: 119 m | G169: Hyperoxie | H169: Narcose | J169: 119 | K169: m | L169: 1.35 | M169: 5.10 | N169: 55 m | O169: 63 m | Q169: pne > 35m
A170: 13 | B170: 120 | C170: m | D170: 2.73 | E170: 10.27 | F170: 120 m | G170: Hyperoxie | H170: Narcose | J170: 120 | K170: m | L170: 1.37 | M170: 5.14 | N170: 55 m | O170: 64 m | Q170: pne > 35m
A171: 13.1 | B171: 121 | C171: m | D171: 2.75 | E171: 10.35 | F171: 121 m | G171: Hyperoxie | H171: Narcose | J171: 121 | K171: m | L171: 1.38 | M171: 5.17 | N171: 56 m | O171: 65 m | Q171: pne > 35m
A172: 13.2 | B172: 122 | C172: m | D172: 2.77 | E172: 10.43 | F172: 122 m | G172: Hyperoxie | H172: Narcose | J172: 122 | K172: m | L172: 1.39 | M172: 5.21 | N172: 56 m | O172: 65 m | Q172: pne > 35m
A173: 13.3 | B173: 123 | C173: m | D173: 2.79 | E173: 10.51 | F173: 123 m | G173: Hyperoxie | H173: Narcose | J173: 123 | K173: m | L173: 1.40 | M173: 5.25 | N173: 57 m | O173: 66 m | Q173: pne > 35m
A174: 13.4 | B174: 124 | C174: m | D174: 2.81 | E174: 10.59 | F174: 124 m | G174: Hyperoxie | H174: Narcose | J174: 124 | K174: m | L174: 1.41 | M174: 5.29 | N174: 57 m | O174: 66 m | Q174: pne > 35m
A175: 13.5 | B175: 125 | C175: m | D175: 2.84 | E175: 10.67 | F175: 125 m | G175: Hyperoxie | H175: Narcose | J175: 125 | K175: m | L175: 1.42 | M175: 5.33 | N175: 58 m | O175: 67 m | Q175: pne > 35m
A176: 13.6 | B176: 126 | C176: m | D176: 2.86 | E176: 10.74 | F176: 126 m | G176: Hyperoxie | H176: Narcose | J176: 126 | K176: m | L176: 1.43 | M176: 5.37 | N176: 58 m | O176: 67 m | Q176: pne > 35m
A177: 13.7 | B177: 127 | C177: m | D177: 2.88 | E177: 10.82 | F177: 127 m | G177: Hyperoxie | H177: Narcose | J177: 127 | K177: m | L177: 1.44 | M177: 5.41 | N177: 59 m | O177: 68 m | Q177: pne > 35m
A178: 13.8 | B178: 128 | C178: m | D178: =((B178/10)+1)*$N$31/100 -> 2.90 | E178: =((B178/10)+1)*$N$33/100 -> 10.90 | F178: 128 m | G178: Hyperoxie | H178: Narcose | J178: 128 | K178: m | L178: 1.45 | M178: 5.45 | N178: 59 m | O178: 69 m | Q178: pne > 35m
A179: 13.9 | B179: 129 | C179: m | D179: 2.92 | E179: 10.98 | F179: =IF(E179<0.79,0,(10*E179)/0.79-7.9/0.79) -> 129 m | G179: =IF(D179>1.47,"Hyperoxie",IF(D179<0.19,"Hypoxie","")) -> Hyperoxie | H179: =IF(E179>5.53,"Narcose",IF(E179>3.56,"pne>35m","")) -> Narcose | J179: 129 | K179: m | L179: =((J179/10)+1)*$D$22/100 -> 1.46 | M179: =((J179/10)+1)*$D$21/100 -> 5.49 | N179: =IF(M179<0.79,0,(10*M179)/0.79-7.9/0.79) -> 60 m | O179: =(((((($E$18%*1.428)+($F$18%*0.178)+($D$21%*1.25))*A179))/1.28738)*10)-10 -> 69 m | P179: =IF(L179>1.47,"Hyperoxie",IF(L179<0.19,"Hypoxie","")) ->  | Q179: =IF(M179>5.53,"Narcose",IF(M179>3.56,"pne > 35m","")) -> pne > 35m
A180: =(B180/10)+1 -> 14 | B180: 130 | C180: m | D180: 2.94 | E180: 11.06 | F180: 130 m | G180: Hyperoxie | H180: Narcose | J180: 130 | K180: m | L180: 1.47 | M180: 5.53 | N180: 60 m | O180: 70 m | Q180: pne > 35m
A181: 14.1 | B181: 131 | C181: m | D181: 2.96 | E181: 11.14 | F181: 131 m | G181: Hyperoxie | H181: Narcose | J181: 131 | K181: m | L181: 1.48 | M181: 5.57 | N181: 61 m | O181: 70 m | P181: Hyperoxie | Q181: Narcose
A182: 14.2 | B182: 132 | C182: m | D182: 2.98 | E182: 11.22 | F182: 132 m | G182: Hyperoxie | H182: Narcose | J182: 132 | K182: m | L182: 1.49 | M182: 5.61 | N182: 61 m | O182: 71 m | P182: Hyperoxie | Q182: Narcose
A183: 14.3 | B183: 133 | C183: m | D183: 3.00 | E183: 11.30 | F183: 133 m | G183: Hyperoxie | H183: Narcose | J183: 133 | K183: m | L183: 1.50 | M183: 5.65 | N183: 62 m | O183: 71 m | P183: Hyperoxie | Q183: Narcose
A184: 14.4 | B184: 134 | C184: m | D184: 3.02 | E184: 11.38 | F184: 134 m | G184: Hyperoxie | H184: Narcose | J184: 134 | K184: m | L184: 1.51 | M184: 5.69 | N184: 62 m | O184: 72 m | P184: Hyperoxie | Q184: Narcose
A185: 14.5 | B185: 135 | C185: m | D185: 3.05 | E185: 11.46 | F185: 135 m | G185: Hyperoxie | H185: Narcose | J185: 135 | K185: m | L185: 1.52 | M185: 5.73 | N185: 63 m | O185: 73 m | P185: Hyperoxie | Q185: Narcose
A186: 14.6 | B186: 136 | C186: m | D186: 3.07 | E186: 11.53 | F186: 136 m | G186: Hyperoxie | H186: Narcose | J186: 136 | K186: m | L186: 1.53 | M186: 5.77 | N186: 63 m | O186: 73 m | P186: Hyperoxie | Q186: Narcose
A187: 14.7 | B187: 137 | C187: m | D187: 3.09 | E187: 11.61 | F187: 137 m | G187: Hyperoxie | H187: Narcose | J187: 137 | K187: m | L187: 1.54 | M187: 5.81 | N187: 64 m | O187: 74 m | P187: Hyperoxie | Q187: Narcose
A188: 14.8 | B188: 138 | C188: m | D188: 3.11 | E188: 11.69 | F188: 138 m | G188: Hyperoxie | H188: Narcose | J188: 138 | K188: m | L188: 1.55 | M188: 5.85 | N188: 64 m | O188: 74 m | P188: Hyperoxie | Q188: Narcose
A189: 14.9 | B189: 139 | C189: m | D189: 3.13 | E189: 11.77 | F189: 139 m | G189: Hyperoxie | H189: Narcose | J189: 139 | K189: m | L189: 1.56 | M189: 5.89 | N189: 65 m | O189: 75 m | P189: Hyperoxie | Q189: Narcose
A190: 15 | B190: 140 | C190: m | D190: 3.15 | E190: 11.85 | F190: 140 m | G190: Hyperoxie | H190: Narcose | J190: 140 | K190: m | L190: 1.58 | M190: 5.93 | N190: 65 m | O190: 75 m | P190: Hyperoxie | Q190: Narcose
A191: 15.1 | B191: 141 | C191: m | D191: 3.17 | E191: 11.93 | F191: 141 m | G191: Hyperoxie | H191: Narcose | J191: 141 | K191: m | L191: 1.59 | M191: 5.96 | N191: 66 m | O191: 76 m | P191: Hyperoxie | Q191: Narcose
A192: 15.2 | B192: 142 | C192: m | D192: 3.19 | E192: 12.01 | F192: 142 m | G192: Hyperoxie | H192: Narcose | J192: 142 | K192: m | L192: 1.60 | M192: 6.00 | N192: 66 m | O192: 77 m | P192: Hyperoxie | Q192: Narcose
A193: 15.3 | B193: 143 | C193: m | D193: 3.21 | E193: 12.09 | F193: 143 m | G193: Hyperoxie | H193: Narcose | J193: 143 | K193: m | L193: 1.61 | M193: 6.04 | N193: 67 m | O193: 77 m | P193: Hyperoxie | Q193: Narcose
A194: 15.4 | B194: 144 | C194: m | D194: 3.23 | E194: 12.17 | F194: 144 m | G194: Hyperoxie | H194: Narcose | J194: 144 | K194: m | L194: 1.62 | M194: 6.08 | N194: 67 m | O194: 78 m | P194: Hyperoxie | Q194: Narcose
A195: 15.5 | B195: 145 | C195: m | D195: 3.26 | E195: 12.25 | F195: 145 m | G195: Hyperoxie | H195: Narcose | J195: 145 | K195: m | L195: 1.63 | M195: 6.12 | N195: 68 m | O195: 78 m | P195: Hyperoxie | Q195: Narcose
A196: 15.6 | B196: 146 | C196: m | D196: 3.28 | E196: 12.32 | F196: 146 m | G196: Hyperoxie | H196: Narcose | J196: 146 | K196: m | L196: 1.64 | M196: 6.16 | N196: 68 m | O196: 79 m | P196: Hyperoxie | Q196: Narcose
A197: 15.7 | B197: 147 | C197: m | D197: 3.30 | E197: 12.40 | F197: 147 m | G197: Hyperoxie | H197: Narcose | J197: 147 | K197: m | L197: 1.65 | M197: 6.20 | N197: 69 m | O197: 79 m | P197: Hyperoxie | Q197: Narcose
A198: 15.8 | B198: 148 | C198: m | D198: 3.32 | E198: 12.48 | F198: 148 m | G198: Hyperoxie | H198: Narcose | J198: 148 | K198: m | L198: 1.66 | M198: 6.24 | N198: 69 m | O198: 80 m | P198: Hyperoxie | Q198: Narcose
A199: 15.9 | B199: 149 | C199: m | D199: 3.34 | E199: 12.56 | F199: 149 m | G199: Hyperoxie | H199: Narcose | J199: 149 | K199: m | L199: 1.67 | M199: 6.28 | N199: 70 m | O199: 80 m | P199: Hyperoxie | Q199: Narcose
A200: 16 | B200: 150 | C200: m | D200: 3.36 | E200: 12.64 | F200: 150 m | G200: Hyperoxie | H200: Narcose | J200: 150 | K200: m | L200: 1.68 | M200: 6.32 | N200: 70 m | O200: 81 m | P200: Hyperoxie | Q200: Narcose
A201: 16.1 | B201: 151 | C201: m | D201: 3.38 | E201: 12.72 | F201: 151 m | G201: Hyperoxie | H201: Narcose | J201: 151 | K201: m | L201: 1.69 | M201: 6.36 | N201: 71 m | O201: 82 m | P201: Hyperoxie | Q201: Narcose
A202: 16.2 | B202: 152 | C202: m | D202: 3.40 | E202: 12.80 | F202: 152 m | G202: Hyperoxie | H202: Narcose | J202: 152 | K202: m | L202: 1.70 | M202: 6.40 | N202: 71 m | O202: 82 m | P202: Hyperoxie | Q202: Narcose
A203: 16.3 | B203: 153 | C203: m | D203: 3.42 | E203: 12.88 | F203: 153 m | G203: Hyperoxie | H203: Narcose | J203: 153 | K203: m | L203: 1.71 | M203: 6.44 | N203: 72 m | O203: 83 m | P203: Hyperoxie | Q203: Narcose
A204: 16.4 | B204: 154 | C204: m | D204: 3.44 | E204: 12.96 | F204: 154 m | G204: Hyperoxie | H204: Narcose | J204: 154 | K204: m | L204: 1.72 | M204: 6.48 | N204: 72 m | O204: 83 m | P204: Hyperoxie | Q204: Narcose
A205: 16.5 | B205: 155 | C205: m | D205: 3.47 | E205: 13.04 | F205: 155 m | G205: Hyperoxie | H205: Narcose | J205: 155 | K205: m | L205: 1.73 | M205: 6.52 | N205: 73 m | O205: 84 m | P205: Hyperoxie | Q205: Narcose
A206: 16.6 | B206: 156 | C206: m | D206: 3.49 | E206: 13.11 | F206: 156 m | G206: Hyperoxie | H206: Narcose | J206: 156 | K206: m | L206: 1.74 | M206: 6.56 | N206: 73 m | O206: 84 m | P206: Hyperoxie | Q206: Narcose
A207: 16.7 | B207: 157 | C207: m | D207: 3.51 | E207: 13.19 | F207: 157 m | G207: Hyperoxie | H207: Narcose | J207: 157 | K207: m | L207: 1.75 | M207: 6.60 | N207: 74 m | O207: 85 m | P207: Hyperoxie | Q207: Narcose
A208: 16.8 | B208: 158 | C208: m | D208: 3.53 | E208: 13.27 | F208: 158 m | G208: Hyperoxie | H208: Narcose | J208: 158 | K208: m | L208: 1.76 | M208: 6.64 | N208: 74 m | O208: 86 m | P208: Hyperoxie | Q208: Narcose
A209: 16.9 | B209: 159 | C209: m | D209: 3.55 | E209: 13.35 | F209: 159 m | G209: Hyperoxie | H209: Narcose | J209: 159 | K209: m | L209: 1.77 | M209: 6.68 | N209: 75 m | O209: 86 m | P209: Hyperoxie | Q209: Narcose
A210: 17 | B210: 160 | C210: m | D210: 3.57 | E210: 13.43 | F210: 160 m | G210: Hyperoxie | H210: Narcose | J210: 160 | K210: m | L210: 1.79 | M210: 6.72 | N210: 75 m | O210: 87 m | P210: Hyperoxie | Q210: Narcose
A211: 17.1 | B211: 161 | C211: m | D211: 3.59 | E211: 13.51 | F211: 161 m | G211: Hyperoxie | H211: Narcose | J211: 161 | K211: m | L211: 1.80 | M211: 6.75 | N211: 76 m | O211: 87 m | P211: Hyperoxie | Q211: Narcose
A212: 17.2 | B212: 162 | C212: m | D212: 3.61 | E212: 13.59 | F212: 162 m | G212: Hyperoxie | H212: Narcose | J212: 162 | K212: m | L212: 1.81 | M212: 6.79 | N212: 76 m | O212: 88 m | P212: Hyperoxie | Q212: Narcose
... 138 more rows

Sheet 2
E2: AVERTISSEMENT
E4: Les phénomènes de compressibilité des gaz, ne sont pas pris en compte dans ce tableur, attention aux pressions élevées .
A5: JP Couloumy | E5: Pour des commodités de lecture, certains chiffres sont arrondis au chiffre > ou < , c'est pourquoi il peut y avoir une légère différence d'un tableau à l'autre !
E6: PP. max pour | G6: O2 = 1,47 (60m air) et 1,62 paliers | L6: N2 = 5,53 ( 60m air )
E7: PP Mini pour O2 = 0,19 | I7: % mini O2= 4%
B8: Pour trimix, héliox, l'alarme PPO2 s'active au delà de 1,47 ; si besoin de trimix hyperoxique ( + de 21 % d'O2 ), alors considérer sa PPO2 comme celle d' un nitrox .
C9: REMPILAGE
A10: TRANSFORMER le RESTANT d'un TRIMIX, HELIOX, HELIAIR, ou NITROX
C11: en RAJOUTANT 02 , N2, Air, Nitrox, ou Hélium
H16: (3) MELANGE DESIRE
B17: (1) RESTE | I17: % O2 = | J17: 7 | K17: L d' 02 = | L17: =J17/100*J23 -> 42
B18: dans la BOUTEILLE de PLONGEE : | I18: % Hé = | J18: 66 | K18: L d' Hé = | L18: =J18/100*J23 -> 396 | N18: ZONE DANGER
I19: % N2 = | J19: =IF(J17=0,"0",IF(J18=0,100-J17,IF(J18>0,100-(J17+J18)))) -> 27 | K19: L d' N2 = | L19: =J19/100*J23 -> 162
C20: pression restante | E20: 100 | I20: TOTAL | J20: =J17+J18+J19 -> 100 | K20: TOTAL | L20: =(L17+L18+L19) -> 600 | O20: =IF(P30<0.19,"HYPOXIE !!!!!! ","") -> 
C21: capacité bouteille | E21: 3 | H21: =IF(K21<=220,"pression désirée","pression élevée ! ! !") -> pression désirée | K21: 200 | L21: bars | O21: =IF(J18>0,"",IF(P30>1.62,"HYPEROXIE !!!!! ","")) -> 
B22: =IF(E21=0,"bouteille 0 litre ?","") ->  | O22: =IF(J18=0,"",IF(P30>1.47,"HYPEROXIE !!!!! ","")) -> 
D23: litres total = | E23: =E21*E20 -> 300 | F23: litres | I23: litres total = | J23: =E21*K21 -> 600 | O23: =IF(R30>5.53,"NARCOSE !!!!!","") -> 
B24: (2) % MELANGE RESTANT | H24: =IF(E20>0,IF(D26+D27=0,"Pression restante doit être = à zéro !",""),"") ->  | O24: (5) Profondeur : plongée ou palier
B25: =IF(D28<0,"IMPOSSIBLE !","") ->  | H25: (4) GAZ A RAJOUTER | O25: =IF(J18>0,"PROF. TRIMIX","PROF. NITROX") -> PROF. TRIMIX
C26: % O2 = | D26: 10 | E26: L d' 02 = | F26: =D26/100*E23 -> 30 | N26: litres
C27: % Hé = | D27: 50 | E27: L d' Hé = | F27: =D27/100*E23 -> 150 | P27: 130 | R27: m
C28: % N2 = | D28: =IF(D26=0,"0",IF(D27=0,100-D26,IF(D27>0,100-(D26+D27)))) -> 40 | E28: L d' N2 = | F28: =D28/100*E23 -> 120 | I28: =IF(J29<0,"IMPOSSIBLE !",IF(J30<0,"IMPOSSIBLE !",IF(J31<0,"IMPOSSIBLE !","soit : avec 3 gaz"))) -> soit : avec 3 gaz | K28: =IF(L29<0,"IMPOSSIBLE !",IF(L30<0,"IMPOSSIBLE !",IF(L31<0,"IMPOSSIBLE !","soit : avec 2 gaz + Air"))) -> soit : avec 2 gaz + Air
C29: TOTAL | D29: =D26+D27+D28 -> 100 | E29: TOTAL | F29: =(F26+F27+F28) -> 300 | I29: O2 = | J29: =(L17-F26)/E21 -> 4b | K29: O2 | L29: =(J29+J30+J31)-(L31+L30) -> 0.3 | M29: b | O29: =IF(O25="PROF. TRIMIX","( Max O2 = 1,47 )",IF(O25="PROF. NITROX","( Max O2 = 1,62 )")) -> ( Max O2 = 1,47 ) | Q29: =IF(O25="TRIMIX","( Max = 5,53 )","") -> 
I30: Hé = | J30: =(L18-F27)/E21 -> 82b | K30: Hé | L30: =J30 -> 82.0 | M30: b | O30: PP 02 = | P30: =((P27/10)+1)*J17/100 -> 0.98 | Q30: PP N2 = | R30: =((P27/10)+1)*J19/100 -> 3.78
G31: b N2= | I31: N2 = | J31: =(L19-F28)/E21 -> 14b | K31: Air | L31: =100/79*J31 -> 17.7 | M31: b | O31: =IF(J18=0,"PeA","PNe") -> PNe
B32: (3 bis) Rempilage sans rajout d'hélium | G32: =(100-D34)/100*(D35-E20) -> 0 | P32: =IF(R30<0.79,"O",(10*R30)/0.79-7.9/0.79) -> 38
B33: avec seuleument : Nitrox, ou Air, ou O2 | G33: =G32*E21 -> 0 | J33: =IF(L34<0,"IMPOSSIBLE !",IF(L35<0,"IMPOSSIBLE !",IF(L36<0,"IMPOSSIBLE !","soit : avec Hé + nitrox + Air"))) -> soit : avec Hé + nitrox + Air | R33: m
B34: =IF(D34<21,"? ? ?",IF(D34=21,"Air",IF(D34=100,"O2",IF(D34>21,"Nitrox")))) -> O2 | D34: 100 | E34: =D34/100*(D35-E20) -> 100 | F34: Tot Lit | G34: =E34*E21 -> 300 | J34: Hé | L34: =P51 -> 82.0 | M34: b
B35: pression | D35: 200 | E35: total L 02 | F35: =IF(K35=100%,"bouteille 02 !","(stick ou tampon)" ) -> (stick ou tampon) | J35: =IF(K35=100%,"O2",IF(K35=21%,"Air","Nitrox")) -> Nitrox | K35: 40% | L35: =P50 -> 1.2 | M35: b | P35: restante | Q35: désirée | R35: rajout
B36: désirée | E36: =F26+G34 -> 330 | F36: compresseur | J36: Air | K36: 21% | L36: =P52 -> 16.8 | M36: b | O36: Pression | P36: =E20 -> 100 | Q36: =K21 -> 200 | R36: =Q36-P36 -> 100.00
B37: NOUVEAU MELANGE | E37: =F27 -> 150 | J37: =IF(K35<25%,"Nitrox < à 25 % !","") ->  | O37: % o2 | P37: =D26/100 -> 10% | Q37: =J17/100 -> 7%
B38: =IF(D27=0,"N","T") -> T | C38: =D40/E41*100 -> 55.0 | D38: =100*D42/E41 -> 25.0 | I38: = | J38: =IF(J18=0,"N","T") -> T | K38: =R54*100 -> 7.0 | L38: =IF(J18<=0,"",R55*100) -> 66.0 | O38: % Hé | P38: =D27/100 -> 50% | Q38: =(J18/100) -> 66%
O39: % N2 | P39: =IF(P37=0,0,IF(P38=0,1-P37,1-P37-P38)) -> 40% | Q39: =IF(Q37=0,0,IF(Q38=0,1-Q37,IF(Q38>0,1-Q37-Q38))) -> 27%
B40: total L 02 = | D40: =G34+F26 -> 330 | O40: PP o2 | P40: =P36*P37 -> 10.00 | Q40: =Q36*Q37 -> 14.00 | R40: =Q40-P40 -> 4.00
B41: total L N2 = | D41: =G33+F28 -> 120 | E41: =D40+D41+D42 -> 600 | F41: litres | O41: PP Hé | P41: =P36*P38 -> 50.00 | Q41: =Q36*Q38 -> 132.00 | R41: =Q41-P41 -> 82.00
B42: total L Hé = | D42: =F27 -> 150 | O42: PP N2 | P42: =P36*P39 -> 40.00 | Q42: =Q36*Q39 -> 54.00 | R42: =Q42-P42 -> 14.00
A43: Prix pratiqués | E43: PRIX remplissage complémentaire
A44: à la station de gonflage | E44: Hé | F44: 0.0255 € | H44: le litre | J44: CAPACITE | K44: PRIX Hé = | L44: =L30*E21*F44 -> 6.27 € | O44: O2 | P44: =K35 -> 40%
A45: L'AIR DES VASQUES DU QUERCY | E45: O2 | F45: 0.0210 € | H45: le litre | J45: BOUTEILLE | K45: PRIX 02 = | L45: =L29*E21*F45 -> 0.02 € | O45: N2 | P45: =1-P44 -> 60% | Q45: tampon
A46: à Gramat dans le LOT | E46: AIR | F46: 0.0020 € | H46: le litre | J46: =E21 -> 3 L | K46: PRIX Air = | L46: =L31*E21*F46 -> 0.11 €
A47: chez André GRIMAL | E47: mélange initial : | H47: =E20 -> 100 bars | J47: =IF(D27=0,"Nitrox","Trimix") -> Trimix | K47: =D26 -> 10 | L47: =IF(J47="Nitrox","",D27) -> 50 | O47: O2 | P47: =K36 -> 21%
O48: N2 | P48: =1-P47 -> 79% | Q48: compresseur
E49: mélange final : | H49: =K21 -> 200 bars | J49: =IF(J18=0,"Nitrox","Trimix") -> Trimix | K49: =J17 -> 7 | L49: =IF(J49="Nitrox","",J18) -> 66
O50: ="Nitrox "&TEXT(P44*100,0) -> Nitrox 40 | P50: =(P48*R40-P47*R42)/(P44*P48-P45*P47) -> 1.16 | Q50: bars
E51: PRIX | J51: =(L44+L45+L46) -> 6.40 € | L51: =+J51*6.55957 -> (42F) | O51: Hélium | P51: =R41 -> 82.00 | Q51: bars
O52: compresseur | P52: =(P44*R42-P45*R40)/(P44*P48-P45*P47) -> 16.84 | Q52: bars
O54: O2 | P54: =P50*P44+P52*P47+P36*P37 -> 14.00 | Q54: bars | R54: =P54/P57 -> 7%
O55: He | P55: =P51+P36*P38 -> 132.00 | Q55: bars | R55: =P55/P57 -> 66%
O56: N2 | P56: =P50*P45+P52*P48+P36*P39 -> 54.00 | Q56: bars | R56: =P56/P57 -> 27%
O57: Total | P57: =SUM(P54:P56) -> 200.00 | Q57: bars | R57: =SUM(R54:R56) -> 100%
P59: =IF(R54=1,"Oxygene",IF(R55>0,"Trimix "&TEXT(R54*100,0)&"/"&TEXT(R55*100,0),"Nitrox "&TEXT(R54*100,0))) -> Trimix 7/66

Sheet 3
A2: Pour les trimix, héliair, héliox, l'alarme PPO2 s'active au delà de 1,47 ; si besoin de trimix hyperoxique ( + de 21 % d'O2 ), alors considérer sa PPO2 comme celle d' un nitrox .
C4: REMPILAGE AVEC FONDS DE B50, B20, OU AUTRES :
A5: JP Couloumy | C5: STICK, TAMPON, DEUX TRIMIX OU NITROX DIFFERENTS...
F7: (3) | N7: O2 | O7: Hé | P7: PP max pour O2 et N2 :
I8: Je rajoute : | J8: 0 | L8: bars de : | M8: =IF(O8=0,"N","T") -> T | N8: 10 | O8: 50 | P8: O2 = 1,47 (60m air) et 1,62 paliers (nitrox)
I9: soit : | J9: =IF($N$8+$O$8=0,0,IF(N$8=0,0,($E$19*$J$8)-($L$9+$M$9))) -> 0 | L9: =($N$8*$J$8/100)*$E$19 -> 0.00 | M9: =IF($N$8=0,0,($O$8*$J$8/100)*$E$19) -> 0 | N9: =IF(M8="T","",IF(N8<21,"ERREUR !","")) ->  | P9: N2 = 5,53 ( 60m air )
N10: O2 | O10: Hé
I11: Je rajoute : | J11: 10 | L11: bars de : | M11: =IF(O11=0,"N","T") -> N | N11: 30 | O11: 0
I12: soit : | J12: =IF($N$11+$O$11=0,0,IF(N$11=0,0,($E$19*$J$11)-($L$12+$M$12))) -> 126 | L12: =($N$11*$J$11/100)*$E$19 -> 54.00 | M12: =IF($N$11=0,0,($O$11*$J$11/100)*$E$19) -> 0 | N12: =IF(M11="T","",IF(N11<21,"ERREUR !","")) -> 
I13: Je rajoute : | J13: 50 | L13: bars d' 02
B14: (1) RESTE dans la BOUTEILLE | I14: soit : | J14: =J13*E19 -> 900 | L14: litres d' 02
B16: de PLONGEE : | I16: Je rajoute : | J16: 100 | L16: bars d'hélium | N16: =IF(N17>220,"Pression élevée !","pression finale") -> pression finale
I17: soit : | J17: =J16*E19 -> 1800 | L17: litres d'hélium | N17: =J11+J13+J16+J18+E18+J8 -> 210 | P17: =IF(N17=1,"bar","bars") -> bars
C18: pression restante | E18: 50 | F18: bars | I18: Je rajoute : | J18: 0 | L18: bars d'air | Q18: ZONE DANGER
C19: capacité bouteille | E19: 18 | F19: litres | I19: soit : | J19: =J18*E19 -> 0 | L19: litres d'air | N19: =IF(P29<0.19,"HYPOXIE !!!!!! ","") -> 
I20: donc : | J20: =(21/100*J19) -> 0 | L20: litres 02 | N20: =IF(J28>0,"",IF(P29>1.62,"HYPEROXIE !!!!! ","")) -> 
D21: litres total = | E21: =E19*E18 -> 900 | F21: litres | J21: =79/100*J19 -> 0 | L21: litres N2 | N21: =IF(J28=0,"",IF(P29>1.47,"HYPEROXIE !!!!! ","")) -> HYPEROXIE !!!!!
I22: et : | J22: =J17+F28 -> 1800 | L22: litres d'hélium | N22: =IF(R29>5.53,"NARCOSE !!!!!","") -> 
L23: j'ai donc au total ( après rajout O2, Air, Hé, ou Trimix ) | M23: =E21+J19+J17+J14+J12+L12+M12+J9+L9+M9 -> 3780.0 | N23: litres | O23: entrer la profondeur : plongée ou palier
N24: (4) | O24: =IF(J28>0,"PROF. TRIMIX","PROF. NITROX") -> PROF. TRIMIX
H25: =IF(J27<0,"IMPOSSIBLE !",IF(J28<0,"IMPOSSIBLE !",IF(J29<0,"IMPOSSIBLE !","NOUVEAU MELANGE"))) -> NOUVEAU MELANGE
B26: (2) % MELANGE RESTANT | P26: 140 | R26: m
C27: % O2 = | D27: 21 | E27: L d' 02 = | F27: =D27/100*E21 -> 189 | I27: % O2 = | J27: =(F27+J14+J20+L12+L9)/M23*100 -> 30.24 | L27: %
C28: % Hé = | D28: 0 | E28: L d' Hé = | F28: =D28/100*E21 -> 0 | I28: % Hé = | J28: =(F28+J17+M12+M9)/M23*100 -> 47.62 | L28: % | O28: =IF(O24="PROF. TRIMIX","( Max O2 = 1,47 )",IF(O24="PROF. NITROX","( Max O2 = 1,62 )")) -> ( Max O2 = 1,47 ) | Q28: =IF(O24="TRIMIX","( Max = 5,53 )","") -> 
C29: % N2 = | D29: =IF(D27=0,"0",IF(D28=0,100-D27,IF(D28>0,100-(D27+D28)))) -> 79 | E29: L d' N2 = | F29: =D29/100*E21 -> 711 | I29: % N2 = | J29: =(F29+J21+J12+J9)/M23*100 -> 22.14 | L29: % | O29: PP 02 = | P29: =((P26/10)+1)*J27/100 -> 4.54 | Q29: PP N2 = | R29: =((P26/10)+1)*J29/100 -> 3.32
C30: TOTAL | D30: =D27+D28+D29 -> 100 | E30: TOTAL | F30: =(F27+F28+F29) -> 900 | I30: % total = | J30: =SUM(J27:J29) -> 100.00 | O30: =IF(J28=0,"PeA","PNe") -> PNe
I31: =IF(J28=0," = N","= T") -> = T | J31: =J27 -> 30.2 | L31: =IF(J28=0,"",J28) -> 47.6
P32: =IF(R29<0.79,"O",(10*R29)/0.79-7.9/0.79) -> 32 | R32: m
J36: mémo | P36: 8
I42: ESPACE LIBRE POUR VOS NOTES
L43: hjbvcvcfbxfx
A63: 0
F67: 0

Sheet 5
C2: Fabrication Nitrox et Prof. équivalente Air
B4: JP Couloumy | C4: nitrox désiré | F4: pression désirée
C5: =IF(D5=21,"Air","N") -> N | D5: 30 | F5: 220 | H5: Bars | J5: FABRICATION | L5: =C5 -> N | M5: =D5 -> 30
C7: Pression | D7: Prof. Réelle | E7: PP O2 | F7: PP N2 | G7: PeA | J7: bars d' 02 | K7: bars d' AIR | L7: TOTAL
C8: =(D8+10)/10 -> 1.9 | D8: 9 | E8: =C8*D5% -> 0.57 | F8: =C8*(100-D5)% -> 1.33 | G8: =IF(E8>1.61,"Hyperoxie",((10*F8)/0.79)-(7.9/0.79)) -> 7 m | J8: =((F5*D5)/100)-(((21/79)*F5*(100-D5)))/100 -> 25.1 | K8: =((F5*(100-D5)/100)+((21/79)*((F5*(100-D5)/100)))) -> 194.9 | L8: =K8+J8 -> 220.0
C9: =(D9+10)/10 -> 2.2 | D9: 12 | E9: =C9*D5% -> 0.66 | F9: =C9*(100-D5)% -> 1.54 | G9: =IF(E9>1.61,"Hyperoxie",((10*F9)/0.79)-(7.9/0.79)) -> 9 m
C10: 2.5 | D10: 15 | E10: =C10*D5% -> 0.75 | F10: =C10*(100-D5)% -> 1.75 | G10: 12 m
C11: 2.8 | D11: 18 | E11: =C11*D5% -> 0.84 | F11: =C11*(100-D5)% -> 1.96 | G11: 15 m
C12: 3.1 | D12: 21 | E12: =C12*D5% -> 0.93 | F12: =C12*(100-D5)% -> 2.17 | G12: 17 m | J12: =IF(F5>220,"PRESSION ELEVEE !","") -> 
C13: 3.4 | D13: 24 | E13: =C13*D5% -> 1.02 | F13: =C13*(100-D5)% -> 2.38 | G13: 20 m
C14: 3.7 | D14: 27 | E14: =C14*D5% -> 1.11 | F14: =C14*(100-D5)% -> 2.59 | G14: 23 m
C15: 4 | D15: 30 | E15: =C15*D5% -> 1.20 | F15: =C15*(100-D5)% -> 2.80 | G15: 25 m | K15: Profondeurs
C16: 4.3 | D16: 33 | E16: =C16*D5% -> 1.29 | F16: =C16*(100-D5)% -> 3.01 | G16: 28 m | K16: intermédiaires
C17: 4.6 | D17: 36 | E17: =C17*D5% -> 1.38 | F17: =C17*(100-D5)% -> 3.22 | G17: 31 m
C18: 4.9 | D18: 39 | E18: =C18*D5% -> 1.47 | F18: =C18*(100-D5)% -> 3.43 | G18: 33 m
C19: 5.2 | D19: 42 | E19: =C19*D5% -> 1.56 | F19: =C19*(100-D5)% -> 3.64 | G19: 36 m
C20: =(D20+10)/10 -> 5.5 | D20: 45 | E20: =C20*D5% -> 1.65 | F20: =C20*(100-D5)% -> 3.85 | G20: Hyperoxie
E23: =C5 -> N | F23: =D5 -> 30
C25: Pression | D25: Prof. Réelle | E25: PP O2 | F25: PP N2 | G25: PeA
C26: =(D26+10)/10 -> 1.6 | D26: 6 | E26: =C26*F23% -> 0.48 | F26: =C26*(100-F23)% -> 1.12 | G26: =IF(E26>1.61,"Hyperoxie",((10*F26)/0.79)-(7.9/0.79)) -> 4 m
C27: =(D27+10)/10 -> 1.7 | D27: 7 | E27: =C27*F23% -> 0.51 | F27: =C27*(100-F23)% -> 1.19 | G27: =IF(E27>1.61,"Hyperoxie",((10*F27)/0.79)-(7.9/0.79)) -> 5 m
C28: 1.8 | D28: 8 | E28: =C28*F23% -> 0.54 | F28: =C28*(100-F23)% -> 1.26 | G28: 6 m
C29: 1.9 | D29: 9 | E29: =C29*F23% -> 0.57 | F29: =C29*(100-F23)% -> 1.33 | G29: 7 m
C30: 2 | D30: 10 | E30: =C30*F23% -> 0.60 | F30: =C30*(100-F23)% -> 1.40 | G30: 8 m
C31: 2.1 | D31: 11 | E31: =C31*F23% -> 0.63 | F31: =C31*(100-F23)% -> 1.47 | G31: 9 m
C32: 2.2 | D32: 12 | E32: =C32*F23% -> 0.66 | F32: =C32*(100-F23)% -> 1.54 | G32: 9 m
C33: 2.3 | D33: 13 | E33: =C33*F23% -> 0.69 | F33: =C33*(100-F23)% -> 1.61 | G33: 10 m
C34: 2.4 | D34: 14 | E34: =C34*F23% -> 0.72 | F34: =C34*(100-F23)% -> 1.68 | G34: 11 m
C35: 2.5 | D35: 15 | E35: =C35*F23% -> 0.75 | F35: =C35*(100-F23)% -> 1.75 | G35: 12 m
C36: 2.6 | D36: 16 | E36: =C36*F23% -> 0.78 | F36: =C36*(100-F23)% -> 1.82 | G36: 13 m
C37: 2.7 | D37: 17 | E37: =C37*F23% -> 0.81 | F37: =C37*(100-F23)% -> 1.89 | G37: 14 m
C38: 2.8 | D38: 18 | E38: =C38*F23% -> 0.84 | F38: =C38*(100-F23)% -> 1.96 | G38: 15 m
C39: 2.9 | D39: 19 | E39: =C39*F23% -> 0.87 | F39: =C39*(100-F23)% -> 2.03 | G39: 16 m
C40: 3 | D40: 20 | E40: =C40*F23% -> 0.90 | F40: =C40*(100-F23)% -> 2.10 | G40: 17 m
C41: 3.1 | D41: 21 | E41: =C41*F23% -> 0.93 | F41: =C41*(100-F23)% -> 2.17 | G41: 17 m
C42: 3.2 | D42: 22 | E42: =C42*F23% -> 0.96 | F42: =C42*(100-F23)% -> 2.24 | G42: 18 m
C43: 3.3 | D43: 23 | E43: =C43*F23% -> 0.99 | F43: =C43*(100-F23)% -> 2.31 | G43: 19 m
C44: 3.4 | D44: 24 | E44: =C44*F23% -> 1.02 | F44: =C44*(100-F23)% -> 2.38 | G44: 20 m
C45: 3.5 | D45: 25 | E45: =C45*F23% -> 1.05 | F45: =C45*(100-F23)% -> 2.45 | G45: 21 m
C46: 3.6 | D46: 26 | E46: =C46*F23% -> 1.08 | F46: =C46*(100-F23)% -> 2.52 | G46: 22 m
C47: 3.7 | D47: 27 | E47: =C47*F23% -> 1.11 | F47: =C47*(100-F23)% -> 2.59 | G47: 23 m
C48: 3.8 | D48: 28 | E48: =C48*F23% -> 1.14 | F48: =C48*(100-F23)% -> 2.66 | G48: 24 m
C49: 3.9 | D49: 29 | E49: =C49*F23% -> 1.17 | F49: =C49*(100-F23)% -> 2.73 | G49: 25 m
C50: 4 | D50: 30 | E50: =C50*F23% -> 1.20 | F50: =C50*(100-F23)% -> 2.80 | G50: 25 m
C51: 4.1 | D51: 31 | E51: =C51*F23% -> 1.23 | F51: =C51*(100-F23)% -> 2.87 | G51: 26 m
C52: 4.2 | D52: 32 | E52: =C52*F23% -> 1.26 | F52: =C52*(100-F23)% -> 2.94 | G52: 27 m
C53: 4.3 | D53: 33 | E53: =C53*F23% -> 1.29 | F53: =C53*(100-F23)% -> 3.01 | G53: 28 m
C54: 4.4 | D54: 34 | E54: =C54*F23% -> 1.32 | F54: =C54*(100-F23)% -> 3.08 | G54: 29 m
C55: 4.5 | D55: 35 | E55: =C55*F23% -> 1.35 | F55: =C55*(100-F23)% -> 3.15 | G55: 30 m
C56: 4.6 | D56: 36 | E56: =C56*F23% -> 1.38 | F56: =C56*(100-F23)% -> 3.22 | G56: 31 m
C57: 4.7 | D57: 37 | E57: =C57*F23% -> 1.41 | F57: =C57*(100-F23)% -> 3.29 | G57: 32 m
C58: 4.8 | D58: 38 | E58: =C58*F23% -> 1.44 | F58: =C58*(100-F23)% -> 3.36 | G58: 33 m
C59: 4.9 | D59: 39 | E59: =C59*F23% -> 1.47 | F59: =C59*(100-F23)% -> 3.43 | G59: 33 m
C60: 5 | D60: 40 | E60: =C60*F23% -> 1.50 | F60: =C60*(100-F23)% -> 3.50 | G60: 34 m
C61: 5.1 | D61: 41 | E61: =C61*F23% -> 1.53 | F61: =C61*(100-F23)% -> 3.57 | G61: 35 m
C62: 5.2 | D62: 42 | E62: =C62*F23% -> 1.56 | F62: =C62*(100-F23)% -> 3.64 | G62: 36 m
C63: 5.3 | D63: 43 | E63: =C63*F23% -> 1.59 | F63: =C63*(100-F23)% -> 3.71 | G63: 37 m
C64: 5.4 | D64: 44 | E64: =C64*F23% -> 1.62 | F64: =C64*(100-F23)% -> 3.78 | G64: Hyperoxie
C65: 5.5 | D65: 45 | E65: =C65*F23% -> 1.65 | F65: =C65*(100-F23)% -> 3.85 | G65: Hyperoxie

Sheet 6
E1: AUTONOMIE et DISTANCE
A2: JP Couloumy
P4: =G23 -> 2,904L
K8: et une conso surface de :
B9: Température à chaud = | E9: 40 | F9: ° | G9: Pression | H9: 200 | I9: bars | M9: 28 | O9: L / mn
K10: à une profondeur de :
B11: Température à froid = | E11: 11 | F11: ° | G11: Pression | H11: =H9*(273+E11)/(273+E9) -> 181 | I11: bars | M11: 26 | O11: m
M13: et une vitesse de :
D15: 1 / | E15: 3 | H15: =E15 -> 3 | L15: palme | O15: scooter
G16: avec BI, TRI, QUADRI, RELAIS | K16: 16 | L16: 18 | M16: 20 | N16: 22 | O16: 40
H17: départ | K17: m/mn | L17: m/mn | M17: m/mn | N17: m/mn | O17: m/mn
B18: BARS | D18: =H11 -> 181 | G18: nombre de | H18: =D18 -> 181 bars | I18: capacités | K18: =($G23/((M9*($M11+10))/10))*K16 -> 461 | L18: =($G23/((M9*($M11+10))/10))*L16 -> 518 | M18: =($G23/((M9*($M11+10))/10))*M16 -> 576 | N18: =($G23/((M9*($M11+10))/10))*N16 -> 634 | O18: =($G23/((M9*($M11+10))/10))*O16 -> 1152
B19: bouteille pleine | G19: bouteilles | K19: m | L19: m | M19: m | N19: m | O19: m
B20: =IF(E15<3,"REGLE DES 1/3, 1/4, 1/5 ?",IF(E15>5,"REGLE DES 1/3, 1/4, 1/5 ?","")) ->  | G20: 4 | H20: X | I20: 12 | L20: Temps aller =
G21: 0 | H21: X | I21: 0 | M21: =K18/15 -> 31 | N21: mn
B22: RETOUR A | D22: =IF(E15=3,D18*2/3,IF(E15=4,D18*3/4,IF(E15=5,D18*4/5,""))) -> 121 | E22: Bars | H22: X | K22: DISTANCE TOTALE SI TRAVERSEE
B23: ( SUR CHAQUE BOUTEILLE ) | G23: =((D18-D22)*I20*G20)+((D18-D22)*I21*G21)+((D18-D22)*I22*G22) -> 2904 | I23: litres | K23: =K18*2 -> 922 m | L23: =L18*2 -> 1,037 m | M23: =M18*2 -> 1,152 m | N23: =N18*2 -> 1,267 m | O23: =O18*2 -> 2,304 m
K24: Temps total si traversée ( genre Cabouy/ Poumeyssen )
M25: =+M21*2 -> 61 | N25: mn
H27: mémo
G32: ESPACE LIBRE POUR VOS NOTES

Sheet 6bis
E1: MULTI PROFONDEURS (6 bis)
K2: Pour prévoir l'autonomie sur une plongée multi profondeurs,
E3: Profil du trajet ALLER | K3: vous devez connaître le profil ( temps passé à chaque profondeur ).
E4: Vous avez programmé : | K4: Entrez donc chaque temps à chaque profondeur, pour savoir si vous avez
E5: régle 1 / | F5: ='6'!E15 -> 3 | G5: et | H5: conso surface | J5: ='6'!M9 -> 28Lmn | K5: prévu suffisamment de bouteilles.
E6: gaz disponible pour l'aller | I6: ='6'!G23 -> 2904 | J6: Litres | K6: Si votre autonomie est dépassée, une alarme apparaîtra !
F7: entrer le temps passé | K7: si besoin, réajustez les bouteilles dans le tableau précédent
F8: aux profondeurs principales | K8: ou réduisez le dernier temps dans celui-ci . ( donc la distance ! )
F9: prof. | H9: temps | I9: =H162 -> 0
C10: Faire défiler le tableau | L10: exemple
E11: 1 | F11: 0 | G11: m | I11: =IF($J$162>$I$6,"stop !","mn") -> mn | J11: ='6bis'!$J$5*E11*H11 -> 0Lmn | L11: profil multi profondeurs :
E12: 1.2 | F12: 2 | G12: m | I12: mn | J12: ='6bis'!$J$5*E12*H12 -> 0Lmn | L12: 6 | M12: m | N12: 2 | O12: mn
E13: 1.4 | F13: 4 | G13: m | I13: mn | J13: ='6bis'!$J$5*E13*H13 -> 0Lmn | L13: 18 | M13: m | N13: 3+2=5 | O13: mn
E14: 1.6 | F14: 6 | G14: m | I14: mn | J14: ='6bis'!$J$5*E14*H14 -> 0Lmn | L14: 20 | M14: m | O14: mn
E15: 1.8 | F15: 8 | G15: m | I15: mn | J15: ='6bis'!$J$5*E15*H15 -> 0Lmn | L15: 30 | M15: m | N15: 10 | O15: mn
E16: 2 | F16: 10 | G16: m | I16: mn | J16: ='6bis'!$J$5*E16*H16 -> 0Lmn | L16: 32 | M16: m | O16: mn
E17: 2.2 | F17: 12 | G17: m | I17: mn | J17: ='6bis'!$J$5*E17*H17 -> 0Lmn | L17: 46 | M17: m | N17: 6 | O17: mn
E18: 2.4 | F18: 14 | G18: m | I18: mn | J18: ='6bis'!$J$5*E18*H18 -> 0Lmn | L18: 60 | M18: m | N18: 5 | O18: mn
B19: trajet aller | E19: 2.6 | F19: 16 | G19: m | I19: mn | J19: ='6bis'!$J$5*E19*H19 -> 0Lmn | Q19: retour
B20: gaz disponible | D20: =$I$6 -> 2,904L | E20: 2.8 | F20: 18 | G20: m | I20: mn | J20: ='6bis'!$J$5*E20*H20 -> 0Lmn | K20: =IF($J$162>$I$6,"AUTONOMIE DEPASSEE !","") -> 
B21: gaz consommé | D21: =$J$162 -> 0L | E21: 3 | F21: 20 | G21: m | I21: mn | J21: ='6bis'!$J$5*E21*H21 -> 0Lmn
B22: temps aller | D22: =$H$162 -> 0mn | E22: 3.2 | F22: 22 | G22: m | I22: mn | J22: ='6bis'!$J$5*E22*H22 -> 0Lmn
E23: 3.4 | F23: 24 | G23: m | I23: mn | J23: ='6bis'!$J$5*E23*H23 -> 0Lmn
E24: 3.6 | F24: 26 | G24: m | I24: mn | J24: ='6bis'!$J$5*E24*H24 -> 0Lmn
E25: 3.8 | F25: 28 | G25: m | I25: mn | J25: ='6bis'!$J$5*E25*H25 -> 0Lmn
E26: 4 | F26: 30 | G26: m | I26: mn | J26: ='6bis'!$J$5*E26*H26 -> 0Lmn
E27: 4.2 | F27: 32 | G27: m | I27: mn | J27: ='6bis'!$J$5*E27*H27 -> 0Lmn
E28: 4.4 | F28: 34 | G28: m | I28: mn | J28: ='6bis'!$J$5*E28*H28 -> 0Lmn
E29: 4.6 | F29: 36 | G29: m | I29: mn | J29: ='6bis'!$J$5*E29*H29 -> 0Lmn
E30: 4.8 | F30: 38 | G30: m | I30: mn | J30: ='6bis'!$J$5*E30*H30 -> 0Lmn
E31: 5 | F31: 40 | G31: m | I31: mn | J31: ='6bis'!$J$5*E31*H31 -> 0Lmn
E32: 5.2 | F32: 42 | G32: m | I32: mn | J32: ='6bis'!$J$5*E32*H32 -> 0Lmn
E33: 5.4 | F33: 44 | G33: m | I33: mn | J33: ='6bis'!$J$5*E33*H33 -> 0Lmn
E34: 5.6 | F34: 46 | G34: m | I34: mn | J34: ='6bis'!$J$5*E34*H34 -> 0Lmn
E35: 5.8 | F35: 48 | G35: m | I35: mn | J35: ='6bis'!$J$5*E35*H35 -> 0Lmn
E36: 6 | F36: 50 | G36: m | I36: mn | J36: ='6bis'!$J$5*E36*H36 -> 0Lmn
B37: trajet aller | E37: 6.2 | F37: 52 | G37: m | I37: mn | J37: ='6bis'!$J$5*E37*H37 -> 0Lmn
B38: gaz disponible | D38: =$I$6 -> 2,904L | E38: 6.4 | F38: 54 | G38: m | I38: mn | J38: ='6bis'!$J$5*E38*H38 -> 0Lmn | K38: =IF($J$162>$I$6,"AUTONOMIE DEPASSEE !","") -> 
B39: gaz consommé | D39: =$J$162 -> 0L | E39: 6.6 | F39: 56 | G39: m | I39: mn | J39: ='6bis'!$J$5*E39*H39 -> 0Lmn
B40: temps aller | D40: =$H$162 -> 0mn | E40: 6.8 | F40: 58 | G40: m | I40: mn | J40: ='6bis'!$J$5*E40*H40 -> 0Lmn
E41: 7 | F41: 60 | G41: m | I41: mn | J41: ='6bis'!$J$5*E41*H41 -> 0Lmn
E42: 7.2 | F42: 62 | G42: m | I42: mn | J42: ='6bis'!$J$5*E42*H42 -> 0Lmn
E43: 7.4 | F43: 64 | G43: m | I43: =IF($J$162>$I$6,"stop !","mn") -> mn | J43: ='6bis'!$J$5*E43*H43 -> 0Lmn
E44: 7.6 | F44: 66 | G44: m | I44: mn | J44: ='6bis'!$J$5*E44*H44 -> 0Lmn
E45: 7.8 | F45: 68 | G45: m | I45: mn | J45: ='6bis'!$J$5*E45*H45 -> 0Lmn
E46: 8 | F46: 70 | G46: m | I46: mn | J46: ='6bis'!$J$5*E46*H46 -> 0Lmn
E47: 8.2 | F47: 72 | G47: m | I47: mn | J47: ='6bis'!$J$5*E47*H47 -> 0Lmn
E48: 8.4 | F48: 74 | G48: m | I48: mn | J48: ='6bis'!$J$5*E48*H48 -> 0Lmn
E49: 8.6 | F49: 76 | G49: m | I49: mn | J49: ='6bis'!$J$5*E49*H49 -> 0Lmn
E50: 8.8 | F50: 78 | G50: m | I50: mn | J50: ='6bis'!$J$5*E50*H50 -> 0Lmn
E51: 9 | F51: 80 | G51: m | I51: mn | J51: ='6bis'!$J$5*E51*H51 -> 0Lmn
E52: 9.2 | F52: 82 | G52: m | I52: mn | J52: ='6bis'!$J$5*E52*H52 -> 0Lmn
E53: 9.4 | F53: 84 | G53: m | I53: mn | J53: ='6bis'!$J$5*E53*H53 -> 0Lmn
E54: 9.6 | F54: 86 | G54: m | I54: mn | J54: ='6bis'!$J$5*E54*H54 -> 0Lmn
B55: trajet aller | E55: 9.8 | F55: 88 | G55: m | I55: mn | J55: ='6bis'!$J$5*E55*H55 -> 0Lmn
B56: gaz disponible | D56: =$I$6 -> 2,904L | E56: 10 | F56: 90 | G56: m | I56: mn | J56: ='6bis'!$J$5*E56*H56 -> 0Lmn | K56: =IF($J$162>$I$6,"AUTONOMIE DEPASSEE !","") -> 
B57: gaz consommé | D57: =$J$162 -> 0L | E57: 10.2 | F57: 92 | G57: m | I57: mn | J57: ='6bis'!$J$5*E57*H57 -> 0Lmn
B58: temps aller | D58: =$H$162 -> 0mn | E58: 10.4 | F58: 94 | G58: m | I58: mn | J58: ='6bis'!$J$5*E58*H58 -> 0Lmn
E59: 10.6 | F59: 96 | G59: m | I59: mn | J59: ='6bis'!$J$5*E59*H59 -> 0Lmn
E60: 10.8 | F60: 98 | G60: m | I60: mn | J60: ='6bis'!$J$5*E60*H60 -> 0Lmn
E61: 11 | F61: 100 | G61: m | I61: mn | J61: ='6bis'!$J$5*E61*H61 -> 0Lmn
E62: 11.2 | F62: 102 | G62: m | I62: mn | J62: ='6bis'!$J$5*E62*H62 -> 0Lmn
E63: 11.4 | F63: 104 | G63: m | I63: mn | J63: ='6bis'!$J$5*E63*H63 -> 0Lmn
E64: 11.6 | F64: 106 | G64: m | I64: mn | J64: ='6bis'!$J$5*E64*H64 -> 0Lmn
E65: 11.8 | F65: 108 | G65: m | I65: mn | J65: ='6bis'!$J$5*E65*H65 -> 0Lmn
E66: 12 | F66: 110 | G66: m | I66: mn | J66: ='6bis'!$J$5*E66*H66 -> 0Lmn
E67: 12.2 | F67: 112 | G67: m | I67: mn | J67: ='6bis'!$J$5*E67*H67 -> 0Lmn
E68: 12.4 | F68: 114 | G68: m | I68: mn | J68: ='6bis'!$J$5*E68*H68 -> 0Lmn
E69: 12.6 | F69: 116 | G69: m | I69: mn | J69: ='6bis'!$J$5*E69*H69 -> 0Lmn
E70: 12.8 | F70: 118 | G70: m | I70: mn | J70: ='6bis'!$J$5*E70*H70 -> 0Lmn
E71: 13 | F71: 120 | G71: m | I71: mn | J71: ='6bis'!$J$5*E71*H71 -> 0Lmn
E72: 13.2 | F72: 122 | G72: m | I72: mn | J72: ='6bis'!$J$5*E72*H72 -> 0Lmn
B73: trajet aller | E73: 13.4 | F73: 124 | G73: m | I73: mn | J73: ='6bis'!$J$5*E73*H73 -> 0Lmn
B74: gaz disponible | D74: =$I$6 -> 2,904L | E74: 13.6 | F74: 126 | G74: m | I74: mn | J74: ='6bis'!$J$5*E74*H74 -> 0Lmn | K74: =IF($J$162>$I$6,"AUTONOMIE DEPASSEE !","") -> 
B75: gaz consommé | D75: =$J$162 -> 0L | E75: 13.8 | F75: 128 | G75: m | I75: =IF($J$162>$I$6,"stop !","mn") -> mn | J75: ='6bis'!$J$5*E75*H75 -> 0Lmn
B76: temps aller | D76: =$H$162 -> 0mn | E76: 14 | F76: 130 | G76: m | I76: mn | J76: ='6bis'!$J$5*E76*H76 -> 0Lmn
E77: 14.2 | F77: 132 | G77: m | I77: mn | J77: ='6bis'!$J$5*E77*H77 -> 0Lmn
E78: 14.4 | F78: 134 | G78: m | I78: mn | J78: ='6bis'!$J$5*E78*H78 -> 0Lmn
E79: 14.6 | F79: 136 | G79: m | I79: mn | J79: ='6bis'!$J$5*E79*H79 -> 0Lmn
E80: 14.8 | F80: 138 | G80: m | I80: mn | J80: ='6bis'!$J$5*E80*H80 -> 0Lmn
E81: 15 | F81: 140 | G81: m | I81: mn | J81: ='6bis'!$J$5*E81*H81 -> 0Lmn
E82: 15.2 | F82: 142 | G82: m | I82: mn | J82: ='6bis'!$J$5*E82*H82 -> 0Lmn
E83: 15.4 | F83: 144 | G83: m | I83: mn | J83: ='6bis'!$J$5*E83*H83 -> 0Lmn
E84: 15.6 | F84: 146 | G84: m | I84: mn | J84: ='6bis'!$J$5*E84*H84 -> 0Lmn
E85: 15.8 | F85: 148 | G85: m | I85: mn | J85: ='6bis'!$J$5*E85*H85 -> 0Lmn
E86: 16 | F86: 150 | G86: m | I86: mn | J86: ='6bis'!$J$5*E86*H86 -> 0Lmn
E87: 16.2 | F87: 152 | G87: m | I87: mn | J87: ='6bis'!$J$5*E87*H87 -> 0Lmn
E88: 16.4 | F88: 154 | G88: m | I88: mn | J88: ='6bis'!$J$5*E88*H88 -> 0Lmn
E89: 16.6 | F89: 156 | G89: m | I89: mn | J89: ='6bis'!$J$5*E89*H89 -> 0Lmn
E90: 16.8 | F90: 158 | G90: m | I90: mn | J90: ='6bis'!$J$5*E90*H90 -> 0Lmn
B91: trajet aller | E91: 17 | F91: 160 | G91: m | I91: mn | J91: ='6bis'!$J$5*E91*H91 -> 0Lmn
B92: gaz disponible | D92: =$I$6 -> 2,904L | E92: 17.2 | F92: 162 | G92: m | I92: mn | J92: ='6bis'!$J$5*E92*H92 -> 0Lmn | K92: =IF($J$162>$I$6,"AUTONOMIE DEPASSEE !","") -> 
B93: gaz consommé | D93: =$J$162 -> 0L | E93: 17.4 | F93: 164 | G93: m | I93: mn | J93: ='6bis'!$J$5*E93*H93 -> 0Lmn
B94: temps aller | D94: =$H$162 -> 0mn | E94: 17.6 | F94: 166 | G94: m | I94: mn | J94: ='6bis'!$J$5*E94*H94 -> 0Lmn
E95: 17.8 | F95: 168 | G95: m | I95: mn | J95: ='6bis'!$J$5*E95*H95 -> 0Lmn
E96: 18 | F96: 170 | G96: m | I96: mn | J96: ='6bis'!$J$5*E96*H96 -> 0Lmn
E97: 18.2 | F97: 172 | G97: m | I97: mn | J97: ='6bis'!$J$5*E97*H97 -> 0Lmn
E98: 18.4 | F98: 174 | G98: m | I98: mn | J98: ='6bis'!$J$5*E98*H98 -> 0Lmn
E99: 18.6 | F99: 176 | G99: m | I99: mn | J99: ='6bis'!$J$5*E99*H99 -> 0Lmn
E100: 18.8 | F100: 178 | G100: m | I100: mn | J100: ='6bis'!$J$5*E100*H100 -> 0Lmn
E101: 19 | F101: 180 | G101: m | I101: mn | J101: ='6bis'!$J$5*E101*H101 -> 0Lmn
E102: 19.2 | F102: 182 | G102: m | I102: mn | J102: ='6bis'!$J$5*E102*H102 -> 0Lmn
E103: 19.4 | F103: 184 | G103: m | I103: mn | J103: ='6bis'!$J$5*E103*H103 -> 0Lmn
E104: 19.6 | F104: 186 | G104: m | I104: mn | J104: ='6bis'!$J$5*E104*H104 -> 0Lmn
E105: 19.8 | F105: 188 | G105: m | I105: mn | J105: ='6bis'!$J$5*E105*H105 -> 0Lmn
E106: 20 | F106: 190 | G106: m | I106: mn | J106: ='6bis'!$J$5*E106*H106 -> 0Lmn
E107: 20.2 | F107: 192 | G107: m | I107: =IF($J$162>$I$6,"stop !","mn") -> mn | J107: ='6bis'!$J$5*E107*H107 -> 0Lmn
E108: 20.4 | F108: 194 | G108: m | I108: mn | J108: ='6bis'!$J$5*E108*H108 -> 0Lmn
E109: 20.6 | F109: 196 | G109: m | I109: mn | J109: ='6bis'!$J$5*E109*H109 -> 0Lmn
B110: trajet aller | E110: 20.8 | F110: 198 | G110: m | I110: mn | J110: ='6bis'!$J$5*E110*H110 -> 0Lmn | K110: =IF($J$162>$I$6,"AUTONOMIE DEPASSEE !","") -> 
B111: gaz disponible | D111: =$I$6 -> 2,904L | E111: 21 | F111: 200 | G111: m | I111: mn | J111: ='6bis'!$J$5*E111*H111 -> 0Lmn
B112: gaz consommé | D112: =$J$162 -> 0L | E112: 21.2 | F112: 202 | G112: m | I112: mn | J112: ='6bis'!$J$5*E112*H112 -> 0Lmn
B113: temps aller | D113: =$H$162 -> 0mn | E113: 21.4 | F113: 204 | G113: m | I113: mn | J113: ='6bis'!$J$5*E113*H113 -> 0Lmn
E114: 21.6 | F114: 206 | G114: m | I114: mn | J114: ='6bis'!$J$5*E114*H114 -> 0Lmn
E115: 21.8 | F115: 208 | G115: m | I115: mn | J115: ='6bis'!$J$5*E115*H115 -> 0Lmn
E116: 22 | F116: 210 | G116: m | I116: mn | J116: ='6bis'!$J$5*E116*H116 -> 0Lmn
E117: 22.2 | F117: 212 | G117: m | I117: mn | J117: ='6bis'!$J$5*E117*H117 -> 0Lmn
E118: 22.4 | F118: 214 | G118: m | I118: mn | J118: ='6bis'!$J$5*E118*H118 -> 0Lmn
E119: 22.6 | F119: 216 | G119: m | I119: mn | J119: ='6bis'!$J$5*E119*H119 -> 0Lmn
E120: 22.8 | F120: 218 | G120: m | I120: mn | J120: ='6bis'!$J$5*E120*H120 -> 0Lmn
E121: 23 | F121: 220 | G121: m | I121: mn | J121: ='6bis'!$J$5*E121*H121 -> 0Lmn
E122: 23.2 | F122: 222 | G122: m | I122: mn | J122: ='6bis'!$J$5*E122*H122 -> 0Lmn
E123: 23.4 | F123: 224 | G123: m | I123: mn | J123: ='6bis'!$J$5*E123*H123 -> 0Lmn
E124: 23.6 | F124: 226 | G124: m | I124: mn | J124: ='6bis'!$J$5*E124*H124 -> 0Lmn
E125: 23.8 | F125: 228 | G125: m | I125: mn | J125: ='6bis'!$J$5*E125*H125 -> 0Lmn
E126: 24 | F126: 230 | G126: m | I126: mn | J126: ='6bis'!$J$5*E126*H126 -> 0Lmn
B127: trajet aller | E127: 24.2 | F127: 232 | G127: m | I127: mn | J127: ='6bis'!$J$5*E127*H127 -> 0Lmn
B128: gaz disponible | D128: =$I$6 -> 2,904L | E128: 24.4 | F128: 234 | G128: m | I128: mn | J128: ='6bis'!$J$5*E128*H128 -> 0Lmn | K128: =IF($J$162>$I$6,"AUTONOMIE DEPASSEE !","") -> 
B129: gaz consommé | D129: =$J$162 -> 0L | E129: 24.6 | F129: 236 | G129: m | I129: mn | J129: ='6bis'!$J$5*E129*H129 -> 0Lmn
B130: temps aller | D130: =$H$162 -> 0mn | E130: 24.8 | F130: 238 | G130: m | I130: mn | J130: ='6bis'!$J$5*E130*H130 -> 0Lmn
E131: 25 | F131: 240 | G131: m | I131: mn | J131: ='6bis'!$J$5*E131*H131 -> 0Lmn
E132: 25.2 | F132: 242 | G132: m | I132: mn | J132: ='6bis'!$J$5*E132*H132 -> 0Lmn
E133: 25.4 | F133: 244 | G133: m | I133: mn | J133: ='6bis'!$J$5*E133*H133 -> 0Lmn
E134: 25.6 | F134: 246 | G134: m | I134: mn | J134: ='6bis'!$J$5*E134*H134 -> 0Lmn
E135: 25.8 | F135: 248 | G135: m | I135: mn | J135: ='6bis'!$J$5*E135*H135 -> 0Lmn
E136: 26 | F136: 250 | G136: m | I136: mn | J136: ='6bis'!$J$5*E136*H136 -> 0Lmn
E137: 26.2 | F137: 252 | G137: m | I137: mn | J137: ='6bis'!$J$5*E137*H137 -> 0Lmn
E138: 26.4 | F138: 254 | G138: m | I138: mn | J138: ='6bis'!$J$5*E138*H138 -> 0Lmn
E139: 26.6 | F139: 256 | G139: m | I139: =IF($J$162>$I$6,"stop !","mn") -> mn | J139: ='6bis'!$J$5*E139*H139 -> 0Lmn
E140: 26.8 | F140: 258 | G140: m | I140: mn | J140: ='6bis'!$J$5*E140*H140 -> 0Lmn
E141: 27 | F141: 260 | G141: m | I141: mn | J141: ='6bis'!$J$5*E141*H141 -> 0Lmn
E142: 27.2 | F142: 262 | G142: m | I142: mn | J142: ='6bis'!$J$5*E142*H142 -> 0Lmn
E143: 27.4 | F143: 264 | G143: m | I143: mn | J143: ='6bis'!$J$5*E143*H143 -> 0Lmn
E144: 27.6 | F144: 266 | G144: m | I144: mn | J144: ='6bis'!$J$5*E144*H144 -> 0Lmn
B145: trajet aller | E145: 27.8 | F145: 268 | G145: m | I145: mn | J145: ='6bis'!$J$5*E145*H145 -> 0Lmn
B146: gaz disponible | D146: =$I$6 -> 2,904L | E146: 28 | F146: 270 | G146: m | I146: mn | J146: ='6bis'!$J$5*E146*H146 -> 0Lmn | K146: =IF($J$162>$I$6,"AUTONOMIE DEPASSEE !","") -> 
B147: gaz consommé | D147: =$J$162 -> 0L | E147: 28.2 | F147: 272 | G147: m | I147: mn | J147: ='6bis'!$J$5*E147*H147 -> 0Lmn
B148: temps aller | D148: =$H$162 -> 0mn | E148: 28.4 | F148: 274 | G148: m | I148: mn | J148: ='6bis'!$J$5*E148*H148 -> 0Lmn
E149: 28.6 | F149: 276 | G149: m | I149: mn | J149: ='6bis'!$J$5*E149*H149 -> 0Lmn
E150: 28.8 | F150: 278 | G150: m | I150: mn | J150: ='6bis'!$J$5*E150*H150 -> 0Lmn
E151: 29 | F151: 280 | G151: m | I151: mn | J151: ='6bis'!$J$5*E151*H151 -> 0Lmn
E152: 29.2 | F152: 282 | G152: m | I152: mn | J152: ='6bis'!$J$5*E152*H152 -> 0Lmn
E153: 29.4 | F153: 284 | G153: m | I153: mn | J153: ='6bis'!$J$5*E153*H153 -> 0Lmn
E154: 29.6 | F154: 286 | G154: m | I154: mn | J154: ='6bis'!$J$5*E154*H154 -> 0Lmn
E155: 29.8 | F155: 288 | G155: m | I155: mn | J155: ='6bis'!$J$5*E155*H155 -> 0Lmn
E156: 30 | F156: 290 | G156: m | I156: mn | J156: ='6bis'!$J$5*E156*H156 -> 0Lmn
E157: 30.2 | F157: 292 | G157: m | I157: mn | J157: ='6bis'!$J$5*E157*H157 -> 0Lmn
E158: 30.4 | F158: 294 | G158: m | I158: mn | J158: ='6bis'!$J$5*E158*H158 -> 0Lmn
E159: 30.6 | F159: 296 | G159: m | I159: mn | J159: ='6bis'!$J$5*E159*H159 -> 0Lmn
E160: 30.8 | F160: 298 | G160: m | I160: mn | J160: ='6bis'!$J$5*E160*H160 -> 0Lmn
E161: 31 | F161: 300 | G161: m | I161: mn | J161: ='6bis'!$J$5*E161*H161 -> 0Lmn
H162: =SUM(H11:H161) -> 0 | J162: =SUM(J10:J161) -> 0

Sheet 7
A1: JP Couloumy
C3: CALCUL des BOUTEILLES : Bi, Tri, Quadri, Relais
H7: =IF(Q12="","(profondeur Vitesse Distance) ne servent à rien si multi profondeurs",IF(G10="","","(profondeur Vitesse Distance) ne servent à rien si multi profondeurs")) -> (profondeur Vitesse Distance) ne servent à rien si multi profondeurs
A8: ( lire 1) | D8: =IF(Q12="$","conso surface $","consos surface") -> consos surface | G8: =IF(Q12="","profondeur",IF(G9=0,"",IF(Q12="$","faire suppr","profondeur"))) -> profondeur | J8: =IF(Q12="","vitesse",IF(J9=0,"",IF(Q12="$","faire suppr","vitesse"))) -> vitesse | N8: =IF(Q12="","distance aller",IF(N9=0,"",IF(Q12="$","faire suppr","distance aller"))) -> distance aller
D9: 25 L/mn | G9: 30 m | J9: 18 m/mn | N9: 600 m
G10: =IF(G9+J9+N9=0,"",IF(Q12="$","Pour éviter les confusions si $, taper suppr dans ces 3 cellules jaunes !","")) -> 
D11: =IF(Q12="$","temps aller $","temps aller") -> temps aller | G11: =IF(Q12="$","conso aller $","consos aller") -> consos aller | I11: =IF(Q12="$","",IF(OR(D9=0,G9=0,J9=0,N9=0),"Profil carré ! Vous devez renseigner","")) ->  | N11: ( si multi profondeurs )
D12: =IF(Q12="$",G185,(1/J9*N9)) -> 33 mm | G12: =IF(Q12="$",J185,((G9/10)+1)*D9*D12) -> 3333 L | I12: =IF(Q12="$","",IF(OR(D9=0,G9=0,J9=0,N9=0),"les quatre cellules jaunes au dessus.","")) ->  | N12: taper $ ici
N13: Entrer la conso surface + la règle
J14: =IF(Q12="$","Règle des ($)","Règle des") -> Règle des | N14: Le profil (temps tableau du bas)
C15: =IF(Q12="$","Bouteilles nécessaires $","Bouteilles nécessaires") -> Bouteilles nécessaires | J15: 1 | K15: / | L15: 3 | N15: Puis les bouteilles
H16: Rectification pour pressions élevées
A18: g12*L15 | B18: =G12*L15 -> 10000 | L18: =IF(B19=0,"",IF(G12=0,"",IF($G$12*$L$15<=B19,"","Pas suffisant"))) -> 
A19: total bout | B19: =A20+A22+A23+A24 -> 10008 | D19: =IF(Q12="$","Bouteilles $","Bouteilles") -> Bouteilles | F19: =IF(Q12="$","Nombre $","Nombre") -> Nombre | H19: =IF(Q12="$","Pressions $","Pressions") -> Pressions | I19: =IF(I18=1,"Gonfler à","") ->  | J19: =IF(I18=1,"Retour à","") -> 
A20: =D20*H20*F20 -> 3600 | D20: 9.0 L | E20: =IF(D20=0,"","X") -> X | F20: 2 | G20: =IF(F20=0,"","à") -> à | H20: 200 B | I20: =IF(A20=0,"",IF($I$18=0,"retour à",IF(H20>=266,H20+30,IF(H20>=246,H20+25,IF(H20>=231,H20+20,IF(H20>=216,H20+15,IF(H20>=200,H20+10,H20))))))) -> retour à | J20: =IF(A20=0,"",H20-H20/$L$15) -> 133 Bars | L20: =IF(B19=0,"",IF(G12=0,"",IF($G$12*$L$15<=B19,"OK","il manque"))) -> OK
A22: =D22*H22*F22 -> 3924 | D22: 9.0 L | E22: =IF(D22=0,"","X") -> X | F22: 2 | G22: =IF(F22=0,"","à") -> à | H22: 218 B | I22: =IF(A22=0,"",IF($I$18=0,"retour à",IF(H22>=266,H22+30,IF(H22>=246,H22+25,IF(H22>=231,H22+20,IF(H22>=216,H22+15,IF(H22>=200,H22+10,H22))))))) -> retour à | J22: =IF(A22=0,"",H22-H22/$L$15) -> 145 Bars | L22: =IF(B19=0,"",IF(G12=0,"",IF(L20="OK","",($G$12*$L$15)-(B19)))) ->  | S22: Zone libre
A23: =D23*H23*F23 -> 2484 | D23: 12.0 L | E23: =IF(D23=0,"","X") -> X | F23: 1 | G23: =IF(F23=0,"","à") -> à | H23: 207 B | I23: =IF(A23=0,"",IF($I$18=0,"retour à",IF(H23>=266,H23+30,IF(H23>=246,H23+25,IF(H23>=231,H23+20,IF(H23>=216,H23+15,IF(H23>=200,H23+10,H23))))))) -> retour à | J23: =IF(A23=0,"",H23-H23/$L$15) -> 138 Bars | L23: =IF(B19=0,"",IF(G12=0,"",IF($G$12*$L$15<=B19,"il y a même",""))) -> il y a même
A24: =D24*H24*F24 -> 0 | E24: =IF(D24=0,"","X") ->  | G24: =IF(F24=0,"","à") ->  | I24: =IF(A24=0,"",IF($I$18=0,"retour à",IF(H24>=266,H24+30,IF(H24>=246,H24+25,IF(H24>=231,H24+20,IF(H24>=216,H24+15,IF(H24>=200,H24+10,H24))))))) ->  | J24: =IF(A24=0,"",H24-H24/$L$15) ->  | L24: =IF(B19=0,"",IF(G12=0,"",IF(L20="OK",B19-($G$12*$L$15),""))) -> 8 | M24: =IF(B19=0,"",IF(G12=0,"",IF($G$12*$L$15<=B19,"L",""))) -> L | N24: =IF(B19=0,"",IF(G12=0,"",IF($G$12*$L$15<=B19," en plus !",""))) -> en plus !
C25: =IF(G12=0,"",IF(B19=0,"",IF(L20="il manque","",IF(OR(F20=1,F22=1,F23=1,F24=1),"A contrôler avec le simulateur !","")))) -> A contrôler avec le simulateur ! | L25: =IF(G12=0,"",IF(B19=0,"",IF(L20="il manque","",IF(L24>=21," Descendre entre 0 et 20 L",IF(L24<10,"c'est très bien ça !",IF(L24<21,"c'est bien !")))))) -> c'est très bien ça !
L26: =IF(G12=0,"",IF(B19=0,"",IF(L20="il manque","",IF(L24>=21,"pour la précision du simulateur","")))) -> 
L27: =IF(G12=0,"",IF(B19=0,"",IF(L20="il manque","",IF(L24>=21,"et des pressions de retour","")))) -> 
A28: Clic | D28: =IF(Q12="$","PROFIL PLONGEE MULTI PROFONDEURS $","Tableau pour multi profondeurs (si $)") -> Tableau pour multi profondeurs (si $)
A29: Fenêtre
A30: Figer les volets | D30: =IF(Q12="$","entrer le temps passé aux profondeurs principales","" ) ->  | K30: !
D31: =IF(Q12="$","(puis vos bouteilles au tableau en dessus)","") ->  | L31: =IF(Q12="$","Simulateur de panne $","Simulateur de panne") -> Simulateur de panne
A32: Fenêtre | D32: =IF(Q12="$","prof. $","") ->  | G32: =IF(Q12="$","temps $","") ->  | I32: =IF(Q12="","",IF(G185=0,0,G185)) ->  | L32: taper 1 dans la cellule jaune
A33: Libérer les volets | L33: à droite de la bouteille supposée en panne.
C34: 1 | D34: 0 | E34: m | I34: =IF($M$163>$J$4,"stop !","mn") -> mn | J34: =$D$9*C34*G34 -> 0Lmn | L34: (maxi 1 bouteille en panne par ligne !) | S34: Zone libre
C35: 1.2 | D35: 2 | E35: m | I35: mn | J35: 0Lmn | L35: =IF(G12=0,"",IF(L20="il manque","",IF(L24>21,"",IF(D20*F20*H20=0,"",D20)))) -> 9 L | M35: =IF(G12=0,"",IF(L20="il manque","",IF(L24>21,"",IF(D20*F20*H20=0,"",F20)))) -> 2 | N35: =IF(G12=0,"",IF(L20="il manque","",IF(L24>21,"",IF(D20*F20*H20=0,"",H20)))) -> 200 B
C36: 1.4 | D36: 4 | E36: m | I36: mn | J36: 0Lmn | L36: =IF(G12=0,"",IF(L20="il manque","",IF(L24>21,"",IF(D22*F22*H22=0,"",D22)))) -> 9 L | M36: =IF(G12=0,"",IF(L20="il manque","",IF(L24>21,"",IF(D22*F22*H22=0,"",F22)))) -> 2 | N36: =IF(G12=0,"",IF(L20="il manque","",IF(L24>21,"",IF(D22*F22*H22=0,"",H22)))) -> 218 B
C37: 1.6 | D37: 6 | E37: m | I37: mn | J37: 0Lmn | L37: =IF(G12=0,"",IF(L20="il manque","",IF(L24>21,"",IF(D23*F23*H23=0,"",D23)))) -> 12 L | M37: =IF(G12=0,"",IF(L20="il manque","",IF(L24>21,"",IF(D23*F23*H23=0,"",F23)))) -> 1 | N37: =IF(G12=0,"",IF(L20="il manque","",IF(L24>21,"",IF(D23*F23*H23=0,"",H23)))) -> 207 B | O37: 1 panne
C38: 1.8 | D38: 8 | E38: m | I38: mn | J38: 0Lmn | L38: =IF(G12=0,"",IF(L20="il manque","",IF(L24>21,"",IF(D24*F24*H24=0,"",D24)))) ->  | M38: =IF(G12=0,"",IF(L20="il manque","",IF(L24>20,"",IF(D24*F24*H24=0,"",F24)))) ->  | N38: =IF(G12=0,"",IF(L20="il manque","",IF(L24>21,"",IF(D24*F24*H24=0,"",H24)))) -> 
C39: 2 | D39: 10 | E39: m | I39: mn | J39: 0Lmn | L39: =IF(G12=0,"",IF(L20="il manque","",IF(L24>21,"",IF(N40<0,"",IF(O35+O36+O37+O38>=2,"Si pannes,",IF(O35+O36+O37+O38=1,"Si 1 panne,","Sans panne,")))))) -> Si 1 panne, | N39: =IF(G12=0,"",IF(L20="il manque","",IF(L24>21,"",IF(N40<0,"il manquerait"," il resterait")))) -> il resterait
C40: 2.2 | D40: 12 | E40: m | I40: mn | J40: 0Lmn | L40: =IF(L20="il manque","","Règle 1 /") -> Règle 1 / | M40: =IF(L20="il manque","",L15) -> 3 | N40: =IF(G12=0,"",IF(L24>21,"",IF(L20="il manque","",O52-G12))) -> 1683 Litres
C41: 2.4 | D41: 14 | E41: m | I41: mn | J41: 0Lmn | L41: =IF(L20="il manque","","Conso aller") -> Conso aller | N41: =IF(G12=0,"",IF(L20="il manque","",IF(L24>21,"",IF(N40<0,"pour sortir !","à la sortie !")))) -> à la sortie !
C42: 2.6 | D42: 16 | E42: m | I42: mn | J42: 0Lmn | L42: =IF(L20="il manque","",G12) -> 3333 L
C43: 2.8 | D43: 18 | E43: m | I43: mn | J43: 0Lmn | K43: =IF(N40="","",IF(N40<0,"",IF(G12=0,"",IF(OR(O35=1,O36=1,O37=1,O38=1),"Ces","")))) -> Ces | L43: =IF(N40<0,"",IF(OR(O35=1,O36=1,O37=1,O38=1),N40,"")) -> 1683 L | M43: =IF(N40="","",IF(N40<0,"",IF(G12=0,"",IF(OR(O35=1,O36=1,O37=1,O38=1),"permettraient un retard de :","")))) -> permettraient un retard de :
C44: 3 | D44: 20 | E44: m | I44: mn | J44: 0Lmn | K44: =IF(N40="","",IF(N40<0,"",IF(G12=0,"",IF(OR(O35=1,O36=1,O37=1,O38=1),1/Q44*$N$40,"")))) -> 16.8 mn | M44: =IF(N40="","",IF(N40<0,"",IF(G12=0,"",IF(OR(O35=1,O36=1,O37=1,O38=1),"à","")))) -> à | N44: 30 m | O44: =IF(K44<5," c'est peu !","") ->  | Q44: =$D$9*((N44/10)+1) -> 100
C45: 3.2 | D45: 22 | E45: m | I45: mn | J45: 0Lmn
C46: 3.4 | D46: 24 | E46: m | I46: mn | J46: 0Lmn | L46: 3/3 ou 3/4 | N46: - 1/3 ou-1/4 reste | O46: retour
C47: 3.6 | D47: 26 | E47: m | I47: mn | J47: 0Lmn | L47: =A20 -> 3600 | M47: =F20 -> 2 | N47: =L47-L47/$L$15 -> 2400 | O47: =IF(O35=1,N47-(N47/M47),N47) -> 2400
C48: 3.8 | D48: 28 | E48: m | I48: mn | J48: 0Lmn | L48: =A22 -> 3924 | M48: =F22 -> 2 | N48: =L48-L48/$L$15 -> 2616 | O48: =IF(O36=1,N48-(N48/M48),N48) -> 2616
C49: 4 | D49: 30 | E49: m | I49: mn | J49: 0Lmn | L49: =A23 -> 2484 | M49: =F23 -> 1 | N49: =L49-L49/$L$15 -> 1656 | O49: =IF(O37=1,N49-(N49/M49),N49) -> 0
C50: 4.2 | D50: 32 | E50: m | I50: mn | J50: 0Lmn | L50: =A24 -> 0 | M50: =F24 -> 0 | N50: =L50-L50/$L$15 -> 0 | O50: =IF(O38=1,N50-(N50/M50),N50) -> 0
C51: 4.4 | D51: 34 | E51: m | I51: mn | J51: 0Lmn
C52: 4.6 | D52: 36 | E52: m | I52: mn | J52: 0Lmn | L52: =SUM(L47:L51) -> 10008 | N52: =SUM(N47:N50) -> 6672 | O52: =SUM(O47:O50) -> 5016
C53: 4.8 | D53: 38 | E53: m | I53: mn | J53: 0Lmn
C54: 5 | D54: 40 | E54: m | I54: mn | J54: 0Lmn
C55: 5.2 | D55: 42 | E55: m | I55: mn | J55: 0Lmn
C56: 5.4 | D56: 44 | E56: m | I56: mn | J56: 0Lmn
C57: 5.6 | D57: 46 | E57: m | I57: mn | J57: 0Lmn
C58: 5.8 | D58: 48 | E58: m | I58: mn | J58: 0Lmn
C59: 6 | D59: 50 | E59: m | I59: mn | J59: 0Lmn
C60: 6.2 | D60: 52 | E60: m | I60: mn | J60: 0Lmn
C61: 6.4 | D61: 54 | E61: m | I61: mn | J61: 0Lmn
C62: 6.6 | D62: 56 | E62: m | I62: mn | J62: 0Lmn
C63: 6.8 | D63: 58 | E63: m | I63: mn | J63: 0Lmn
C64: 7 | D64: 60 | E64: m | I64: mn | J64: 0Lmn
C65: 7.2 | D65: 62 | E65: m | I65: mn | J65: 0Lmn
C66: 7.4 | D66: 64 | E66: m | I66: mn | J66: 0Lmn
C67: 7.6 | D67: 66 | E67: m | I67: mn | J67: 0Lmn
C68: 7.8 | D68: 68 | E68: m | I68: mn | J68: 0Lmn
C69: 8 | D69: 70 | E69: m | I69: mn | J69: 0Lmn
C70: 8.2 | D70: 72 | E70: m | I70: mn | J70: 0Lmn
C71: 8.4 | D71: 74 | E71: m | I71: mn | J71: 0Lmn
C72: 8.6 | D72: 76 | E72: m | I72: mn | J72: 0Lmn
C73: 8.8 | D73: 78 | E73: m | I73: mn | J73: 0Lmn
C74: 9 | D74: 80 | E74: m | I74: mn | J74: 0Lmn
C75: 9.2 | D75: 82 | E75: m | I75: mn | J75: 0Lmn
C76: 9.4 | D76: 84 | E76: m | I76: mn | J76: 0Lmn
C77: 9.6 | D77: 86 | E77: m | I77: mn | J77: 0Lmn
C78: 9.8 | D78: 88 | E78: m | I78: mn | J78: 0Lmn
C79: 10 | D79: 90 | E79: m | I79: mn | J79: 0Lmn
C80: 10.2 | D80: 92 | E80: m | I80: mn | J80: 0Lmn
C81: 10.4 | D81: 94 | E81: m | I81: mn | J81: 0Lmn
C82: 10.6 | D82: 96 | E82: m | I82: mn | J82: 0Lmn
C83: 10.8 | D83: 98 | E83: m | I83: mn | J83: 0Lmn
C84: 11 | D84: 100 | E84: m | I84: mn | J84: 0Lmn
C85: 11.2 | D85: 102 | E85: m | I85: mn | J85: 0Lmn
C86: 11.4 | D86: 104 | E86: m | I86: mn | J86: 0Lmn
C87: 11.6 | D87: 106 | E87: m | I87: mn | J87: 0Lmn
C88: 11.8 | D88: 108 | E88: m | I88: mn | J88: 0Lmn
C89: 12 | D89: 110 | E89: m | I89: mn | J89: 0Lmn
C90: 12.2 | D90: 112 | E90: m | I90: mn | J90: 0Lmn
C91: 12.4 | D91: 114 | E91: m | I91: mn | J91: 0Lmn
C92: 12.6 | D92: 116 | E92: m | I92: mn | J92: 0Lmn
C93: 12.8 | D93: 118 | E93: m | I93: mn | J93: 0Lmn
C94: 13 | D94: 120 | E94: m | I94: mn | J94: 0Lmn
C95: 13.2 | D95: 122 | E95: m | I95: mn | J95: 0Lmn
C96: 13.4 | D96: 124 | E96: m | I96: mn | J96: 0Lmn
C97: 13.6 | D97: 126 | E97: m | I97: mn | J97: 0Lmn
C98: 13.8 | D98: 128 | E98: m | I98: =IF($M$163>$J$4,"stop !","mn") -> mn | J98: =$D$9*C98*G98 -> 0Lmn
C99: 14 | D99: 130 | E99: m | I99: mn | J99: 0Lmn
C100: 14.2 | D100: 132 | E100: m | I100: mn | J100: 0Lmn
C101: 14.4 | D101: 134 | E101: m | I101: mn | J101: 0Lmn
C102: 14.6 | D102: 136 | E102: m | I102: mn | J102: 0Lmn
C103: 14.8 | D103: 138 | E103: m | I103: mn | J103: 0Lmn
C104: 15 | D104: 140 | E104: m | I104: mn | J104: 0Lmn
C105: 15.2 | D105: 142 | E105: m | I105: mn | J105: 0Lmn
C106: 15.4 | D106: 144 | E106: m | I106: mn | J106: 0Lmn
C107: 15.6 | D107: 146 | E107: m | I107: mn | J107: 0Lmn
C108: 15.8 | D108: 148 | E108: m | I108: mn | J108: 0Lmn
C109: 16 | D109: 150 | E109: m | I109: mn | J109: 0Lmn
C110: 16.2 | D110: 152 | E110: m | I110: mn | J110: 0Lmn
C111: 16.4 | D111: 154 | E111: m | I111: mn | J111: 0Lmn
C112: 16.6 | D112: 156 | E112: m | I112: mn | J112: 0Lmn
C113: 16.8 | D113: 158 | E113: m | I113: mn | J113: 0Lmn
C114: 17 | D114: 160 | E114: m | I114: mn | J114: 0Lmn
C115: 17.2 | D115: 162 | E115: m | I115: mn | J115: 0Lmn
C116: 17.4 | D116: 164 | E116: m | I116: mn | J116: 0Lmn
C117: 17.6 | D117: 166 | E117: m | I117: mn | J117: 0Lmn
C118: 17.8 | D118: 168 | E118: m | I118: mn | J118: 0Lmn
C119: 18 | D119: 170 | E119: m | I119: mn | J119: 0Lmn
C120: 18.2 | D120: 172 | E120: m | I120: mn | J120: 0Lmn
C121: 18.4 | D121: 174 | E121: m | I121: mn | J121: 0Lmn
C122: 18.6 | D122: 176 | E122: m | I122: mn | J122: 0Lmn
C123: 18.8 | D123: 178 | E123: m | I123: mn | J123: 0Lmn
C124: 19 | D124: 180 | E124: m | I124: mn | J124: 0Lmn
C125: 19.2 | D125: 182 | E125: m | I125: mn | J125: 0Lmn
C126: 19.4 | D126: 184 | E126: m | I126: mn | J126: 0Lmn
C127: 19.6 | D127: 186 | E127: m | I127: mn | J127: 0Lmn
C128: 19.8 | D128: 188 | E128: m | I128: mn | J128: 0Lmn
C129: 20 | D129: 190 | E129: m | I129: mn | J129: 0Lmn
C130: 20.2 | D130: 192 | E130: m | I130: mn | J130: 0Lmn
C131: 20.4 | D131: 194 | E131: m | I131: mn | J131: 0Lmn
C132: 20.6 | D132: 196 | E132: m | I132: mn | J132: 0Lmn
C133: 20.8 | D133: 198 | E133: m | I133: mn | J133: 0Lmn
C134: 21 | D134: 200 | E134: m | I134: mn | J134: 0Lmn
C135: 21.2 | D135: 202 | E135: m | I135: mn | J135: 0Lmn
C136: 21.4 | D136: 204 | E136: m | I136: mn | J136: 0Lmn
C137: 21.6 | D137: 206 | E137: m | I137: mn | J137: 0Lmn
C138: 21.8 | D138: 208 | E138: m | I138: mn | J138: 0Lmn
C139: 22 | D139: 210 | E139: m | I139: mn | J139: 0Lmn
C140: 22.2 | D140: 212 | E140: m | I140: mn | J140: 0Lmn
C141: 22.4 | D141: 214 | E141: m | I141: mn | J141: 0Lmn
C142: 22.6 | D142: 216 | E142: m | I142: mn | J142: 0Lmn
C143: 22.8 | D143: 218 | E143: m | I143: mn | J143: 0Lmn
C144: 23 | D144: 220 | E144: m | I144: mn | J144: 0Lmn
C145: 23.2 | D145: 222 | E145: m | I145: mn | J145: 0Lmn
C146: 23.4 | D146: 224 | E146: m | I146: mn | J146: 0Lmn
C147: 23.6 | D147: 226 | E147: m | I147: mn | J147: 0Lmn
C148: 23.8 | D148: 228 | E148: m | I148: mn | J148: 0Lmn
C149: 24 | D149: 230 | E149: m | I149: mn | J149: 0Lmn
C150: 24.2 | D150: 232 | E150: m | I150: mn | J150: 0Lmn
C151: 24.4 | D151: 234 | E151: m | I151: mn | J151: 0Lmn
C152: 24.6 | D152: 236 | E152: m | I152: mn | J152: 0Lmn
C153: 24.8 | D153: 238 | E153: m | I153: mn | J153: 0Lmn
C154: 25 | D154: 240 | E154: m | I154: mn | J154: 0Lmn
C155: 25.2 | D155: 242 | E155: m | I155: mn | J155: 0Lmn
C156: 25.4 | D156: 244 | E156: m | I156: mn | J156: 0Lmn
C157: 25.6 | D157: 246 | E157: m | I157: mn | J157: 0Lmn
C158: 25.8 | D158: 248 | E158: m | I158: mn | J158: 0Lmn
C159: 26 | D159: 250 | E159: m | I159: mn | J159: 0Lmn
C160: 26.2 | D160: 252 | E160: m | I160: mn | J160: 0Lmn
C161: 26.4 | D161: 254 | E161: m | I161: mn | J161: 0Lmn
C162: 26.6 | D162: 256 | E162: m | I162: =IF($M$163>$J$4,"stop !","mn") -> mn | J162: =$D$9*C162*G162 -> 0Lmn
C163: 26.8 | D163: 258 | E163: m | I163: mn | J163: 0Lmn
C164: 27 | D164: 260 | E164: m | I164: mn | J164: 0Lmn
C165: 27.2 | D165: 262 | E165: m | I165: mn | J165: 0Lmn
C166: 27.4 | D166: 264 | E166: m | I166: mn | J166: 0Lmn
C167: 27.6 | D167: 266 | E167: m | I167: mn | J167: 0Lmn
C168: 27.8 | D168: 268 | E168: m | I168: mn | J168: 0Lmn
C169: 28 | D169: 270 | E169: m | I169: mn | J169: 0Lmn
C170: 28.2 | D170: 272 | E170: m | I170: mn | J170: 0Lmn
C171: 28.4 | D171: 274 | E171: m | I171: mn | J171: 0Lmn
C172: 28.6 | D172: 276 | E172: m | I172: mn | J172: 0Lmn
C173: 28.8 | D173: 278 | E173: m | I173: mn | J173: 0Lmn
C174: 29 | D174: 280 | E174: m | I174: mn | J174: 0Lmn
C175: 29.2 | D175: 282 | E175: m | I175: mn | J175: 0Lmn
C176: 29.4 | D176: 284 | E176: m | I176: mn | J176: 0Lmn
C177: 29.6 | D177: 286 | E177: m | I177: mn | J177: 0Lmn
C178: 29.8 | D178: 288 | E178: m | I178: mn | J178: 0Lmn
C179: 30 | D179: 290 | E179: m | I179: mn | J179: 0Lmn
C180: 30.2 | D180: 292 | E180: m | I180: mn | J180: 0Lmn
C181: 30.4 | D181: 294 | E181: m | I181: mn | J181: 0Lmn
C182: 30.6 | D182: 296 | E182: m | I182: mn | J182: 0Lmn
C183: 30.8 | D183: 298 | E183: m | I183: mn | J183: 0Lmn
C184: 31 | D184: 300 | E184: m | I184: mn | J184: 0Lmn
G185: =SUM(G34:G184) -> 0 | J185: =SUM(J33:J184) -> 0

Sheet 7bis
E3: Règle des 1/3 | Q3: Retour après
E4: BI 2x10 L | Q4: avoir consommé
E5: 210 Bars | Q5: 1/3 sur chaque bouteille
E7: 70 | G7: 70 | T7: J'ai consommé 1/3 de chaque bouteille (soit 2/3) et je retourne.
E8: 70 | G8: 70 | Q8: 70 | S8: 70 | T8: Si une des 2 bouteilles est en panne, il reste l'autre
E9: 70 | G9: 70 | Q9: 70 | S9: 70 | T9: avec 2/3 pour rentrer . C'est vraiment limite…!
E10: 210 | G10: 210 | Q10: =SUM(Q8:Q9) -> 140 | S10: =SUM(S8:S9) -> 140
Q13: EXEMPLE 1
Q14: bouteilles identiques
E18: Règle des 1/4 | Q18: Retour après
E19: BI 2x10 L | Q19: avoir consommé
E20: 210 Bars | Q20: 1/4 sur chaque bouteille
E22: 52.5 | G22: 52.5 | T22: J'ai consommé 1/4 de chaque bouteille (soit 2/4) et je retourne.
E23: 52.5 | G23: 52.5 | Q23: 52.5 | S23: 52.5 | T23: Si une des 2 bouteilles est en panne, il reste l'autre
E24: 52.5 | G24: 52.5 | Q24: 52.5 | S24: 52.5 | T24: avec 3/4 pour rentrer .
E25: 52.5 | G25: 52.5 | Q25: 52.5 | S25: 52.5
E26: 210 | G26: 210 | Q26: =SUM(Q23:Q25) -> 157.5 | S26: =SUM(S23:S25) -> 157.5
W28: SUITE
E34: Règle des 1/3 | Q34: Retour après
E35: TRI 3x10 L | Q35: avoir consommé
E36: 210 Bars | Q36: 1/3 sur chaque bouteille
E38: 70 | G38: 70 | I38: 70 | T38: J'ai consommé 1/3 de chaque bouteille (soit 3/3) et je retourne.
E39: 70 | G39: 70 | I39: 70 | O39: 70 | Q39: 70 | S39: 70 | T39: Si une des 3 bouteilles est en panne, il reste les 2 autres
E40: 70 | G40: 70 | I40: 70 | O40: 70 | Q40: 70 | S40: 70 | T40: avec 2/3 dans chaque pour rentrer (soit 4/3)
E41: 210 | G41: 210 | I41: 210 | O41: =SUM(O39:O40) -> 140 | Q41: =SUM(Q39:Q40) -> 140 | S41: =SUM(S39:S40) -> 140
O42: On pourrait se dire : pourquoi ne pas vider une des 3 bouteilles et rentrer sur les 2 autres ?
O43: Dans ce cas là, si une des 2 est en panne, il ne me resterait que 3/3 dans l'autre alors qu'il faut au minimum
O44: 3/3 pour rentrer. Ce serait limite... !
Q46: EXEMPLE 2
Q47: bouteilles identiques
E49: Règle des 1/4 | Q49: Retour après
E50: TRI 3x10 L | Q50: avoir consommé
E51: 210 Bars | Q51: 1/4 sur chaque bouteille
E53: 52.5 | G53: 52.5 | I53: 52.5 | T53: J'ai consommé 1/4 de chaque bouteille (soit 3/4) et je retourne.
E54: 52.5 | G54: 52.5 | I54: 52.5 | O54: 52.5 | Q54: 52.5 | S54: 52.5 | T54: Si une des 3 bouteilles est en panne, il reste les 2 autres
E55: 52.5 | G55: 52.5 | I55: 52.5 | O55: 52.5 | Q55: 52.5 | S55: 52.5 | T55: avec 3/4 dans chaque pour rentrer (soit 6/4)
E56: 52.5 | G56: 52.5 | I56: 52.5 | O56: 52.5 | Q56: 52.5 | S56: 52.5
E57: 210 | G57: 210 | I57: 210 | O57: =SUM(O54:O56) -> 157.5 | Q57: =SUM(Q54:Q56) -> 157.5 | S57: =SUM(S54:S56) -> 157.5
C65: Règle des 1/3 | Q65: Retour après
C66: QUADRI 4x10 L | Q66: avoir consommé
E67: 210 Bars | Q67: 1/3 sur chaque bouteille
C69: 70 | E69: 70 | G69: 70 | I69: 70 | T69: J'ai consommé 1/3 de chaque bouteille (soit 4/3) et je retourne.
C70: 70 | E70: 70 | G70: 70 | I70: 70 | M70: 70 | O70: 70 | Q70: 70 | S70: 70 | T70: Si une des 4 bouteilles est en panne, il reste les 3 autres
C71: 70 | E71: 70 | G71: 70 | I71: 70 | M71: 70 | O71: 70 | Q71: 70 | S71: 70 | T71: avec 2/3 dans chaque (soit 6/3)
C72: 210 | E72: 210 | G72: 210 | I72: 210 | M72: =SUM(M70:M71) -> 140 | O72: =SUM(O70:O71) -> 140 | Q72: =SUM(Q70:Q71) -> 140 | S72: =SUM(S70:S71) -> 140
Q73: EXEMPLE 3
Q74: bouteilles identiques
E76: Règle des 1/4 | Q76: Retour après
C77: QUADRI 4x10 L | Q77: avoir consommé
E78: 210 Bars | Q78: 1/4 sur chaque bouteille
C80: 52.5 | E80: 52.5 | G80: 52.5 | I80: 52.5 | T80: J'ai consommé 1/4 de chaque bouteille (soit 4/4) ( comme diraient les Bretons !)
C81: 52.5 | E81: 52.5 | G81: 52.5 | I81: 52.5 | M81: 52.5 | O81: 52.5 | Q81: 52.5 | S81: 52.5 | T81: et je retourne.
C82: 52.5 | E82: 52.5 | G82: 52.5 | I82: 52.5 | M82: 52.5 | O82: 52.5 | Q82: 52.5 | S82: 52.5 | T82: Si une des 4 bouteilles est en panne, il reste les 3 autres
C83: 52.5 | E83: 52.5 | G83: 52.5 | I83: 52.5 | M83: 52.5 | O83: 52.5 | Q83: 52.5 | S83: 52.5 | T83: avec 3/4 dans chaque (soit 9/4)
C84: 210 | E84: 210 | G84: 210 | I84: 210 | M84: =SUM(M81:M83) -> 157.5 | O84: =SUM(O81:O83) -> 157.5 | Q84: =SUM(Q81:Q83) -> 157.5 | S84: =SUM(S81:S83) -> 157.5
E88: Règle des 1/3 | Q88: Retour après
E89: TRI 2x10 L + 1X15 L | Q89: avoir consommé | U89: Là, on va parler en litres !
E90: 210 Bars | Q90: 1/3 sur chaque bouteille
E91: 10 L | G91: 15 L | I91: 10 L | O91: 10 L | Q91: 15 L | S91: 10 L
E92: 700 | G92: 1050 | I92: 700 | T92: J'ai consommé 1/3 de chaque bouteille (soit 700+1050+700 L = 2450 L)
E93: 700 | G93: 1050 | I93: 700 | O93: 700 | Q93: 1050 | S93: 700 | T93: et je retourne.
E94: 700 | G94: 1050 | I94: 700 | O94: 700 | Q94: 1050 | S94: 700 | T94: Si la 15 L est en panne, il reste les deux 10 L
E95: =SUM(E92:E94) -> 2100 | G95: =SUM(G92:G94) -> 3150 | I95: =SUM(I92:I94) -> 2100 | O95: =SUM(O92:O94) -> 1400 | Q95: =SUM(Q92:Q94) -> 2100 | S95: =SUM(S92:S94) -> 1400 | T95: avec 2/3 dans chaque pour rentrer (soit 1400+1400 L = 2800 L)
Q100: EXEMPLE 4
Q101: bouteilles différentes
E103: Règle des 1/4 | Q103: Retour après
E104: TRI 2x10 L + 1X15 L | Q104: avoir consommé
E105: 210 Bars | Q105: 1/4 sur chaque bouteille
E106: 10 L | G106: 15 L | I106: 10 L | O106: 10 L | Q106: 15 L | S106: 10 L
E107: 525 | G107: 787 | I107: 525 | T107: J'ai consommé 1/4 de chaque bouteille (soit 525+787+525 L =1837 L)
E108: 525 | G108: 787 | I108: 525 | O108: 525 | Q108: 787 | S108: 525 | T108: et je retourne.
E109: 525 | G109: 787 | I109: 525 | O109: 525 | Q109: 787 | S109: 525 | T109: Si la 15 L est en panne, il reste les deux 10 L
E110: 525 | G110: 787 | I110: 525 | O110: 525 | Q110: 787 | S110: 525 | T110: avec 3/4 dans chaque pour rentrer (soit 1575+1575 L = 3150 L)
E111: =SUM(E107:E110) -> 2100 | G111: =SUM(G107:G110) -> 3148 | I111: =SUM(I107:I110) -> 2100 | O111: =SUM(O108:O110) -> 1575 | Q111: =SUM(Q108:Q110) -> 2361 | S111: =SUM(S108:S110) -> 1575
E118: Règle des 1/3 | O118: Retour après | U118: Là, on va parler en litres !
C119: QUADRI 2x18 L + 2X9 L | O119: avoir consommé
E120: 210 Bars | O120: 1/3 sur chaque bouteille
C121: 9 L | E121: 18 L | G121: 18 L | I121: 9 L | M121: 9 L | O121: 18 L | Q121: 18 L | S121: 9 L
C122: 630 | E122: 1260 | G122: 1260 | I122: 630 | T122: J'ai consommé 1/3 de chaque bouteille (soit 630+1260+1260+630 =3780 L)
C123: 630 | E123: 1260 | G123: 1260 | I123: 630 | M123: 630 | O123: 1260 | Q123: 1260 | S123: 630 | T123: et je retourne.
C124: 630 | E124: 1260 | G124: 1260 | I124: 630 | M124: 630 | O124: 1260 | Q124: 1260 | S124: 630 | T124: Si une des 18 L est en panne, il reste les 3 autres
C125: =SUM(C122:C124) -> 1890 | E125: =SUM(E122:E124) -> 3780 | G125: =SUM(G122:G124) -> 3780 | I125: =SUM(I122:I124) -> 1890 | M125: =SUM(M123:M124) -> 1260 | O125: =SUM(O123:O124) -> 2520 | Q125: =SUM(Q123:Q124) -> 2520 | S125: =SUM(S123:S124) -> 1260 | T125: avec 2/3 dans chaque (soit 1260+2520+1260 = 5040 L)
Q129: EXEMPLE 5
Q130: bouteilles différentes
E132: Règle des 1/4 | O132: Retour après
C133: QUADRI 2x18 L + 2X9 L | O133: avoir consommé
E134: 210 Bars | O134: 1/4 sur chaque bouteille
C135: 9 L | E135: 18 L | G135: 18 L | I135: 9 L | M135: 9 L | O135: 18 L | Q135: 18 L | S135: 9 L
C136: 472 | E136: 945 | G136: 945 | I136: 472 | T136: J'ai consommé 1/4 de chaque bouteille (soit 472+945+945+472 =2834 L)
C137: 472 | E137: 945 | G137: 945 | I137: 472 | M137: 472 | O137: 945 | Q137: 945 | S137: 472 | T137: et je retourne.
C138: 472 | E138: 945 | G138: 945 | I138: 472 | M138: 472 | O138: 945 | Q138: 945 | S138: 472 | T138: Si une des 18 L est en panne, il reste les 3 autres
C139: 472 | E139: 945 | G139: 945 | I139: 472 | M139: 472 | O139: 945 | Q139: 945 | S139: 472 | T139: avec 3/4 dans chaque (soit 1416+2835+1416 = 5667 L)
C140: =SUM(C136:C139) -> 1888 | E140: =SUM(E136:E139) -> 3780 | G140: =SUM(G136:G139) -> 3780 | I140: =SUM(I136:I139) -> 1888 | M140: =SUM(M137:M139) -> 1416 | O140: =SUM(O137:O139) -> 2835 | Q140: =SUM(Q137:Q139) -> 2835 | S140: =SUM(S137:S139) -> 1416
C146: Règle des 1/3 | O146: Retour après | U146: Là, on va parler en litres !
C147: TRI 2x7 L + 1X18 L | O147: avoir consommé
C148: 210 Bars | O148: 1/3 sur chaque bouteille
C149: 7 L | E149: 18 L | G149: 7 L | M149: 7 L | O149: 18 L | Q149: 7 L
C150: 490 | E150: 1260 | G150: 490 | R150: J'ai consommé 1/3 de chaque bouteille (soit 490+1260+490 L = 2240 L)
C151: 490 | E151: 1260 | G151: 490 | M151: 490 | O151: 1260 | Q151: 490 | R151: et je retourne.
C152: 490 | E152: 1260 | G152: 490 | M152: 490 | O152: 1260 | Q152: 490 | R152: Si la 18 L est en panne, il reste les deux 7 L
C153: =SUM(C150:C152) -> 1470 | E153: =SUM(E150:E152) -> 3780 | G153: =SUM(G150:G152) -> 1470 | M153: =SUM(M151:M152) -> 980 | O153: =SUM(O151:O152) -> 2520 | Q153: =SUM(Q151:Q152) -> 980 | R153: avec 2/3 dans chaque pour rentrer (soit 980+980 L = 1960 L)
K155: PAS ASSEZ POUR RENTRER, | S155: LA REGLE DES TIERS EST A PROSCRIRE DANS CE CAS
L157: EXEMPLE 6
L158: bouteilles différentes
L159: DANGER
C161: Règle des 1/4 | O161: Retour après
C162: TRI 2x7 L + 1X18 L | O162: avoir consommé
C163: 210 Bars | O163: 1/4 sur chaque bouteille
C164: 7 L | E164: 18 L | G164: 7 L | M164: 7 L | O164: 18 L | Q164: 7 L
C165: 367 | E165: 945 | G165: 367 | R165: J'ai consommé 1/4 de chaque bouteille (soit 367+945+367 L = 1679 L)
C166: 367 | E166: 945 | G166: 367 | M166: 367 | O166: 945 | Q166: 367 | R166: et je retourne.
C167: 367 | E167: 945 | G167: 367 | M167: 367 | O167: 945 | Q167: 367 | R167: Si la 18 L est en panne, il reste les deux 7 L
C168: 367 | E168: 945 | G168: 367 | M168: 367 | O168: 945 | Q168: 367 | R168: avec 3/4 dans chaque pour rentrer (soit 1101+1101 L = 2202 L)
C169: =SUM(C165:C168) -> 1468 | E169: =SUM(E165:E168) -> 3780 | G169: =SUM(G165:G168) -> 1468 | M169: =SUM(M166:M168) -> 1101 | O169: =SUM(O166:O168) -> 2835 | Q169: =SUM(Q166:Q168) -> 1101
C174: 210 B | E174: 210 B | G174: 210 B
C175: 7 L | E175: 18 L | G175: 7 L
E176: 2300
C177: 1470 | G177: 1470
E178: 1480
C179: =SUM(C176:C178) -> 1470 | E179: =3780-E176 -> 1480 | G179: =SUM(G176:G178) -> 1470 | M179: EXEMPLE 7
M180: EXEMPLE 8
M181: EXEMPLE 9
M182: EXEMPLE 10
M183: ……….

Sheet 8
A5: JP Couloumy
B12: CALCUL DE LA PRESSION D'EQUILIBRE | O12: O2 PAR CASCADES
P13: (Pas très rentable, mais bon !)
C14: Air / Air | D14: O2 / O2 | F14: Hé / Hé
K15: O2 | N15: O2 | Q15: O2 | T15: O2 | W15: O2 | Z15: O2 | AC15: O2 | AF15: O2
K16: Dans 2ème | N16: Dans 3ème | Q16: Dans 4ème | T16: Dans 5ème | W16: Dans 6ème | Z16: Dans 7ème | AC16: Dans 8ème | AF16: Dans 9ème
C17: =C25*C21 -> 2700 | E17: L | F17: =F21*F25 -> 0 | H17: =C17+F17 -> 2700 | K17: bouteille | N17: bouteille | Q17: bouteille | T17: bouteille | W17: bouteille | Z17: bouteille | AC17: bouteille | AF17: bouteille
C19: = | F19: = | K19: =C21 -> 18 L | L19: Dans | N19: =C21 -> 18 L | O19: Dans | Q19: =C21 -> 18 L | R19: Dans | T19: =C21 -> 18 L | U19: Dans | W19: =C21 -> 18 L | X19: Dans | Z19: 50 L | AA19: Dans | AC19: 50 L | AD19: Dans | AF19: 50 L | AG19: Dans
E20: Dans
C21: 18 | D21: Litres | E21: L | F21: 3 | G21: Litres | L21: 3 L | O21: 20 L | R21: 20 L | U21: 18 L | X21: 18 L | AA21: 15 L | AD21: 15 L | AG21: 10 L
K22: =D29 -> 129 b | L22: à | N22: =K26 -> 110 b | O22: à | Q22: =N26 -> 110 b | R22: à | T22: =Q26 -> 105 b | U22: à | W22: =T26 -> 77 b | X22: à | Z22: =W26 -> 59 b | AA22: à | AC22: =Z26 -> 50 b | AD22: à | AF22: =AC26 -> 43 b | AG22: à
C23: X | F23: X | H23: =C21+F21 -> 21 | L23: 0 b | O23: 110 b | R23: 100 b | U23: 50 b | X23: 40 b | AA23: 20 b | AD23: 20 b | AG23: 35 b
C25: 150 | D25: Bars | F25: 0 | G25: Bars | K25: pression d'équilbre | N25: pression d'équilbre | Q25: pression d'équilbre | T25: pression d'équilbre | W25: pression d'équilbre | Z25: pression d'équilbre | AC25: pression d'équilbre | AF25: pression d'équilbre
K26: =IF(L21=0,0,((K22*K19)+(L23*L21))/(K19+L21)) -> 110 b | N26: =IF(O21=0,0,((N22*N19)+(O23*O21))/(N19+O21)) -> 110 b | Q26: =IF(R21=0,0,((Q22*Q19)+(R23*R21))/(Q19+R21)) -> 105 b | T26: =IF(U21=0,0,((T22*T19)+(U23*U21))/(T19+U21)) -> 77 b | W26: =IF(X21=0,0,((W22*W19)+(X23*X21))/(W19+X21)) -> 59 b | Z26: =IF(AA21=0,0,((Z22*Z19)+(AA23*AA21))/(Z19+AA21)) -> 50 b | AC26: =IF(AD21=0,0,((AC22*AC19)+(AD23*AD21))/(AC19+AD21)) -> 43 b | AF26: =IF(AG21=0,0,((AF22*AF19)+(AG23*AG21))/(AF19+AG21)) -> 42 b
B27: il restera | G27: il y aura
B28: =D29*C21 -> 2314 | C28: L | D28: Pression d'équilibre | G28: =D29*F21 -> 386 | I28: L
D29: =H17/H23 -> 128.5714286 | E29: Bars
B33: =IF(C25>300,"PRESSION TROP IMPORTANTE !!!!","") -> 

Sheet 9
A2: JP Couloumy | B2: POIDS TOTAL : Bouteilles + Détendeurs + Gaz
B7: d'un BI, TRI ou QUADRI bouteilles
G8: Bouteille | J8: Bouteille | M8: Bouteille | P8: Bouteille
G9: 1 | J9: 2 | M9: 3 | P9: 4
C11: Poids à vide bouteille | G11: 5.0 kg | J11: 8.0 kg | M11: 10.0 kg | P11: 20.0 kg
C12: avec robinet, détendeur
G13: =IF(G11=0,"",IF(G11>0,IF(G18=0,"?",IF(G15=0,"?","")))) ->  | J13: =IF(J11=0,"",IF(J11>0,IF(J18=0,"?",IF(J15=0,"?","")))) ->  | M13: =IF(M11=0,"",IF(M11>0,IF(M18=0,"?",IF(M15=0,"?","")))) ->  | P13: =IF(P11=0,"",IF(P11>0,IF(P18=0,"?",IF(P15=0,"?","")))) -> 
C15: Capacité bouteille | G15: 3.0 L | J15: 6.0 L | M15: 9.0 L | P15: 18.0 L
C18: Pression bouteille | G18: 221 b | J18: 221 b | M18: 221 b | P18: 221 b
D19: (lire)
C20: Gaz dans bouteille en % | G20: O2 | H20: Hé | J20: O2 | K20: Hé | M20: O2 | N20: Hé | P20: O2 | Q20: Hé
G21: 99 | H21: 0 | J21: 40 | K21: 0 | M21: 10.5 | N21: 50 | P21: 6 | Q21: 94
G22: =IF(G21=0,"Erreur !",IF(G21+H21<21,"Erreur !",IF(G21+H21>100,"Erreur !",IF(G21+H21=100,"Héliox",IF(H21>0,"Trimix",IF(G21+H21=21,"Air",IF(G21>21,IF(H21=0,"Nitrox")))))))) -> Nitrox | J22: =IF(J21=0,"Erreur !",IF(J21+K21<21,"Erreur !",IF(J21+K21>100,"Erreur !",IF(J21+K21=100,"Héliox",IF(K21>0,"Trimix",IF(J21+K21=21,"Air",IF(J21>21,IF(K21=0,"Nitrox")))))))) -> Nitrox | M22: =IF(M21=0,"Erreur !",IF(M21+N21<21,"Erreur !",IF(M21+N21>100,"Erreur !",IF(M21+N21=100,"Héliox",IF(N21>0,"Trimix",IF(M21+N21=21,"Air",IF(M21>21,IF(N21=0,"Nitrox")))))))) -> Trimix | P22: =IF(P21=0,"Erreur !",IF(P21+Q21<21,"Erreur !",IF(P21+Q21>100,"Erreur !",IF(P21+Q21=100,"Héliox",IF(Q21>0,"Trimix",IF(P21+Q21=21,"Air",IF(P21>21,IF(Q21=0,"Nitrox")))))))) -> Héliox
G23: =(G15*G18*(G21/100))*1.423/1000 -> 0.9340 | H23: =(G15*G18*(H21/100))*0.33/1000 -> 0 | J23: =(J15*J18*(J21/100))*1.423/1000 -> 0.7548 | K23: =(J15*J18*(K21/100))*0.33/1000 -> 0 | M23: =(M15*M18*(M21/100))*1.423/1000 -> 0.2972 | N23: =(M15*M18*(N21/100))*0.33/1000 -> 0.328185 | P23: =(P15*P18*(P21/100))*1.423/1000 -> 0.3396 | Q23: =(P15*P18*(Q21/100))*0.33/1000 -> 1.2339756
G24: =(G15*G18*(100-(G21+H21))/1000)*0.1245/10 -> 0.0083kg | J24: =(J15*J18*(100-(J21+K21))/1000)*0.1245/10 -> 0.9905kg | M24: =(M15*M18*(100-(M21+N21))/1000)*0.1245/10 -> 0.9781kg | P24: =(P15*P18*(100-(P21+Q21))/1000)*0.1245/10 -> 0.0000kg
C26: Poids approximatif des gaz | G26: =G24+G23+H23 -> 0.94 kg | J26: =J24+J23+K23 -> 1.75 kg | M26: =M24+M23+N23 -> 1.60 kg | P26: =P24+P23+Q23 -> 1.57 kg
G27: =IF(G11=0,"",IF(G11>0,IF(G15=0,"?",IF(G18=0,"?","")))) ->  | J27: =IF(J11=0,"",IF(J11>0,IF(J15=0,"?",IF(J18=0,"?","")))) ->  | M27: =IF(M11=0,"",IF(M11>0,IF(M15=0,"?",IF(M18=0,"?","")))) ->  | P27: =IF(P11=0,"",IF(P11>0,IF(P15=0,"?",IF(P18=0,"?","")))) -> 
C28: Poids bouteille pleine | G28: =G11+G26 -> 5.9 kg | J28: =J11+J26 -> 9.7 kg | M28: =M11+M26 -> 11.6 kg | P28: =P11+P26 -> 21.6 kg
G31: Poids total | K31: =G28+J28+M28+P28 -> 48.86 kg

Sheet 10
E2: Calculs bouteilles paliers et autres
B4: JP Couloumy
D7: Consos surface = | F7: 15 | G7: L / mn | M7: Bars et litres
M8: Bouteille | N8: Pression
D9: Profondeur = | F9: 21 | G9: m | M9: 18L | N9: 100 bars
M10: =M9*N9 -> 1,800L
C11: Consommation à : | F11: =F9 -> 21 | G11: m = | H11: =F7*(F9+10)/10 -> 46.5 | I11: L / mn
M12: =M10 -> 1,800L | N12: dans bouteille
M13: 9L
C14: POUR | E14: 28 | F14: mn | G14: = | H14: =IF(E14="X",0,E14*H11) -> 1302 | I14: L | L14: il y aura : | M14: =(1/M13)*M10 -> 200 bars
E16: Litres | G16: Bouteille
E17: 1,302L | G17: 9L
E18: =(1/G17)*E17 -> 145 bars
H21: mémo
F25: ppppp

Sheet 11
M5: ( bail out)…..
A6: JP Couloumy
E9: =IF(O14="$","conso surface $","conso surface") -> conso surface | H9: =IF(O14="$","","profondeur retour") -> profondeur retour | K9: =IF(O14="$","","vitesse retour") -> vitesse retour | M9: =IF(O14="$","","distance retour") -> distance retour
E10: 25 L/mn | H10: 20 m | K10: 18 m/mn | M10: 400 m
E13: =IF(O14="$","temps retour $","temps retour") -> temps retour | H13: =IF(O14="$","conso retour $","consos retour") -> consos retour | J13: (ne servent à rien si multiprofondeur) | M13: ( si multi profondeurs )
E14: =IF(O14="$",H188,(1/K10*M10)) -> 22 mm | H14: =IF(O14="$",J188,((H10/10)+1)*E10*E14) -> 1667 L | J14: =IF(O14="$","Afin d'éviter toutes confusions,","") ->  | M14: taper $ ici
J15: =IF(O14="$","faire suppr dans ces trois cellules jaunes","") ->  | M15: Entrer la conso surface
E16: =IF(O14="$","",IF(E10*H10*K10*M10=0,"Profil carré, il manque des données !","")) ->  | M16: Puis le profil, puis les bouteilles
D17: Bouteilles nécessaires pour le retour
A18: ou là ! | E18: (lire) | F18: avec 1/3 en plus dans chacune (retard, surconsommation)
E19: =IF(O14="$","Bouteilles $","Bouteilles") -> Bouteilles | G19: =IF(O14="$","Pression $","Pression") -> Pression | J19: =IF(B20=0,"",IF(B21<B20,"pas suffisant !","C'est OK !")) -> pas suffisant !
A20: A+1/3 | B20: =(H14*1/3)+H14 -> 2222 L | D20: =E20*G20 -> 0 | E20: 12 L | F20: =IF($O$14="$","$","à") -> à | G20: 0 Bars | J20: =IF(B21<B20," il manque","") -> il manque
A21: B | B21: =SUM(D20:D27) -> 0 L | D21: 0 | F21: =IF($O$14="$","$","à") -> à
D22: 0 | F22: à | J22: =IF(B21<B20,B20-B21,"") -> 2222 Litres
D23: 0 | F23: à
D24: 0 | F24: à | J24: =IF(J20=" il manque","compléter bouteilles et pressions !","") -> compléter bouteilles et pressions !
D25: 0 | F25: à | J25: =IF(H14=0,"Il manque des données !!!","") -> 
D26: 0 | F26: à
D27: 0 | F27: à | K27: =IF(J20="",IF(B21>H14,"… il y a",""),"") ->  | L27: =IF(J20="",B21-B20,"") ->  | M27: =IF(J20="",IF(B21>H14,"L en plus ...",""),"") -> 
K28: =IF(L27<100,"",IF(J20="","réduire si nécessaire","")) -> 
A29: ou ici !
E30: =IF(O14="$","PROFIL RETOUR MULTI PROFONDEURS ($)","Tableau pour multi profondeurs (uniquement)") -> Tableau pour multi profondeurs (uniquement)
E32: =IF(O14="$","entrer le temps passé aux profondeurs principales","") ->  | K32: ( Ne pas oublier $ en O14 )
A33: pour faire défiler le tableau : | E33: =IF(O14="$","puis compléter le tableau bouteilles et pressions","") ->  | K33: ( et contrôler Temps = 0 avant de commencer )
A34: positionner cette ligne vers | E34: =IF(O14="$","Conso surface","") ->  | G34: =IF(O14="$",E10,"") ->  | I34: =IF(O14="$","Temps","") ->  | J34: =IF(O14="$",H188,"") ->  | K34: Pour mettre temps à 0 : selectionner la ou les
A35: le milieu de la page . | F35: =IF(O14="$","prof. $","") ->  | H35: =IF(O14="$","temps $","") ->  | K35: cellules qui ne sont pas à 0 puis faire suppr
A36: puis,
A37: cliquer ici | E37: 1 | F37: 0 | G37: m | J37: =$E$10*H37*E37 -> 0
A38: puis, cliquer sur fenêtre | E38: 1.2 | F38: 2 | G38: m | J38: =$E$10*H38*E38 -> 0
A39: puis sur figer les volets | E39: 1.4 | F39: 4 | G39: m | J39: 0
E40: 1.6 | F40: 6 | G40: m | H40: 0 mm | J40: 0
A41: pour retourner : | E41: 1.8 | F41: 8 | G41: m | J41: 0
A42: fenêtre | E42: 2 | F42: 10 | G42: m | J42: 0
A43: libérer les volets | E43: 2.2 | F43: 12 | G43: m | J43: 0
E44: 2.4 | F44: 14 | G44: m | J44: 0
E45: 2.6 | F45: 16 | G45: m | J45: 0
E46: 2.8 | F46: 18 | G46: m | J46: 0
E47: 3 | F47: 20 | G47: m | J47: 0
E48: 3.2 | F48: 22 | G48: m | J48: 0
E49: 3.4 | F49: 24 | G49: m | J49: 0
E50: 3.6 | F50: 26 | G50: m | J50: 0
E51: 3.8 | F51: 28 | G51: m | J51: 0
E52: 4 | F52: 30 | G52: m | J52: 0
E53: 4.2 | F53: 32 | G53: m | J53: 0
E54: 4.4 | F54: 34 | G54: m | J54: 0
E55: 4.6 | F55: 36 | G55: m | J55: 0
E56: 4.8 | F56: 38 | G56: m | J56: 0
E57: 5 | F57: 40 | G57: m | J57: 0
E58: 5.2 | F58: 42 | G58: m | J58: 0
E59: 5.4 | F59: 44 | G59: m | J59: 0
E60: 5.6 | F60: 46 | G60: m | J60: 0
E61: 5.8 | F61: 48 | G61: m | J61: 0
E62: 6 | F62: 50 | G62: m | J62: 0
E63: 6.2 | F63: 52 | G63: m | J63: 0
E64: 6.4 | F64: 54 | G64: m | J64: 0
E65: 6.6 | F65: 56 | G65: m | J65: 0
E66: 6.8 | F66: 58 | G66: m | J66: 0
E67: 7 | F67: 60 | G67: m | J67: 0
E68: 7.2 | F68: 62 | G68: m | J68: 0
E69: 7.4 | F69: 64 | G69: m | J69: 0
E70: 7.6 | F70: 66 | G70: m | J70: 0
E71: 7.8 | F71: 68 | G71: m | J71: 0
E72: 8 | F72: 70 | G72: m | J72: 0
E73: 8.2 | F73: 72 | G73: m | J73: 0
E74: 8.4 | F74: 74 | G74: m | J74: 0
E75: 8.6 | F75: 76 | G75: m | J75: 0
E76: 8.8 | F76: 78 | G76: m | J76: 0
E77: 9 | F77: 80 | G77: m | J77: 0
E78: 9.2 | F78: 82 | G78: m | J78: 0
E79: 9.4 | F79: 84 | G79: m | J79: 0
E80: 9.6 | F80: 86 | G80: m | J80: 0
E81: 9.8 | F81: 88 | G81: m | J81: 0
E82: 10 | F82: 90 | G82: m | J82: 0
E83: 10.2 | F83: 92 | G83: m | J83: 0
E84: 10.4 | F84: 94 | G84: m | J84: 0
E85: 10.6 | F85: 96 | G85: m | J85: 0
E86: 10.8 | F86: 98 | G86: m | J86: 0
E87: 11 | F87: 100 | G87: m | J87: 0
E88: 11.2 | F88: 102 | G88: m | J88: 0
E89: 11.4 | F89: 104 | G89: m | J89: 0
E90: 11.6 | F90: 106 | G90: m | J90: 0
E91: 11.8 | F91: 108 | G91: m | J91: 0
E92: 12 | F92: 110 | G92: m | J92: 0
E93: 12.2 | F93: 112 | G93: m | J93: 0
E94: 12.4 | F94: 114 | G94: m | J94: 0
E95: 12.6 | F95: 116 | G95: m | J95: 0
E96: 12.8 | F96: 118 | G96: m | J96: 0
E97: 13 | F97: 120 | G97: m | J97: 0
E98: 13.2 | F98: 122 | G98: m | J98: 0
E99: 13.4 | F99: 124 | G99: m | J99: 0
E100: 13.6 | F100: 126 | G100: m | J100: 0
E101: 13.8 | F101: 128 | G101: m | J101: 0
E102: 14 | F102: 130 | G102: m | J102: =$E$10*H102*E102 -> 0
E103: 14.2 | F103: 132 | G103: m | J103: 0
E104: 14.4 | F104: 134 | G104: m | J104: 0
E105: 14.6 | F105: 136 | G105: m | J105: 0
E106: 14.8 | F106: 138 | G106: m | J106: 0
E107: 15 | F107: 140 | G107: m | J107: 0
E108: 15.2 | F108: 142 | G108: m | J108: 0
E109: 15.4 | F109: 144 | G109: m | J109: 0
E110: 15.6 | F110: 146 | G110: m | J110: 0
E111: 15.8 | F111: 148 | G111: m | J111: 0
E112: 16 | F112: 150 | G112: m | J112: 0
E113: 16.2 | F113: 152 | G113: m | J113: 0
E114: 16.4 | F114: 154 | G114: m | J114: 0
E115: 16.6 | F115: 156 | G115: m | J115: 0
E116: 16.8 | F116: 158 | G116: m | J116: 0
E117: 17 | F117: 160 | G117: m | J117: 0
E118: 17.2 | F118: 162 | G118: m | J118: 0
E119: 17.4 | F119: 164 | G119: m | J119: 0
E120: 17.6 | F120: 166 | G120: m | J120: 0
E121: 17.8 | F121: 168 | G121: m | J121: 0
E122: 18 | F122: 170 | G122: m | J122: 0
E123: 18.2 | F123: 172 | G123: m | J123: 0
E124: 18.4 | F124: 174 | G124: m | J124: 0
E125: 18.6 | F125: 176 | G125: m | J125: 0
E126: 18.8 | F126: 178 | G126: m | J126: 0
E127: 19 | F127: 180 | G127: m | J127: 0
E128: 19.2 | F128: 182 | G128: m | J128: 0
E129: 19.4 | F129: 184 | G129: m | J129: 0
E130: 19.6 | F130: 186 | G130: m | J130: 0
E131: 19.8 | F131: 188 | G131: m | J131: 0
E132: 20 | F132: 190 | G132: m | J132: 0
E133: 20.2 | F133: 192 | G133: m | J133: 0
E134: 20.4 | F134: 194 | G134: m | J134: 0
E135: 20.6 | F135: 196 | G135: m | J135: 0
E136: 20.8 | F136: 198 | G136: m | J136: 0
E137: 21 | F137: 200 | G137: m | J137: 0
E138: 21.2 | F138: 202 | G138: m | J138: 0
E139: 21.4 | F139: 204 | G139: m | J139: 0
E140: 21.6 | F140: 206 | G140: m | J140: 0
E141: 21.8 | F141: 208 | G141: m | J141: 0
E142: 22 | F142: 210 | G142: m | J142: 0
E143: 22.2 | F143: 212 | G143: m | J143: 0
E144: 22.4 | F144: 214 | G144: m | J144: 0
E145: 22.6 | F145: 216 | G145: m | J145: 0
E146: 22.8 | F146: 218 | G146: m | J146: 0
E147: 23 | F147: 220 | G147: m | J147: 0
E148: 23.2 | F148: 222 | G148: m | J148: 0
E149: 23.4 | F149: 224 | G149: m | J149: 0
E150: 23.6 | F150: 226 | G150: m | J150: 0
E151: 23.8 | F151: 228 | G151: m | J151: 0
E152: 24 | F152: 230 | G152: m | J152: 0
E153: 24.2 | F153: 232 | G153: m | J153: 0
E154: 24.4 | F154: 234 | G154: m | J154: 0
E155: 24.6 | F155: 236 | G155: m | J155: 0
E156: 24.8 | F156: 238 | G156: m | J156: 0
E157: 25 | F157: 240 | G157: m | J157: 0
E158: 25.2 | F158: 242 | G158: m | J158: 0
E159: 25.4 | F159: 244 | G159: m | J159: 0
E160: 25.6 | F160: 246 | G160: m | J160: 0
E161: 25.8 | F161: 248 | G161: m | J161: 0
E162: 26 | F162: 250 | G162: m | J162: 0
E163: 26.2 | F163: 252 | G163: m | J163: 0
E164: 26.4 | F164: 254 | G164: m | J164: 0
E165: 26.6 | F165: 256 | G165: m | J165: 0
E166: 26.8 | F166: 258 | G166: m | J166: =$E$10*H166*E166 -> 0
E167: 27 | F167: 260 | G167: m | J167: 0
E168: 27.2 | F168: 262 | G168: m | J168: 0
E169: 27.4 | F169: 264 | G169: m | J169: 0
E170: 27.6 | F170: 266 | G170: m | J170: 0
E171: 27.8 | F171: 268 | G171: m | J171: 0
E172: 28 | F172: 270 | G172: m | J172: 0
E173: 28.2 | F173: 272 | G173: m | J173: 0
E174: 28.4 | F174: 274 | G174: m | J174: 0
E175: 28.6 | F175: 276 | G175: m | J175: 0
E176: 28.8 | F176: 278 | G176: m | J176: 0
E177: 29 | F177: 280 | G177: m | J177: 0
E178: 29.2 | F178: 282 | G178: m | J178: 0
E179: 29.4 | F179: 284 | G179: m | J179: 0
E180: 29.6 | F180: 286 | G180: m | J180: 0
E181: 29.8 | F181: 288 | G181: m | J181: 0
E182: 30 | F182: 290 | G182: m | J182: 0
E183: 30.2 | F183: 292 | G183: m | J183: 0
E184: 30.4 | F184: 294 | G184: m | J184: 0
E185: 30.6 | F185: 296 | G185: m | J185: 0
E186: 30.8 | F186: 298 | G186: m | J186: 0
E187: 31 | F187: 300 | G187: m | J187: 0
H188: =SUM(H37:I187) -> 0 mm | J188: =SUM(J37:J187) -> 0

Sheet 12
B1: Attention :
B3: L'alarme narcose est réglée pour une Pne de 60m, pour plus de sécurité et pour optimiser la déco, s'en tenir à 30, 35m.
B4: Alarme Narcose > 5,53 Alarme Pne élevée >3,56
B5: Alarme hyperoxie de 7 à 43m ( > 1,6 ) de 44 à 170m ( > 1,5 ) de 171 à 300m ( > 1,4 )
B6: Verrouillage set point haut de 7 à 43 m ( >1,6 )--------de 44m à 170m ( >1,5 )--------de 171m à 300m ( >1,4 )
B7: Les phénomènes de compressibilité des gaz ne sont pas pris en charge dans ce tableur, en tenir compte pour les pressions élevées !
A11: JP Couloumy
D13: HELIUM | F13: OXYGENE | I13: NITROX | L13: AIR
C14: =IF(K20<0,"impossible à réaliser par PP",IF(K21<0,"impossible à réaliser par PP",IF(K22<0,"impossible à réaliser par PP",""))) -> 
J15: Fabrication Héliair
D16: Diluant désiré | J16: Hé | K16: =(F18/100)*H19 -> 170 | L16: B
D17: =IF(D18="Air","",IF(E18<21,IF(E18>17.9," Héliair < 15% ?",""))) ->  | H17: Pression
D18: =IF(F18=0,"Air","Héliair") -> Héliair | E18: =K31 -> 3.2 | F18: 85 | H18: désirée | J18: Air | K18: =(H19-K16) -> 30 | L18: B | S18: restante | T18: désirée | U18: rajout
H19: 200 | J19: Fabrication trimix ( PP ) | M19: =K16+K18 -> 200 | R19: Pression | S19: 0 | T19: =H19 -> 200.000 | U19: =T19-S19 -> 200.000
D20: =IF(E20=100,"?",IF(E20+F20=100,"Héliox",IF(F20=0,"Nitrox",IF(F20>0,"Trimix")))) -> Trimix | E20: 10.5 | F20: 50 | H20: bars | J20: O2 | K20: =F24 -> 0.0 | L20: B | R20: % o2 | S20: 0 | T20: =E20/100 -> 0.105
H21: =IF(K20<0,"?","") ->  | J21: Hé | K21: =G22 -> 100.0 | L21: B | R21: % Hé | S21: 0 | T21: =(F20/100) -> 0.500
C22: Hé = | D22: =F20 -> 50.0 | E22: =IF(E20+F20>100,"> à 100 % !","") ->  | G22: =F20/100*(H19) -> 100.0 | J22: Air | K22: =F25 -> 100.0 | L22: B | R22: % N2 | S22: =IF(S20=0,0,IF(S21=0,1-S20,1-S20-S21)) -> 0 | T22: =IF(T20=0,0,IF(T21=0,1-T20,IF(T21>0,1-T20-T21))) -> 0.395
C23: N2= | D23: =(100-F20)-E20 -> 39.5 | E23: % | F23: =D23/100*(H19) -> 79.0 | G23: bars | I23: Fabrication trimix (stick, tamp) | R23: PP o2 | S23: =S19*S20 -> 0 | T23: =T19*T20 -> 21.000 | U23: =T23-S23 -> 21.000
C24: O2= | D24: =100-(D22+D23) -> 10.5 | E24: % | F24: =H27/100*(H19) -> 0.0 | G24: bars | R24: PP Hé | S24: =S19*S21 -> 0 | T24: =T19*T21 -> 100.000 | U24: =T24-S24 -> 100.000
C25: Air= | D25: =100/79*D23 -> 50.0 | E25: % | F25: =D25/100*(H19) -> 100.0 | G25: bars | I25: Hé | K25: =(F20/100)*H19 -> 100.0 | L25: B | R25: PP N2 | S25: =S19*S22 -> 0 | T25: =T19*T22 -> 79.000 | U25: =T25-S25 -> 79.000
C26: O2 air | D26: =21/79*D23 -> 10.5 | E26: % | F26: stick nitrox
D27: =D22+D23+D24 -> 100.0 | E27: % | F27: =G22+F24+F25 -> 200 | G27: bars | H27: =D24-D26 -> 0.0 | I27: N | J27: 100 | K27: =S29 -> 0.0 | L27: B | R27: O2 | S27: =J27/100 -> 1.00 | U27: O2 | V27: 21%
I28: Air | K28: =S31 -> 100.0 | L28: B | R28: N2 | S28: =1-S27 -> 0 | T28: tampon | U28: N2 | V28: =1-V27 -> 79% | W28: compresseur
C29: =IF(K25<0,"impossible à réaliser avec nitrox",IF(K27<0,"impossible à réaliser avec nitrox",IF(K28<0,"impossible à réaliser avec nitrox",""))) ->  | R29: ="Nitrox "&TEXT(S27*100,0) -> Nitrox 100 | S29: =(V28*U23-V27*U25)/(S27*V28-S28*V27) -> 0 | T29: bars | U29: O2 | V29: =S29*S27+S31*V27+S19*S20 -> 21.00 | W29: bars | X29: =V29/V32 -> 11%
L30: =K20+K21+K22 -> 200 | R30: Hélium | S30: =U24 -> 100.00 | T30: bars | U30: He | V30: =S30+S19*S21 -> 100.00 | W30: bars | X30: =V30/V32 -> 50%
J31: = Hr | K31: =(K18)*(21/100)/(H19)*100 -> 3.2 | L31: =K16/H19*100 -> 85 | R31: compresseur | S31: =(S27*U25-S28*U23)/(S27*V28-S28*V27) -> 100.00 | T31: bars | U31: N2 | V31: =S29*S28+S31*V28+S19*S22 -> 79.00 | W31: bars | X31: =V31/V32 -> 40%
K32: =IF(K22<0,"Héliox impossible !","") ->  | U32: Total | V32: =SUM(V29:V31) -> 200.00 | W32: bars | X32: =SUM(X29:X31) -> 100%
J33: N2 = | K33: =100-(K31+L31) -> 11.9 | W33: =IF(X29=1,"Oxygene",IF(X30>0,"Trimix "&TEXT(X29*100,0)&"/"&TEXT(X30*100,0),"Nitrox "&TEXT(X29*100,0))) -> Trimix 11/50
J34: Total | K34: =K16+K18 -> 200 | L34: bars
E42: lire | F42: lire | K42: SET POINT de 0 à 6 m | Q42: 0.7
K43: SET POINT de 7 à 43 m | Q43: 0.7
C44: Si paliers (6 à 0m) à l'02 | F44: 0 | K44: SET POINT de 44 à 170 m | Q44: 1.3
C45: TAPER oxy | K45: SET POINT de 171 à 300 m | Q45: 1.3
B47: Pour voir rinçage diluant ou | F47: oc | G47: F47 | I47: Dil | K47: Diluant | L47: =IF(E20=21,IF(D20="Nitrox","AIR"),D20) -> Trimix | O47: =E20 -> 10.5 | Q47: =F20 -> 50 | R47: =100-(O47+Q47) -> 39.5 | S47: coef = Hé / N2 | T47: =Q47/R47 -> 1.266
B48: passage en circuit ouvert | H48: Prof | J48: Prof. set point PPN2 | N48: %O2 | O48: Pne Ppge | Q48: DANGER
A49: 1 | B49: (TAPER OC) | S49: ,% 02 | T49: Hé+N2= | U49: % N2 = | V49: , % Hé
A50: clic | H50: 0 m | J50: 0 | K50: =IF($F$44="oxy","m",IF(L50>1," Pa < à","m")) -> m | L50: =IF($F$44="oxy","02",$Q$42) -> 0.70 | M50: =IF(L50="02","",IF($R$47=0,0,U50*A49/100)) -> 0.13 | N50: =IF($F$44="oxy",1,S50/100) -> 70.00% | O50: =IF(M50="","",IF(M50<0.79,0,(10*M50)/0.79-7.9/0.79)) -> 0 m | P50: lire | Q50: =IF($Q$42<=0.16,"hypoxie",IF(K50=" Pa < à","impossible","")) ->  | S50: =$Q$42/A49*100 -> 70.00 | T50: =100-S50 -> 30.000 | U50: =T50/($T$47+1) -> 13.240 | V50: =100-(S50+U50) -> 16.760 | W50: =V50+U50+S50 -> 100
A51: 1.1 | H51: 1 m | J51: 1 | K51: =IF($F$44="oxy","m",IF(L51>1.1," Pa < à","m")) -> m | L51: 0.70 | M51: =IF(L51="02","",IF($R$47=0,0,U51*A51/100)) -> 0.18 | N51: 63.64% | O51: =IF(M51="","",IF(M51<0.79,0,(10*M51)/0.79-7.9/0.79)) -> 0 m | P51: =IF(P52<=0,0,IF(J51="OC ou",(((((($E$20%*1.428)+($F$20%*0.178)+($D$23%*1.25))*A51))/1.28738)*10)-10,((((((S51%*1.428)+(V51%*0.178)+(U51%*1.25))*A51))/1.28738)*10)-10)) -> -0 m | S51: =$Q$42/A51*100 -> 63.64 | T51: 36.364 | U51: 16.049 | V51: =100-(S51+U51) -> 20.315 | W51: =V51+U51+S51 -> 100
A52: 1.2 | H52: 2 m | J52: 2 | K52: =IF($F$44="oxy","m",IF(L52>1.2," Pa < à","m")) -> m | L52: 0.70 | M52: 0.22 | N52: 58.33% | O52: 0 m | P52: =IF(P53<=0,0,IF(J52="OC ou",(((((($E$20%*1.428)+($F$20%*0.178)+($D$23%*1.25))*A52))/1.28738)*10)-10,((((((S52%*1.428)+(V52%*0.178)+(U52%*1.25))*A52))/1.28738)*10)-10)) -> 0 m | S52: 58.33 | T52: 41.667 | U52: 18.389 | V52: 23.277 | W52: 100
A53: 1.3 | H53: 3 m | J53: 3 | K53: =IF($F$44="oxy","m",IF(L53>1.3," Pa < à","m")) -> m | L53: 0.70 | M53: 0.26 | N53: 53.85% | O53: 0 m | P53: 1 m | S53: 53.85 | T53: 46.154 | U53: 20.370 | V53: 25.784 | W53: 100
A54: 1.4 | H54: 4 m | J54: 4 | K54: =IF($F$44="oxy","m",IF(L54>1.4," Pa < à","m")) -> m | L54: 0.70 | M54: 0.31 | N54: 50.00% | O54: 0 m | P54: 1 m | S54: 50.00 | T54: 50.000 | U54: 22.067 | V54: 27.933 | W54: 100
A55: 1.5 | H55: 5 m | J55: 5 | K55: =IF($F$44="oxy","m",IF(L55>1.5," Pa < à","m")) -> m | L55: 0.70 | M55: 0.35 | N55: 46.67% | O55: 0 m | P55: 2 m | S55: 46.67 | T55: 53.333 | U55: 23.538 | V55: 29.795 | W55: 100
A56: 1.6 | H56: 6 m | J56: 6 | K56: =IF($F$44="oxy","m",IF(L56>1.6," Pa < à","m")) -> m | L56: 0.70 | M56: 0.40 | N56: 43.75% | O56: 0 m | P56: 2 m | Q56: =IF($Q$42<=0.16,"hypoxie",IF(K56=" Pa < à","impossible",IF(F44="oxy","rinçage 02",""))) ->  | S56: 43.75 | T56: =100-S56 -> 56.250 | U56: =T56/($T$47+1) -> 24.825 | V56: 31.425 | W56: 100
A57: 1.7 | B57: =IF(A57*$E$20/100>$Q$43,"PP02 rinçage ou OC > set point, taper OC en F47","") ->  | H57: 7 m | J57: =IF($F$47="oc",IF($E$20>S57,"OC ou",(A57-1)*10),(A57-1)*10) -> 7 | K57: =IF(J57="OC ou"," rinçage =","m") -> m | L57: =IF($F$47="oc",IF(A57*$E$20/100>$Q$43,A57*$E$20/100,$Q$43),$Q$43) -> 0.70 | M57: =IF($R$47=0,0,IF(K57="m",U57*A57/100,$R$47*A57/100)) -> 0.44 | N57: =IF(K57="m",S57/100,L57/A57) -> 41.18% | O57: =IF(M57<0,"!",IF(M57<0.79,0,(10*M57)/0.79-7.9/0.79)) -> 0 m | P57: 3 m | Q57: =IF(O57>(A57*10)-10,"Pne>P",IF(L57>1.6,"hyperoxie","")) ->  | R57: =IF(M57>5.53,"Narcose",IF(M57>3.56,"Pne>à35m","")) ->  | S57: =$Q$43/A57*100 -> 41.18 | T57: =100-S57 -> 58.824 | U57: =T57/($T$47+1) -> 25.961 | V57: 32.862 | W57: 100
A58: 1.8 | B58: =IF(A58*$E$20/100>$Q$43,"PP02 rinçage ou OC > set point, taper OC en F47","") ->  | H58: 8 m | J58: 8 | K58: =IF(J58="OC ou"," rinçage =","m") -> m | L58: 0.70 | M58: =IF($R$47=0,0,IF(K58="m",U58*A58/100,$R$47*A58/100)) -> 0.49 | N58: =IF(K58="m",S58/100,L58/A58) -> 38.89% | O58: =IF(M58<0,"!",IF(M58<0.79,0,(10*M58)/0.79-7.9/0.79)) -> 0 m | P58: 3 m | Q58: =IF(O58>(A58*10)-10,"Pne>P",IF(L58>1.6,"hyperoxie","")) ->  | R58: =IF(M58>5.53,"Narcose",IF(M58>3.56,"Pne>à35m","")) ->  | S58: =$Q$43/A58*100 -> 38.89 | T58: 61.111 | U58: 26.971 | V58: 34.140 | W58: 100
A59: 1.9 | H59: 9 m | J59: 9 | K59: m | L59: 0.70 | M59: 0.53 | N59: 36.84% | O59: =IF(M59<0,"!",IF(M59<0.79,0,(10*M59)/0.79-7.9/0.79)) -> 0 m | P59: 4 m | S59: 36.84 | T59: 63.158 | U59: 27.874 | V59: 35.284 | W59: 100
A60: 2 | H60: 10 m | J60: 10 | K60: m | L60: 0.70 | M60: 0.57 | N60: 35.00% | O60: =IF(M60<0,"!",IF(M60<0.79,0,(10*M60)/0.79-7.9/0.79)) -> 0 m | P60: 4 m | S60: 35.00 | T60: 65.000 | U60: 28.687 | V60: 36.313 | W60: 100
A61: 2.1 | H61: 11 m | J61: 11 | K61: m | L61: 0.70 | M61: 0.62 | N61: 33.33% | O61: =IF(M61="","",IF(M61<0,"!",IF(M61<0.79,0,(10*M61)/0.79-7.9/0.79))) -> 0 m | P61: 5 m | S61: 33.33 | T61: 66.667 | U61: 29.423 | V61: 37.244 | W61: 100
A62: 2.2 | H62: 12 m | J62: 12 | K62: m | L62: 0.70 | M62: 0.66 | N62: 31.82% | O62: =IF(M62="","",IF(M62<0,"!",IF(M62<0.79,0,(10*M62)/0.79-7.9/0.79))) -> 0 m | P62: 5 m | S62: 31.82 | T62: 68.182 | U62: 30.091 | V62: 38.090 | W62: 100
A63: 2.3 | H63: 13 m | J63: 13 | K63: m | L63: 0.70 | M63: 0.71 | N63: 30.43% | O63: 0 m | P63: 6 m | S63: 30.43 | T63: 69.565 | U63: 30.702 | V63: 38.863 | W63: 100
A64: 2.4 | H64: 14 m | J64: 14 | K64: m | L64: 0.70 | M64: 0.75 | N64: 29.17% | O64: 0 m | P64: 6 m | S64: 29.17 | T64: 70.833 | U64: 31.262 | V64: 39.572 | W64: 100
A65: 2.5 | H65: 15 m | J65: 15 | K65: m | L65: 0.70 | M65: 0.79 | N65: 28.00% | O65: 0 m | P65: 7 m | S65: 28.00 | T65: 72.000 | U65: 31.777 | V65: 40.223 | W65: 100
A66: 2.6 | H66: 16 m | J66: 16 | K66: m | L66: 0.70 | M66: 0.84 | N66: 26.92% | O66: 1 m | P66: 7 m | S66: 26.92 | T66: 73.077 | U66: 32.252 | V66: 40.825 | W66: 100
A67: 2.7 | H67: 17 m | J67: 17 | K67: m | L67: 0.70 | M67: 0.88 | N67: 25.93% | O67: 1 m | P67: 8 m | S67: 25.93 | T67: 74.074 | U67: 32.692 | V67: 41.382 | W67: 100
A68: 2.8 | H68: 18 m | J68: 18 | K68: m | L68: 0.70 | M68: 0.93 | N68: 25.00% | O68: 2 m | P68: 8 m | S68: 25.00 | T68: 75.000 | U68: 33.101 | V68: 41.899 | W68: 100
A69: 2.9 | H69: 19 m | J69: 19 | K69: m | L69: 0.70 | M69: 0.97 | N69: 24.14% | O69: 2 m | P69: 9 m | S69: 24.14 | T69: 75.862 | U69: 33.481 | V69: 42.381 | W69: 100
A70: 3 | H70: 20 m | J70: 20 | K70: m | L70: 0.70 | M70: 1.02 | N70: 23.33% | O70: 3 m | P70: 9 m | S70: 23.33 | T70: 76.667 | U70: 33.836 | V70: 42.831 | W70: 100
A71: 3.1 | H71: 21 m | J71: 21 | K71: m | L71: 0.70 | M71: 1.06 | N71: 22.58% | O71: 3 m | P71: 10 m | S71: 22.58 | T71: 77.419 | U71: 34.168 | V71: 43.251 | W71: 100
A72: 3.2 | H72: 22 m | J72: 22 | K72: m | L72: 0.70 | M72: 1.10 | N72: 21.88% | O72: 4 m | P72: 10 m | S72: 21.88 | T72: 78.125 | U72: 34.480 | V72: 43.645 | W72: 100
A73: 3.3 | H73: 23 m | J73: 23 | K73: m | L73: 0.70 | M73: 1.15 | N73: 21.21% | O73: 5 m | P73: 11 m | S73: 21.21 | T73: 78.788 | U73: 34.772 | V73: 44.016 | W73: 100
A74: 3.4 | H74: 24 m | J74: 24 | K74: m | L74: 0.70 | M74: 1.19 | N74: 20.59% | O74: 5 m | P74: 11 m | S74: 20.59 | T74: 79.412 | U74: 35.048 | V74: 44.364 | W74: 100
A75: 3.5 | H75: 25 m | J75: 25 | K75: m | L75: 0.70 | M75: 1.24 | N75: 20.00% | O75: 6 m | P75: 12 m | S75: 20.00 | T75: 80.000 | U75: 35.307 | V75: 44.693 | W75: 100
A76: 3.6 | H76: 26 m | J76: 26 | K76: m | L76: 0.70 | M76: 1.28 | N76: 19.44% | O76: 6 m | P76: 12 m | S76: 19.44 | T76: 80.556 | U76: 35.552 | V76: 45.003 | W76: 100
A77: 3.7 | H77: 27 m | J77: 27 | K77: m | L77: 0.70 | M77: 1.32 | N77: 18.92% | O77: 7 m | P77: 13 m | S77: 18.92 | T77: 81.081 | U77: 35.784 | V77: 45.297 | W77: 100
A78: 3.8 | H78: 28 m | J78: 28 | K78: m | L78: 0.70 | M78: 1.37 | N78: 18.42% | O78: 7 m | P78: 13 m | S78: 18.42 | T78: 81.579 | U78: 36.004 | V78: 45.575 | W78: 100
A79: 3.9 | H79: 29 m | J79: 29 | K79: m | L79: 0.70 | M79: 1.41 | N79: 17.95% | O79: 8 m | P79: 14 m | S79: 17.95 | T79: 82.051 | U79: 36.213 | V79: 45.839 | W79: 100
A80: 4 | H80: 30 m | J80: 30 | K80: m | L80: 0.70 | M80: 1.46 | N80: 17.50% | O80: 8 m | P80: 14 m | S80: 17.50 | T80: 82.500 | U80: 36.411 | V80: 46.089 | W80: 100
A81: 4.1 | H81: 31 m | J81: 31 | K81: m | L81: 0.70 | M81: 1.50 | N81: 17.07% | O81: 9 m | P81: 15 m | S81: 17.07 | T81: 82.927 | U81: 36.599 | V81: 46.328 | W81: 100
A82: 4.2 | H82: 32 m | J82: 32 | K82: m | L82: 0.70 | M82: 1.54 | N82: 16.67% | O82: 10 m | P82: 15 m | S82: 16.67 | T82: 83.333 | U82: 36.778 | V82: 46.555 | W82: 100
A83: 4.3 | H83: 33 m | J83: 33 | K83: m | L83: 0.70 | M83: 1.59 | N83: 16.28% | O83: 10 m | P83: 16 m | S83: 16.28 | T83: 83.721 | U83: 36.949 | V83: 46.771 | W83: 100
A84: 4.4 | H84: 34 m | J84: 34 | K84: m | L84: 0.70 | M84: 1.63 | N84: 15.91% | O84: 11 m | P84: 16 m | S84: 15.91 | T84: 84.091 | U84: 37.113 | V84: 46.978 | W84: 100
A85: 4.5 | H85: 35 m | J85: 35 | K85: m | L85: 0.70 | M85: 1.68 | N85: 15.56% | O85: 11 m | P85: 17 m | S85: 15.56 | T85: 84.444 | U85: 37.269 | V85: 47.176 | W85: 100
A86: 4.6 | H86: 36 m | J86: 36 | K86: m | L86: 0.70 | M86: 1.72 | N86: 15.22% | O86: 12 m | P86: 17 m | S86: 15.22 | T86: 84.783 | U86: 37.418 | V86: 47.365 | W86: 100
A87: 4.7 | H87: 37 m | J87: 37 | K87: m | L87: 0.70 | M87: 1.77 | N87: 14.89% | O87: 12 m | P87: 18 m | S87: 14.89 | T87: 85.106 | U87: 37.561 | V87: 47.545 | W87: 100
A88: 4.8 | H88: 38 m | J88: 38 | K88: m | L88: 0.70 | M88: 1.81 | N88: 14.58% | O88: 13 m | P88: 19 m | S88: 14.58 | T88: 85.417 | U88: 37.698 | V88: 47.719 | W88: 100
A89: 4.9 | H89: 39 m | J89: 39 | K89: m | L89: 0.70 | M89: 1.85 | N89: 14.29% | O89: 13 m | P89: 19 m | S89: 14.29 | T89: 85.714 | U89: 37.829 | V89: 47.885 | W89: 100
A90: 5 | H90: 40 m | J90: 40 | K90: m | L90: 0.70 | M90: 1.90 | N90: 14.00% | O90: 14 m | P90: 20 m | S90: 14.00 | T90: 86.000 | U90: 37.955 | V90: 48.045 | W90: 100
A91: 5.1 | H91: 41 m | J91: 41 | K91: m | L91: 0.70 | M91: 1.94 | N91: 13.73% | O91: 15 m | P91: 20 m | S91: 13.73 | T91: 86.275 | U91: 38.076 | V91: 48.198 | W91: 100
A92: 5.2 | H92: 42 m | J92: 42 | K92: m | L92: 0.70 | M92: 1.99 | N92: 13.46% | O92: 15 m | P92: 21 m | S92: 13.46 | T92: 86.538 | U92: 38.193 | V92: 48.346 | W92: 100
A93: 5.3 | H93: 43 m | J93: 43 | K93: m | L93: 0.70 | M93: 2.03 | N93: 13.21% | O93: 16 m | P93: 21 m | S93: 13.21 | T93: 86.792 | U93: 38.305 | V93: 48.487 | W93: 100
A94: 5.4 | B94: =IF(A94*$E$20/100>$Q$44,"PP02 rinçage ou OC > set point, taper OC en F47","") ->  | H94: 44 m | J94: 44 | K94: =IF(J94="OC ou"," rinçage =","m") -> m | L94: =IF($F$47="oc",IF(A94*$E$20/100>$Q$44,A94*$E$20/100,$Q$44),$Q$44) -> 1.30 | M94: 1.81 | N94: 24.07% | O94: 13 m | P94: =IF(J94="OC ou",(((((($E$20%*1.428)+($F$20%*0.178)+($D$23%*1.25))*A94))/1.28738)*10)-10,((((((S94%*1.428)+(V94%*0.178)+(U94%*1.25))*A94))/1.28738)*10)-10) -> 25 m | Q94: =IF(O94>(A94*10)-10,"Pne>P",IF(L94>1.5,"hyperoxie","")) ->  | S94: =$Q$44/A94*100 -> 24.07 | T94: 75.926 | U94: 33.509 | V94: 42.417 | W94: 100
A95: 5.5 | B95: =IF(A95*$E$20/100>$Q$44,"PP02 rinçage ou OC > set point, taper OC en F47","") ->  | H95: 45 m | J95: 45 | K95: =IF(J95="OC ou"," rinçage =","m") -> m | L95: 1.30 | M95: 1.85 | N95: 23.64% | O95: 13 m | P95: 26 m | Q95: =IF(O95>(A95*10)-10,"Pne>P",IF(L95>1.5,"hyperoxie","")) ->  | S95: 23.64 | T95: 76.364 | U95: 33.702 | V95: 42.661 | W95: 100
A96: 5.6 | H96: 46 m | J96: 46 | K96: m | L96: 1.30 | M96: 1.90 | N96: 23.21% | O96: 14 m | P96: 26 m | S96: 23.21 | T96: 76.786 | U96: 33.889 | V96: 42.897 | W96: 100
A97: 5.7 | H97: 47 m | J97: 47 | K97: m | L97: 1.30 | M97: 1.94 | N97: 22.81% | O97: 15 m | P97: 27 m | S97: 22.81 | T97: 77.193 | U97: 34.068 | V97: 43.125 | W97: 100
A98: 5.8 | H98: 48 m | J98: 48 | K98: m | L98: 1.30 | M98: 1.99 | N98: 22.41% | O98: 15 m | P98: 27 m | S98: 22.41 | T98: 77.586 | U98: 34.242 | V98: 43.344 | W98: 100
A99: 5.9 | H99: 49 m | J99: 49 | K99: m | L99: 1.30 | M99: 2.03 | N99: 22.03% | O99: 16 m | P99: 28 m | S99: 22.03 | T99: 77.966 | U99: 34.410 | V99: 43.556 | W99: 100
A100: 6 | H100: 50 m | J100: 50 | K100: m | L100: 1.30 | M100: 2.07 | N100: 21.67% | O100: 16 m | P100: 28 m | S100: 21.67 | T100: 78.333 | U100: 34.572 | V100: 43.762 | W100: 100
A101: 6.1 | H101: 51 m | J101: 51 | K101: m | L101: 1.30 | M101: 2.12 | N101: 21.31% | O101: 17 m | P101: 29 m | S101: 21.31 | T101: 78.689 | U101: 34.728 | V101: 43.960 | W101: 100
A102: 6.2 | H102: 52 m | J102: 52 | K102: m | L102: 1.30 | M102: 2.16 | N102: 20.97% | O102: 17 m | P102: 29 m | S102: 20.97 | T102: 79.032 | U102: 34.880 | V102: 44.152 | W102: 100
A103: 6.3 | H103: 53 m | J103: 53 | K103: m | L103: 1.30 | M103: 2.21 | N103: 20.63% | O103: 18 m | P103: 30 m | S103: 20.63 | T103: 79.365 | U103: 35.027 | V103: 44.338 | W103: 100
A104: 6.4 | H104: 54 m | J104: 54 | K104: m | L104: 1.30 | M104: 2.25 | N104: 20.31% | O104: 18 m | P104: 30 m | S104: 20.31 | T104: 79.688 | U104: 35.169 | V104: 44.518 | W104: 100
A105: 6.5 | H105: 55 m | J105: 55 | K105: m | L105: 1.30 | M105: 2.29 | N105: 20.00% | O105: 19 m | P105: 31 m | S105: 20.00 | T105: 80.000 | U105: 35.307 | V105: 44.693 | W105: 100
A106: 6.6 | H106: 56 m | J106: 56 | K106: m | L106: 1.30 | M106: 2.34 | N106: 19.70% | O106: 20 m | P106: 31 m | S106: 19.70 | T106: 80.303 | U106: 35.441 | V106: 44.862 | W106: 100
A107: 6.7 | H107: 57 m | J107: 57 | K107: m | L107: 1.30 | M107: 2.38 | N107: 19.40% | O107: 20 m | P107: 32 m | S107: 19.40 | T107: 80.597 | U107: 35.571 | V107: 45.026 | W107: 100
A108: 6.8 | H108: 58 m | J108: 58 | K108: m | L108: 1.30 | M108: 2.43 | N108: 19.12% | O108: 21 m | P108: 32 m | S108: 19.12 | T108: 80.882 | U108: 35.697 | V108: 45.186 | W108: 100
A109: 6.9 | H109: 59 m | J109: 59 | K109: m | L109: 1.30 | M109: 2.47 | N109: 18.84% | O109: 21 m | P109: 33 m | S109: 18.84 | T109: 81.159 | U109: 35.819 | V109: 45.340 | W109: 100
A110: 7 | H110: 60 m | J110: 60 | K110: m | L110: 1.30 | M110: 2.52 | N110: 18.57% | O110: 22 m | P110: 33 m | S110: 18.57 | T110: 81.429 | U110: 35.938 | V110: 45.491 | W110: 100
A111: 7.1 | H111: 61 m | J111: 61 | K111: m | L111: 1.30 | M111: 2.56 | N111: 18.31% | O111: 22 m | P111: 34 m | S111: 18.31 | T111: 81.690 | U111: 36.053 | V111: 45.637 | W111: 100
A112: 7.2 | H112: 62 m | J112: 62 | K112: m | L112: 1.30 | M112: 2.60 | N112: 18.06% | O112: 23 m | P112: 34 m | S112: 18.06 | T112: 81.944 | U112: 36.165 | V112: 45.779 | W112: 100
A113: 7.3 | H113: 63 m | J113: 63 | K113: m | L113: 1.30 | M113: 2.65 | N113: 17.81% | O113: 24 m | P113: 35 m | S113: 17.81 | T113: 82.192 | U113: 36.275 | V113: 45.917 | W113: 100
A114: 7.4 | H114: 64 m | J114: 64 | K114: m | L114: 1.30 | M114: 2.69 | N114: 17.57% | O114: 24 m | P114: 35 m | S114: 17.57 | T114: 82.432 | U114: 36.381 | V114: 46.052 | W114: 100
A115: 7.5 | H115: 65 m | J115: 65 | K115: m | L115: 1.30 | M115: 2.74 | N115: 17.33% | O115: 25 m | P115: 36 m | S115: 17.33 | T115: 82.667 | U115: 36.484 | V115: =100-(S115+U115) -> 46.182 | W115: =V115+U115+S115 -> 100
A116: 7.6 | H116: 66 m | J116: 66 | K116: m | L116: 1.30 | M116: 2.78 | N116: 17.11% | O116: 25 m | P116: =IF(J116="OC ou",(((((($E$20%*1.428)+($F$20%*0.178)+($D$23%*1.25))*A116))/1.28738)*10)-10,((((((S116%*1.428)+(V116%*0.178)+(U116%*1.25))*A116))/1.28738)*10)-10) -> 36 m | S116: 17.11 | T116: 82.895 | U116: 36.585 | V116: 46.310 | W116: 100
A117: 7.7 | H117: 67 m | J117: 67 | K117: m | L117: 1.30 | M117: 2.82 | N117: 16.88% | O117: 26 m | P117: 37 m | S117: 16.88 | T117: 83.117 | U117: 36.683 | V117: 46.434 | W117: 100
A118: 7.8 | H118: 68 m | J118: 68 | K118: m | L118: 1.30 | M118: 2.87 | N118: 16.67% | O118: 26 m | P118: 37 m | S118: 16.67 | T118: 83.333 | U118: 36.778 | V118: 46.555 | W118: 100
A119: 7.9 | H119: 69 m | J119: 69 | K119: m | L119: 1.30 | M119: 2.91 | N119: 16.46% | O119: 27 m | P119: 38 m | S119: 16.46 | T119: 83.544 | U119: 36.872 | V119: 46.673 | W119: 100
A120: 8 | H120: 70 m | J120: 70 | K120: m | L120: 1.30 | M120: 2.96 | N120: 16.25% | O120: 27 m | P120: 38 m | S120: 16.25 | T120: 83.750 | U120: 36.962 | V120: 46.788 | W120: 100
A121: 8.1 | H121: 71 m | J121: =IF($F$47="oc",IF($E$20>S121,"OC ou",(A121-1)*10),(A121-1)*10) -> 71 | K121: m | L121: 1.30 | M121: 3.00 | N121: 16.05% | O121: 28 m | P121: 39 m | S121: 16.05 | T121: =100-S121 -> 83.951 | U121: =T121/($T$47+1) -> 37.051 | V121: 46.900 | W121: 100
A122: 8.2 | H122: 72 m | J122: 72 | K122: m | L122: 1.30 | M122: =IF($R$47=0,0,IF(K122="m",U122*A122/100,$R$47*A122/100)) -> 3.05 | N122: =IF(K122="m",S122/100,L122/A122) -> 15.85% | O122: 29 m | P122: 39 m | R122: =IF(M122>5.53,"Narcose",IF(M122>3.56,"Pne>à35m","")) ->  | S122: 15.85 | T122: 84.146 | U122: 37.137 | V122: 47.009 | W122: 100
A123: 8.3 | H123: 73 m | J123: 73 | K123: m | L123: 1.30 | M123: 3.09 | N123: 15.66% | O123: 29 m | P123: 40 m | S123: 15.66 | T123: 84.337 | U123: 37.222 | V123: 47.116 | W123: 100
A124: 8.4 | H124: 74 m | J124: 74 | K124: m | L124: 1.30 | M124: 3.13 | N124: 15.48% | O124: 30 m | P124: 40 m | S124: 15.48 | T124: 84.524 | U124: 37.304 | V124: 47.220 | W124: 100
A125: 8.5 | H125: 75 m | J125: 75 | K125: m | L125: 1.30 | M125: 3.18 | N125: 15.29% | O125: 30 m | P125: 41 m | S125: 15.29 | T125: 84.706 | U125: 37.384 | V125: 47.322 | W125: 100
A126: 8.6 | H126: 76 m | J126: 76 | K126: m | L126: =IF($F$47="oc",IF(A126*$E$20/100>$Q$44,A126*$E$20/100,$Q$44),$Q$44) -> 1.30 | M126: 3.22 | N126: 15.12% | O126: =IF(M126="","",IF(M126<0,"!",IF(M126<0.79,0,(10*M126)/0.79-7.9/0.79))) -> 31 m | P126: 41 m | S126: 15.12 | T126: 84.884 | U126: 37.463 | V126: 47.421 | W126: 100
A127: 8.7 | H127: 77 m | J127: 77 | K127: m | L127: 1.30 | M127: 3.27 | N127: 14.94% | O127: 31 m | P127: 42 m | S127: 14.94 | T127: 85.057 | U127: 37.539 | V127: 47.518 | W127: 100
A128: 8.8 | H128: 78 m | J128: 78 | K128: m | L128: 1.30 | M128: 3.31 | N128: 14.77% | O128: 32 m | P128: 42 m | S128: 14.77 | T128: 85.227 | U128: 37.614 | V128: 47.613 | W128: 100
A129: 8.9 | H129: 79 m | J129: 79 | K129: m | L129: 1.30 | M129: 3.35 | N129: 14.61% | O129: 32 m | P129: 43 m | S129: 14.61 | T129: 85.393 | U129: 37.688 | V129: 47.706 | W129: 100
A130: 9 | H130: 80 m | J130: 80 | K130: m | L130: 1.30 | M130: 3.40 | N130: 14.44% | O130: 33 m | P130: 43 m | S130: 14.44 | T130: 85.556 | U130: 37.759 | V130: 47.796 | W130: 100
A131: 9.1 | H131: 81 m | J131: 81 | K131: m | L131: 1.30 | M131: 3.44 | N131: 14.29% | O131: 34 m | P131: 44 m | S131: 14.29 | T131: 85.714 | U131: 37.829 | V131: 47.885 | W131: 100
A132: 9.2 | H132: 82 m | J132: 82 | K132: m | L132: 1.30 | M132: 3.49 | N132: 14.13% | O132: 34 m | P132: 44 m | S132: 14.13 | T132: 85.870 | U132: 37.898 | V132: 47.972 | W132: 100
A133: 9.3 | H133: 83 m | J133: 83 | K133: m | L133: 1.30 | M133: 3.53 | N133: 13.98% | O133: 35 m | P133: 45 m | S133: 13.98 | T133: 86.022 | U133: 37.965 | V133: 48.057 | W133: 100
A134: 9.4 | H134: 84 m | J134: 84 | K134: m | L134: 1.30 | M134: 3.57 | N134: 13.83% | O134: 35 m | P134: 45 m | R134: Pne>à35m | S134: 13.83 | T134: 86.170 | U134: 38.030 | V134: 48.140 | W134: 100
A135: 9.5 | H135: 85 m | J135: 85 | K135: m | L135: 1.30 | M135: 3.62 | N135: 13.68% | O135: 36 m | P135: 46 m | R135: Pne>à35m | S135: 13.68 | T135: 86.316 | U135: 38.095 | V135: 48.221 | W135: 100
A136: 9.6 | H136: 86 m | J136: 86 | K136: m | L136: 1.30 | M136: 3.66 | N136: 13.54% | O136: 36 m | P136: 46 m | R136: Pne>à35m | S136: 13.54 | T136: 86.458 | U136: 38.158 | V136: 48.301 | W136: 100
A137: 9.7 | H137: 87 m | J137: 87 | K137: m | L137: 1.30 | M137: 3.71 | N137: 13.40% | O137: 37 m | P137: 47 m | R137: Pne>à35m | S137: 13.40 | T137: 86.598 | U137: 38.219 | V137: 48.379 | W137: 100
A138: 9.8 | H138: 88 m | J138: 88 | K138: m | L138: 1.30 | M138: 3.75 | N138: 13.27% | O138: 37 m | P138: 47 m | R138: Pne>à35m | S138: 13.27 | T138: 86.735 | U138: 38.280 | V138: 48.455 | W138: 100
A139: 9.9 | H139: 89 m | J139: 89 | K139: m | L139: 1.30 | M139: 3.80 | N139: 13.13% | O139: 38 m | P139: 48 m | R139: Pne>à35m | S139: 13.13 | T139: 86.869 | U139: 38.339 | V139: 48.530 | W139: 100
A140: 10.0 | H140: 90 m | J140: 90 | K140: m | L140: 1.30 | M140: 3.84 | N140: 13.00% | O140: 39 m | P140: 48 m | R140: Pne>à35m | S140: =$Q$44/A140*100 -> 13.00 | T140: 87.000 | U140: 38.397 | V140: 48.603 | W140: 100
A141: 10.1 | H141: 91 m | J141: 91 | K141: m | L141: 1.30 | M141: 3.88 | N141: 12.87% | O141: 39 m | P141: 49 m | R141: Pne>à35m | S141: 12.87 | T141: 87.129 | U141: 38.453 | V141: 48.675 | W141: 100
A142: 10.2 | H142: 92 m | J142: 92 | K142: m | L142: 1.30 | M142: 3.93 | N142: 12.75% | O142: 40 m | P142: 49 m | R142: Pne>à35m | S142: 12.75 | T142: 87.255 | U142: 38.509 | V142: 48.746 | W142: 100
A143: 10.3 | H143: 93 m | J143: 93 | K143: m | L143: 1.30 | M143: 3.97 | N143: 12.62% | O143: 40 m | P143: 50 m | R143: Pne>à35m | S143: 12.62 | T143: 87.379 | U143: 38.564 | V143: 48.815 | W143: 100
A144: 10.4 | H144: 94 m | J144: 94 | K144: m | L144: 1.30 | M144: 4.02 | N144: 12.50% | O144: 41 m | P144: 50 m | R144: Pne>à35m | S144: 12.50 | T144: 87.500 | U144: 38.617 | V144: 48.883 | W144: 100
A145: 10.5 | H145: 95 m | J145: 95 | K145: m | L145: 1.30 | M145: 4.06 | N145: 12.38% | O145: 41 m | P145: 51 m | R145: Pne>à35m | S145: 12.38 | T145: 87.619 | U145: 38.670 | V145: 48.949 | W145: 100
A146: 10.6 | H146: 96 m | J146: 96 | K146: m | L146: 1.30 | M146: 4.10 | N146: 12.26% | O146: 42 m | P146: 51 m | R146: Pne>à35m | S146: 12.26 | T146: 87.736 | U146: 38.721 | V146: 49.014 | W146: 100
A147: 10.7 | H147: 97 m | J147: 97 | K147: m | L147: 1.30 | M147: 4.15 | N147: 12.15% | O147: 43 m | P147: 52 m | R147: Pne>à35m | S147: 12.15 | T147: 87.850 | U147: 38.772 | V147: 49.078 | W147: 100
A148: 10.8 | H148: 98 m | J148: 98 | K148: m | L148: 1.30 | M148: 4.19 | N148: 12.04% | O148: 43 m | P148: 52 m | R148: Pne>à35m | S148: 12.04 | T148: 87.963 | U148: 38.822 | V148: 49.141 | W148: 100
A149: 10.9 | H149: 99 m | J149: 99 | K149: m | L149: 1.30 | M149: 4.24 | N149: 11.93% | O149: 44 m | P149: 53 m | R149: Pne>à35m | S149: 11.93 | T149: 88.073 | U149: 38.870 | V149: 49.203 | W149: 100
A150: 11.0 | H150: 100 m | J150: 100 | K150: m | L150: 1.30 | M150: 4.28 | N150: 11.82% | O150: 44 m | P150: 53 m | R150: Pne>à35m | S150: 11.82 | T150: 88.182 | U150: 38.918 | V150: 49.264 | W150: 100
A151: 11.1 | H151: 101 m | J151: 101 | K151: m | L151: 1.30 | M151: 4.33 | N151: 11.71% | O151: =IF(M151="","",IF(M151<0,"!",IF(M151<0.79,0,(10*M151)/0.79-7.9/0.79))) -> 45 m | P151: 54 m | R151: Pne>à35m | S151: =$Q$44/A151*100 -> 11.71 | T151: 88.288 | U151: 38.965 | V151: 49.323 | W151: 100
A152: 11.2 | H152: 102 m | J152: 102 | K152: m | L152: 1.30 | M152: 4.37 | N152: 11.61% | O152: 45 m | P152: 54 m | R152: Pne>à35m | S152: 11.61 | T152: 88.393 | U152: 39.011 | V152: 49.381 | W152: 100
A153: 11.3 | H153: 103 m | J153: 103 | K153: m | L153: 1.30 | M153: 4.41 | N153: 11.50% | O153: 46 m | P153: 55 m | R153: Pne>à35m | S153: 11.50 | T153: 88.496 | U153: 39.057 | V153: 49.439 | W153: 100
A154: 11.4 | H154: 104 m | J154: 104 | K154: m | L154: 1.30 | M154: 4.46 | N154: 11.40% | O154: 46 m | P154: 56 m | R154: Pne>à35m | S154: 11.40 | T154: 88.596 | U154: 39.101 | V154: 49.495 | W154: 100
A155: 11.5 | H155: 105 m | J155: 105 | K155: m | L155: 1.30 | M155: 4.50 | N155: 11.30% | O155: 47 m | P155: 56 m | R155: Pne>à35m | S155: 11.30 | T155: 88.696 | U155: 39.145 | V155: 49.551 | W155: 100
A156: 11.6 | H156: 106 m | J156: 106 | K156: m | L156: 1.30 | M156: 4.55 | N156: 11.21% | O156: 48 m | P156: 57 m | R156: Pne>à35m | S156: 11.21 | T156: 88.793 | U156: 39.188 | V156: 49.605 | W156: 100
A157: 11.7 | H157: 107 m | J157: 107 | K157: m | L157: 1.30 | M157: 4.59 | N157: 11.11% | O157: 48 m | P157: 57 m | R157: Pne>à35m | S157: 11.11 | T157: 88.889 | U157: 39.230 | V157: 49.659 | W157: 100
A158: 11.8 | H158: 108 m | J158: 108 | K158: m | L158: =IF($F$47="oc",IF(A158*$E$20/100>$Q$44,A158*$E$20/100,$Q$44),$Q$44) -> 1.30 | M158: 4.63 | N158: 11.02% | O158: 49 m | P158: 58 m | R158: Pne>à35m | S158: =$Q$44/A158*100 -> 11.02 | T158: 88.983 | U158: 39.272 | V158: 49.711 | W158: 100
A159: 11.9 | B159: =IF(A159*$E$20/100>$Q$44,"PP02 rinçage ou OC > set point, taper OC en F47","") ->  | H159: 109 m | J159: 109 | K159: =IF(J159="OC ou"," rinçage =","m") -> m | L159: 1.30 | M159: 4.68 | N159: 10.92% | O159: 49 m | P159: 58 m | Q159: =IF(O159>(A159*10)-10,"Pne>P",IF(L159>1.5,"hyperoxie","")) ->  | R159: Pne>à35m | S159: 10.92 | T159: 89.076 | U159: 39.313 | V159: 49.763 | W159: 100
A160: 12.0 | H160: 110 m | J160: 110 | K160: m | L160: 1.30 | M160: 4.72 | N160: 10.83% | O160: 50 m | P160: 59 m | R160: Pne>à35m | S160: 10.83 | T160: 89.167 | U160: 39.353 | V160: 49.814 | W160: 100
A161: 12.1 | H161: 111 m | J161: 111 | K161: m | L161: 1.30 | M161: 4.77 | N161: 10.74% | O161: 50 m | P161: 59 m | R161: Pne>à35m | S161: 10.74 | T161: 89.256 | U161: 39.392 | V161: 49.864 | W161: 100
A162: 12.2 | H162: 112 m | J162: 112 | K162: m | L162: 1.30 | M162: 4.81 | N162: 10.66% | O162: 51 m | P162: 60 m | R162: Pne>à35m | S162: 10.66 | T162: 89.344 | U162: 39.431 | V162: 49.913 | W162: 100
A163: 12.3 | H163: 113 m | J163: 113 | K163: m | L163: 1.30 | M163: 4.85 | N163: 10.57% | O163: 51 m | P163: 60 m | R163: Pne>à35m | S163: 10.57 | T163: 89.431 | U163: 39.470 | V163: 49.961 | W163: 100
A164: 12.4 | B164: PP02 rinçage ou OC > set point, taper OC en F47 | H164: 114 m | J164: OC ou | K164: rinçage = | L164: 1.30 | M164: 4.90 | N164: 10.50% | O164: 52 m | P164: 61 m | R164: Pne>à35m | S164: 10.48 | T164: 89.516 | U164: 39.507 | V164: 50.009 | W164: 100
A165: 12.5 | B165: PP02 rinçage ou OC > set point, taper OC en F47 | H165: 115 m | J165: OC ou | K165: rinçage = | L165: 1.31 | M165: 4.94 | N165: 10.50% | O165: 53 m | P165: 61 m | R165: Pne>à35m | S165: 10.40 | T165: 89.600 | U165: 39.544 | V165: 50.056 | W165: 100
A166: 12.6 | B166: PP02 rinçage ou OC > set point, taper OC en F47 | H166: 116 m | J166: OC ou | K166: rinçage = | L166: 1.32 | M166: 4.98 | N166: 10.50% | O166: 53 m | P166: 62 m | R166: Pne>à35m | S166: 10.32 | T166: 89.683 | U166: 39.581 | V166: 50.102 | W166: 100
A167: 12.7 | B167: PP02 rinçage ou OC > set point, taper OC en F47 | H167: 117 m | J167: OC ou | K167: rinçage = | L167: 1.33 | M167: 5.02 | N167: 10.50% | O167: 54 m | P167: 62 m | R167: Pne>à35m | S167: 10.24 | T167: 89.764 | U167: 39.616 | V167: 50.147 | W167: 100
A168: 12.8 | B168: PP02 rinçage ou OC > set point, taper OC en F47 | H168: 118 m | J168: OC ou | K168: rinçage = | L168: 1.34 | M168: 5.06 | N168: 10.50% | O168: 54 m | P168: 63 m | R168: Pne>à35m | S168: 10.16 | T168: 89.844 | U168: 39.652 | V168: 50.192 | W168: 100
A169: 12.9 | B169: PP02 rinçage ou OC > set point, taper OC en F47 | H169: 119 m | J169: OC ou | K169: rinçage = | L169: 1.35 | M169: 5.10 | N169: 10.50% | O169: 55 m | P169: 63 m | R169: Pne>à35m | S169: 10.08 | T169: 89.922 | U169: 39.686 | V169: 50.236 | W169: 100
A170: 13 | B170: PP02 rinçage ou OC > set point, taper OC en F47 | H170: 120 m | J170: OC ou | K170: rinçage = | L170: 1.37 | M170: 5.14 | N170: 10.50% | O170: 55 m | P170: 64 m | R170: Pne>à35m | S170: 10.00 | T170: 90.000 | U170: 39.721 | V170: 50.279 | W170: 100
A171: 13.1 | B171: PP02 rinçage ou OC > set point, taper OC en F47 | H171: 121 m | J171: OC ou | K171: rinçage = | L171: 1.38 | M171: 5.17 | N171: 10.50% | O171: 56 m | P171: 65 m | R171: Pne>à35m | S171: 9.92 | T171: 90.076 | U171: 39.754 | V171: 50.322 | W171: 100
A172: 13.2 | B172: PP02 rinçage ou OC > set point, taper OC en F47 | H172: 122 m | J172: OC ou | K172: rinçage = | L172: 1.39 | M172: 5.21 | N172: 10.50% | O172: 56 m | P172: 65 m | R172: Pne>à35m | S172: 9.85 | T172: 90.152 | U172: 39.788 | V172: 50.364 | W172: 100
A173: 13.3 | B173: PP02 rinçage ou OC > set point, taper OC en F47 | H173: 123 m | J173: OC ou | K173: rinçage = | L173: 1.40 | M173: 5.25 | N173: 10.50% | O173: 57 m | P173: 66 m | R173: Pne>à35m | S173: 9.77 | T173: 90.226 | U173: 39.820 | V173: 50.405 | W173: 100
A174: 13.4 | B174: PP02 rinçage ou OC > set point, taper OC en F47 | H174: 124 m | J174: OC ou | K174: rinçage = | L174: 1.41 | M174: 5.29 | N174: 10.50% | O174: 57 m | P174: 66 m | R174: Pne>à35m | S174: 9.70 | T174: 90.299 | U174: 39.852 | V174: 50.446 | W174: 100
A175: 13.5 | B175: PP02 rinçage ou OC > set point, taper OC en F47 | H175: 125 m | J175: OC ou | K175: rinçage = | L175: 1.42 | M175: 5.33 | N175: 10.50% | O175: 58 m | P175: 67 m | R175: Pne>à35m | S175: 9.63 | T175: 90.370 | U175: 39.884 | V175: 50.486 | W175: 100
A176: 13.6 | B176: PP02 rinçage ou OC > set point, taper OC en F47 | H176: 126 m | J176: OC ou | K176: rinçage = | L176: 1.43 | M176: 5.37 | N176: 10.50% | O176: 58 m | P176: 67 m | R176: Pne>à35m | S176: 9.56 | T176: 90.441 | U176: 39.915 | V176: 50.526 | W176: 100
A177: 13.7 | B177: PP02 rinçage ou OC > set point, taper OC en F47 | H177: 127 m | J177: OC ou | K177: rinçage = | L177: 1.44 | M177: 5.41 | N177: 10.50% | O177: 59 m | P177: 68 m | R177: Pne>à35m | S177: 9.49 | T177: 90.511 | U177: 39.946 | V177: 50.565 | W177: 100
A178: 13.8 | B178: PP02 rinçage ou OC > set point, taper OC en F47 | H178: 128 m | J178: OC ou | K178: rinçage = | L178: 1.45 | M178: 5.45 | N178: 10.50% | O178: 59 m | P178: 69 m | R178: Pne>à35m | S178: 9.42 | T178: 90.580 | U178: 39.977 | V178: 50.603 | W178: 100
A179: 13.9 | B179: PP02 rinçage ou OC > set point, taper OC en F47 | H179: 129 m | J179: OC ou | K179: rinçage = | L179: 1.46 | M179: 5.49 | N179: 10.50% | O179: 60 m | P179: 69 m | R179: Pne>à35m | S179: 9.35 | T179: 90.647 | U179: 40.006 | V179: =100-(S179+U179) -> 50.641 | W179: =V179+U179+S179 -> 100
A180: 14 | B180: PP02 rinçage ou OC > set point, taper OC en F47 | H180: 130 m | J180: OC ou | K180: rinçage = | L180: 1.47 | M180: 5.53 | N180: 10.50% | O180: 60 m | P180: =IF(J180="OC ou",(((((($E$20%*1.428)+($F$20%*0.178)+($D$23%*1.25))*A180))/1.28738)*10)-10,((((((S180%*1.428)+(V180%*0.178)+(U180%*1.25))*A180))/1.28738)*10)-10) -> 70 m | R180: Pne>à35m | S180: 9.29 | T180: 90.714 | U180: 40.036 | V180: 50.678 | W180: 100
A181: 14.1 | B181: PP02 rinçage ou OC > set point, taper OC en F47 | H181: 131 m | J181: OC ou | K181: rinçage = | L181: 1.48 | M181: 5.57 | N181: 10.50% | O181: 61 m | P181: 70 m | R181: Narcose | S181: 9.22 | T181: 90.780 | U181: 40.065 | V181: 50.715 | W181: 100
A182: 14.2 | B182: PP02 rinçage ou OC > set point, taper OC en F47 | H182: 132 m | J182: OC ou | K182: rinçage = | L182: 1.49 | M182: 5.61 | N182: 10.50% | O182: 61 m | P182: 71 m | R182: Narcose | S182: 9.15 | T182: 90.845 | U182: 40.094 | V182: 50.751 | W182: 100
A183: 14.3 | B183: PP02 rinçage ou OC > set point, taper OC en F47 | H183: 133 m | J183: OC ou | K183: rinçage = | L183: 1.50 | M183: 5.65 | N183: 10.50% | O183: 62 m | P183: 71 m | Q183: hyperoxie | R183: Narcose | S183: 9.09 | T183: 90.909 | U183: 40.122 | V183: 50.787 | W183: 100
A184: 14.4 | B184: PP02 rinçage ou OC > set point, taper OC en F47 | H184: 134 m | J184: OC ou | K184: rinçage = | L184: 1.51 | M184: 5.69 | N184: 10.50% | O184: 62 m | P184: =IF(J184="OC ou",(((((($E$20%*1.428)+($F$20%*0.178)+($D$23%*1.25))*A184))/1.28738)*10)-10,((((((S184%*1.428)+(V184%*0.178)+(U184%*1.25))*A184))/1.28738)*10)-10) -> 72 m | Q184: hyperoxie | R184: Narcose | S184: 9.03 | T184: 90.972 | U184: 40.150 | V184: 50.822 | W184: 100
A185: 14.5 | B185: PP02 rinçage ou OC > set point, taper OC en F47 | H185: 135 m | J185: =IF($F$47="oc",IF($E$20>S185,"OC ou",(A185-1)*10),(A185-1)*10) -> OC ou | K185: rinçage = | L185: 1.52 | M185: 5.73 | N185: 10.50% | O185: 63 m | P185: =IF(J185="OC ou",(((((($E$20%*1.428)+($F$20%*0.178)+($D$23%*1.25))*A185))/1.28738)*10)-10,((((((S185%*1.428)+(V185%*0.178)+(U185%*1.25))*A185))/1.28738)*10)-10) -> 73 m | Q185: hyperoxie | R185: Narcose | S185: 8.97 | T185: =100-S185 -> 91.034 | U185: =T185/($T$47+1) -> 40.177 | V185: 50.857 | W185: 100
A186: 14.6 | B186: PP02 rinçage ou OC > set point, taper OC en F47 | H186: 136 m | J186: OC ou | K186: rinçage = | L186: 1.53 | M186: =IF($R$47=0,0,IF(K186="m",U186*A186/100,$R$47*A186/100)) -> 5.77 | N186: =IF(K186="m",S186/100,L186/A186) -> 10.50% | O186: 63 m | P186: 73 m | Q186: hyperoxie | R186: =IF(M186>5.53,"Narcose",IF(M186>3.56,"Pne>à35m","")) -> Narcose | S186: 8.90 | T186: 91.096 | U186: 40.204 | V186: 50.892 | W186: 100
A187: 14.7 | B187: PP02 rinçage ou OC > set point, taper OC en F47 | H187: 137 m | J187: OC ou | K187: rinçage = | L187: 1.54 | M187: 5.81 | N187: 10.50% | O187: 64 m | P187: 74 m | Q187: hyperoxie | R187: Narcose | S187: 8.84 | T187: 91.156 | U187: 40.231 | V187: 50.925 | W187: 100
A188: 14.8 | B188: PP02 rinçage ou OC > set point, taper OC en F47 | H188: 138 m | J188: OC ou | K188: rinçage = | L188: 1.55 | M188: 5.85 | N188: 10.50% | O188: 64 m | P188: 74 m | Q188: hyperoxie | R188: Narcose | S188: 8.78 | T188: 91.216 | U188: 40.257 | V188: 50.959 | W188: 100
A189: 14.9 | B189: PP02 rinçage ou OC > set point, taper OC en F47 | H189: 139 m | J189: OC ou | K189: rinçage = | L189: 1.56 | M189: 5.89 | N189: 10.50% | O189: 65 m | P189: 75 m | Q189: hyperoxie | R189: Narcose | S189: 8.72 | T189: 91.275 | U189: 40.283 | V189: 50.992 | W189: 100
A190: 15 | B190: PP02 rinçage ou OC > set point, taper OC en F47 | H190: 140 m | J190: OC ou | K190: rinçage = | L190: =IF($F$47="oc",IF(A190*$E$20/100>$Q$44,A190*$E$20/100,$Q$44),$Q$44) -> 1.58 | M190: 5.93 | N190: 10.50% | O190: =IF(M190="","",IF(M190<0,"!",IF(M190<0.79,0,(10*M190)/0.79-7.9/0.79))) -> 65 m | P190: 75 m | Q190: hyperoxie | R190: Narcose | S190: 8.67 | T190: 91.333 | U190: 40.309 | V190: 51.024 | W190: 100
A191: 15.1 | B191: PP02 rinçage ou OC > set point, taper OC en F47 | H191: 141 m | J191: OC ou | K191: rinçage = | L191: 1.59 | M191: 5.96 | N191: 10.50% | O191: 66 m | P191: 76 m | Q191: hyperoxie | R191: Narcose | S191: 8.61 | T191: 91.391 | U191: 40.334 | V191: 51.056 | W191: 100
A192: 15.2 | B192: PP02 rinçage ou OC > set point, taper OC en F47 | H192: 142 m | J192: OC ou | K192: rinçage = | L192: 1.60 | M192: 6.00 | N192: 10.50% | O192: 66 m | P192: 77 m | Q192: hyperoxie | R192: Narcose | S192: 8.55 | T192: 91.447 | U192: 40.359 | V192: 51.088 | W192: 100
A193: 15.3 | B193: PP02 rinçage ou OC > set point, taper OC en F47 | H193: 143 m | J193: OC ou | K193: rinçage = | L193: 1.61 | M193: 6.04 | N193: 10.50% | O193: 67 m | P193: 77 m | Q193: hyperoxie | R193: Narcose | S193: 8.50 | T193: 91.503 | U193: 40.384 | V193: 51.119 | W193: 100
A194: 15.4 | B194: PP02 rinçage ou OC > set point, taper OC en F47 | H194: 144 m | J194: OC ou | K194: rinçage = | L194: 1.62 | M194: 6.08 | N194: 10.50% | O194: 67 m | P194: 78 m | Q194: hyperoxie | R194: Narcose | S194: 8.44 | T194: 91.558 | U194: 40.408 | V194: 51.150 | W194: 100
A195: 15.5 | B195: PP02 rinçage ou OC > set point, taper OC en F47 | H195: 145 m | J195: OC ou | K195: rinçage = | L195: 1.63 | M195: 6.12 | N195: 10.50% | O195: 68 m | P195: 78 m | Q195: hyperoxie | R195: Narcose | S195: 8.39 | T195: 91.613 | U195: 40.433 | V195: 51.180 | W195: 100
A196: 15.6 | B196: PP02 rinçage ou OC > set point, taper OC en F47 | H196: 146 m | J196: OC ou | K196: rinçage = | L196: 1.64 | M196: 6.16 | N196: 10.50% | O196: 68 m | P196: 79 m | Q196: hyperoxie | R196: Narcose | S196: 8.33 | T196: 91.667 | U196: 40.456 | V196: 51.210 | W196: 100
A197: 15.7 | B197: PP02 rinçage ou OC > set point, taper OC en F47 | H197: 147 m | J197: OC ou | K197: rinçage = | L197: 1.65 | M197: 6.20 | N197: 10.50% | O197: 69 m | P197: 79 m | Q197: hyperoxie | R197: Narcose | S197: 8.28 | T197: 91.720 | U197: 40.480 | V197: 51.240 | W197: 100
A198: 15.8 | B198: PP02 rinçage ou OC > set point, taper OC en F47 | H198: 148 m | J198: OC ou | K198: rinçage = | L198: 1.66 | M198: 6.24 | N198: 10.50% | O198: 69 m | P198: 80 m | Q198: hyperoxie | R198: Narcose | S198: 8.23 | T198: 91.772 | U198: 40.503 | V198: 51.269 | W198: 100
A199: 15.9 | B199: PP02 rinçage ou OC > set point, taper OC en F47 | H199: 149 m | J199: OC ou | K199: rinçage = | L199: 1.67 | M199: 6.28 | N199: 10.50% | O199: 70 m | P199: 80 m | Q199: hyperoxie | R199: Narcose | S199: 8.18 | T199: 91.824 | U199: 40.526 | V199: 51.298 | W199: 100
A200: 16 | B200: PP02 rinçage ou OC > set point, taper OC en F47 | H200: 150 m | J200: OC ou | K200: rinçage = | L200: 1.68 | M200: 6.32 | N200: 10.50% | O200: 70 m | P200: 81 m | Q200: hyperoxie | R200: Narcose | S200: 8.13 | T200: 91.875 | U200: 40.548 | V200: 51.327 | W200: 100
A201: 16.1 | B201: PP02 rinçage ou OC > set point, taper OC en F47 | H201: 151 m | J201: OC ou | K201: rinçage = | L201: 1.69 | M201: 6.36 | N201: 10.50% | O201: 71 m | P201: 82 m | Q201: hyperoxie | R201: Narcose | S201: 8.07 | T201: 91.925 | U201: 40.570 | V201: 51.355 | W201: 100
A202: 16.2 | B202: PP02 rinçage ou OC > set point, taper OC en F47 | H202: 152 m | J202: OC ou | K202: rinçage = | L202: 1.70 | M202: 6.40 | N202: 10.50% | O202: 71 m | P202: 82 m | Q202: hyperoxie | R202: Narcose | S202: 8.02 | T202: 91.975 | U202: 40.592 | V202: 51.383 | W202: 100
A203: 16.3 | B203: PP02 rinçage ou OC > set point, taper OC en F47 | H203: 153 m | J203: OC ou | K203: rinçage = | L203: 1.71 | M203: 6.44 | N203: 10.50% | O203: 72 m | P203: 83 m | Q203: hyperoxie | R203: Narcose | S203: 7.98 | T203: 92.025 | U203: 40.614 | V203: 51.410 | W203: 100
A204: 16.4 | B204: PP02 rinçage ou OC > set point, taper OC en F47 | H204: 154 m | J204: OC ou | K204: rinçage = | L204: 1.72 | M204: 6.48 | N204: 10.50% | O204: 72 m | P204: 83 m | Q204: hyperoxie | R204: Narcose | S204: 7.93 | T204: 92.073 | U204: 40.636 | V204: 51.438 | W204: 100
A205: 16.5 | B205: PP02 rinçage ou OC > set point, taper OC en F47 | H205: 155 m | J205: OC ou | K205: rinçage = | L205: 1.73 | M205: 6.52 | N205: 10.50% | O205: 73 m | P205: 84 m | Q205: hyperoxie | R205: Narcose | S205: 7.88 | T205: 92.121 | U205: 40.657 | V205: 51.464 | W205: 100
A206: 16.6 | B206: PP02 rinçage ou OC > set point, taper OC en F47 | H206: 156 m | J206: OC ou | K206: rinçage = | L206: 1.74 | M206: 6.56 | N206: 10.50% | O206: 73 m | P206: 84 m | Q206: hyperoxie | R206: Narcose | S206: 7.83 | T206: 92.169 | U206: 40.678 | V206: 51.491 | W206: 100
A207: 16.7 | B207: PP02 rinçage ou OC > set point, taper OC en F47 | H207: 157 m | J207: OC ou | K207: rinçage = | L207: 1.75 | M207: 6.60 | N207: 10.50% | O207: 74 m | P207: 85 m | Q207: hyperoxie | R207: Narcose | S207: 7.78 | T207: 92.216 | U207: 40.698 | V207: 51.517 | W207: 100
A208: 16.8 | B208: PP02 rinçage ou OC > set point, taper OC en F47 | H208: 158 m | J208: OC ou | K208: rinçage = | L208: 1.76 | M208: 6.64 | N208: 10.50% | O208: 74 m | P208: 86 m | Q208: hyperoxie | R208: Narcose | S208: 7.74 | T208: 92.262 | U208: 40.719 | V208: 51.543 | W208: 100
A209: 16.9 | B209: PP02 rinçage ou OC > set point, taper OC en F47 | H209: 159 m | J209: OC ou | K209: rinçage = | L209: 1.77 | M209: 6.68 | N209: 10.50% | O209: 75 m | P209: 86 m | Q209: hyperoxie | R209: Narcose | S209: 7.69 | T209: 92.308 | U209: 40.739 | V209: 51.569 | W209: 100
A210: 17 | B210: PP02 rinçage ou OC > set point, taper OC en F47 | H210: 160 m | J210: OC ou | K210: rinçage = | L210: 1.79 | M210: 6.72 | N210: 10.50% | O210: 75 m | P210: 87 m | Q210: hyperoxie | R210: Narcose | S210: 7.65 | T210: 92.353 | U210: 40.759 | V210: 51.594 | W210: 100
A211: 17.1 | B211: PP02 rinçage ou OC > set point, taper OC en F47 | H211: 161 m | J211: OC ou | K211: rinçage = | L211: 1.80 | M211: 6.75 | N211: 10.50% | O211: 76 m | P211: 87 m | Q211: hyperoxie | R211: Narcose | S211: 7.60 | T211: 92.398 | U211: 40.779 | V211: 51.619 | W211: 100
A212: 17.2 | B212: PP02 rinçage ou OC > set point, taper OC en F47 | H212: 162 m | J212: OC ou | K212: rinçage = | L212: 1.81 | M212: 6.79 | N212: 10.50% | O212: 76 m | P212: 88 m | Q212: hyperoxie | R212: Narcose | S212: 7.56 | T212: 92.442 | U212: 40.798 | V212: 51.643 | W212: 100
A213: 17.3 | B213: PP02 rinçage ou OC > set point, taper OC en F47 | H213: 163 m | J213: OC ou | K213: rinçage = | L213: 1.82 | M213: 6.83 | N213: 10.50% | O213: 77 m | P213: 88 m | Q213: hyperoxie | R213: Narcose | S213: 7.51 | T213: 92.486 | U213: 40.818 | V213: 51.668 | W213: 100
... 137 more rows

Sheet 13
E1: AUTONOMIE et DISTANCE
A2: JP Couloumy | C2: avec 1 ou 2 recycleurs CCR et (X) bars d'O2
B4: Quelle plongée avec bouteille O2 pleine, ou au 3/4, ou à moitié : avec un recycleur CCR, ou double recycleur CCR ?
P7: =G26 -> 206L
P9: d'oxygène
B11: (lire) | K11: et une conso moyenne d'O2 de :
B12: Température à chaud = | E12: 30 | F12: ° | G12: Pression | H12: 220 | I12: bars | K12: (métabolisme, vidages masque, yoyos, rinçages, efforts...)
M13: 2.0 L/mn
B14: Température à froid = | E14: 11 | F14: ° | G14: Pression | H14: =H12*(273+E14)/(273+E12) -> 206 | I14: bars | K14: =IF(G23>=2,IF(M24>=130,"Attention à l'autonomie en chaux",""),IF(G23=1,IF(M24>50,"Attention à l'autonomie en chaux",""))) -> Attention à l'autonomie en chaux
B16: =IF(E18=2,"Si règle des 1/2, prévoir O2 en plus pour le retour !","") ->  | K16: =IF(K14="Attention à l'autonomie en chaux","(penser au temps retour + temps paliers !)","à une vitesse de :") -> (penser au temps retour + temps paliers !)
D18: 1 / | E18: 3 | H18: =E18 -> 3 | K18: palme | O18: scooter
K19: 14 | L19: 16 | M19: 18 | N19: 20 | O19: 15 m/mn
G20: (Pression consommée) | K20: m/mn | L20: m/mn | M20: m/mn | N20: m/mn
B21: bouteille O2 | D21: =H14 -> 206 | E21: Bars | G21: nombre de | H21: =(D21-D25)*G23 -> 69 bars | I21: capacité | K21: =M24*K19 -> 1443 | L21: =M24*L19 -> 1650 | M21: =M24*M19 -> 1856 | N21: =M24*N19 -> 2062 | O21: =M24*O19 -> 1547
B22: au départ | G22: bouteilles | K22: m | L22: m | M22: m | N22: m | O22: m
B23: =IF(D25<=60,"Retour limite !","") ->  | G23: 1 | H23: X | I23: 3 L | L23: Temps aller
M24: =G26/M13 -> 103 | N24: mn
B25: RETOUR à | D25: =IF(E18=2,D21*1/2,IF(E18=3,D21*2/3,IF(E18=4,D21*3/4,IF(E18=5,D21*4/5,"")))) -> 137 | E25: Bars | G25: Litres consommés | K25: DISTANCE TOTALE SI TRAVERSEE
B26: =IF(G23>1,"(sur chaque bouteille d'O2)","(sur bouteille d'oxygène !)") -> (sur bouteille d'oxygène !) | G26: =((D21-D25)*I23*G23) -> 206 L | K26: =K21*2 -> 2,887 m | L26: =L21*2 -> 3,299 m | M26: =M21*2 -> 3,712 m | N26: =N21*2 -> 4,124 m | O26: =O21*2 -> 3,093 m
K27: Temps total si traversée ( genre Cabouy/ Poumeyssen )
M28: =+M24*2 -> 206 | N28: mn
H30: mémo
G35: ESPACE LIBRE POUR VOS NOTES

Sheet 14
A5: JP Couloumy
W7: temps 1 rinçage = | X7: 40.0 | Y7: secondes
W8: 1 rinçage = | X8: =N37*V13*2 -> 108 | Y8: litres
V10: 1 inspi = | X10: 6 | Y10: secondes
B12: Panne d'affichage, ou panne d'injection d'O2, on peut respirer dans la boucle sous certaines conditions : | V12: pression
B13: En respirant le diluant du recycleur ou celui du bail out raccordé à sa place. Le pourcentage d'O2 va rapidement diminuer jusqu'à atteindre une | V13: =1+(N45/10) -> 9
B14: valeur non viable (hypoxie). Le volume de la boucle devrait lui aussi diminuer (du fait de l'O2 consommé) mais sera compensé par l'ADV ou manuellement.
B15: On devra donc, avant d'atteindre cette valeur : vidanger (rincer, flusher) la totalité du gaz restant dans la boucle et le remplacer par du gaz "frais".
B16: Puis recommencer à respirer dans la boucle, puis revidanger etc…
B17: Le nombre de respirations entre chaque rinçage sera fonction du mélange, de la profondeur, de la consommation personnelle d'O2, du volume de la boucle
B18: et du stress ! | V18: 1 inspi = | X18: O2 consommé= | Y18: =N40/60*X10 -> 0.1 | Z18: L | AA18: soit en | AB18: =X10 -> 6 | AC18: secondes
V19: X inspi = | X19: O2 consommé | Y19: =Y18*N51 -> 2 | Z19: L | AA19: soit | AB19: =X10*N51 -> 120 | AC19: secondes
A20: Alarmes dans ce tableau : | I20: (lire) | V20: 1 cycle complet ( in/ex + 1 rinçage )= | Y20: =Y19+X8 -> 110 | Z20: L | AA20: soit | AB20: =AB19+X7 -> 160.0 | AC20: secondes
B21: -Hyperoxie (si PPO2 >1,6)
B22: -Hypoxie proche (si PPO2 < 0,27) | N22: Paramètres de la plongée : | W22: L de la boucle X pression (avant cycles) | Z22: =N37*V13 -> 54 | AA22: volume = | AB22: =Z22/V13 -> 6 | AC22: (normolitre)
B23: -Hypoxie (si PPO2 < 0,19) | I23: (lire) | W23: L de la boucle X pression (après cycles) | Z23: =Z22-Y19 -> 52 | AA23: volume = | AB23: =Z23/V13 -> 5.78 | AC23: (normolitre)
B24: -Mélange surazoté, paliers rallongés (si % N2 > 79,5%) | N24: ---1 inspiration/expiration = 6 secondes
B25: -Mélange surazoté INTERDIT (si % N2 > 81,5%) | N25: soit 10 par minute | V25: L d'O2 avant les cycles (%) | X25: =J37*V13*N33/100 -> 5.4 | Y25: L d'Hé = | Z25: =Z22*O33/100 -> 27 | AA25: Lde N2 = | AB25: =Z22*P33/100 -> 21.6 | AC25: total = | AD25: =X25+Z25+AB25 -> 54.00
B26: -% O2 du diluant trop élevé pour cette profondeur (en dessous de 43 m si PPO2 > 1,47) | N26: ---Un rinçage diluant = | Q26: 40 secondes | V26: L d'O2 après les cycles (%) | X26: =X25-Y19 -> 3.4 | Y26: L d'Hé après | Z26: =Z25 -> 27 | AA26: Lde N2 après | AB26: =AB25 -> 21.6 | AC26: total = | AD26: =X26+Z26+AB26 -> 52.00
B27: -Pne élevée (si avec diluant trimix > à 35m) | N27: soit 2 vidages complets de la boucle | W27: % O2 après = | X27: =X26/Z23*100 -> 6.54 | Y27: % Hè après | Z27: =Z25/Z23*100 -> 51.92 | AA27: % N2 après | AB27: =AB26/Z23*100 -> 41.54 | AC27: total = | AD27: =X27+Z27+AB27 -> 100.00
N28: soit : | O28: =J37*V13*2 -> 108 | P28: litres expulsés | AB28: OK
B29: Tableau pour parcours horizontal (si différentes profondeurs, faire par tranche de profondeur) | W29: PP O2 = | X29: =(V13*X27)/100 -> 0.59
E30: (si différents diluants, faire par tranche diluant / profondeur) | O30: A programmer :
C31: Fermer la bouteille d'oxygène | I31: PROFONDEUR = | K31: =N45 -> 80 m | N31: diluant | P31: =IF(N33+O33=21,"(AIR)",IF(O33=0,"(nitrox)",IF(P33=0,"(héliox)",IF(N33+O33+P33=100,"(trimix)")))) -> (trimix)
B32: =IF(N45>43,IF(E35>1.47,"%O2 du diluant trop élevé pour cette profondeur !",""),"") ->  | N32: %O2 | O32: %Hé | P32: %N2
N33: 10 | O33: 50 | P33: =100-(N33+O33) -> 40 | Q33: =IF(P33<0,"erreur !",IF(N33=0,"erreur !","")) ->  | R33: =IF(Q33="sousox","?","") ->  | V33: Temps retour en secondes = | X33: =C56*60 -> 600 | Y33: secondes | Z33: (nombre de rinçages)
C34: Faire un rinçage complet | J34: %O2 | K34: %Hé | L34: %N2 | V34: Nombre de cycles in/ex + 1 rinçage retour = | Z34: =ROUNDDOWN(1/AB20*X33,0) -> 3.000 | AA34: cycles complets
B35: PP O2 dans la boucle = | E35: =V13*J35/100 -> 0.90 | F35: Mélange dans la boucle = | J35: =N33 -> 10.0 | K35: =O33 -> 50.0 | L35: =P33 -> 40.0 | V35: litres retour | W35: =(Y20*Z34) -> 330.0
B36: =IF(E35<0.19,"Hypoxie !",IF(E35<0.27,"Hypoxie proche !",IF(E35>1.6,"hyperoxie !",""))) ->  | G36: =IF(L35>81.5,"DANGER : mélange surazoté INTERDIT",IF(L35>79.5,"Danger : mélange surazoté ! Paliers rallongés !","")) ->  | N36: Litres variables de la boucle
F37: volume variable de la boucle = | J37: =N37 -> 6 L | K37: Pne = | L37: =IF(((10*V13*(L35)%)/0.79)-(7.9/0.79)<=0,0,((10*V13*(L35)%)/0.79)-(7.9/0.79)) -> 36 m | N37: 6 | O37: litres | V37: compensation de la boucle au diluant | Y37: =(N37-J43) -> 0.22 | Z37: L de | AA37: =N33 -> 10 | AB37: =O33 -> 50 | AC37: =P33 -> 40
K38: =IF(P31="(AIR)","",IF(L37>35,"Pne élevée !","")) -> Pne élevée ! | V38: soit en litres à la pression : | Y38: =Y37*V13 -> 2 | Z38: L de | AA38: "" | AB38: "" | AC38: ""
C39: Après avoir fait | E39: =N51 -> 20 | F39: =IF(E39<2,"inspiration / expiration dans la boucle","inspirations / expirations dans la boucle") -> inspirations / expirations dans la boucle | N39: conso moyenne d'O2 par minute
B40: PP O2 dans la boucle = | E40: =$V$13*$J$40/100 -> 0.59 | F40: Mélange dans la boucle = | J40: =W46 -> 6.54 | K40: =W47 -> 51.92 | L40: =W48 -> 41.54 | N40: 1 | O40: L /mn | V40: L O2 ajoutés | W40: =AA37/100*Y38 -> 0.2 | X40: + | Y40: restant | Z40: =W40+X26 -> 3.6 | AA40: nouveaux
B41: (Si rajout de diluant) = | E41: =$V$13*$J$41/100 -> 0.60 | F41: (Si rajout de diluant) = | J41: =Z46 -> 6.67 | K41: =Z47 -> 51.85 | L41: =Z48 -> 41.48
B42: =IF(E40<0.19,"Hypoxie !",IF(E40<0.27,"Hypoxie proche !",IF(E40>1.6,"hyperoxie !",""))) ->  | G42: =IF(L40>81.5,"DANGER : mélange surazoté INTERDIT",IF(L40>79.5,"Danger : mélange surazoté ! Paliers rallongés !","")) ->  | V42: L Hé ajoutés | W42: =AB37/100*Y38 -> 1 | X42: + | Y42: restant | Z42: =W42+Z26 -> 28 | AA42: litres
F43: volume variable de la boucle = | J43: =Z23/V13 -> 5.78 L | K43: Pne = | L43: =IF(((10*V13*(L40)%)/0.79)-(7.9/0.79)<=0,0,((10*V13*(L40)%)/0.79)-(7.9/0.79)) -> 37 m | N43: Profondeur | V43: L N2 ajoutés | W43: =AC37/100*Y38 -> 0.8 | X43: + | Y43: restant | Z43: =W43+AB26 -> 22.4 | AA43: après
F44: (Si rajout de diluant) = | J44: =Y37+AB23 -> 6.00 L | K44: =IF(P31="(AIR)","",IF(L43>35,"Pne élevée !","")) -> Pne élevée ! | V44: total | W44: =W40+W42+W43 -> 2 | Y44: total | Z44: =Z40+Z42+Z43 -> 54 | AA44: complément
C45: Faire un nouveau rinçage au diluant | N45: 80 mètres
B46: PP O2 dans la boucle = | E46: =V13*J46/100 -> 0.90 | F46: Mélange dans la boucle = | J46: =N33 -> 10.0 | K46: =O33 -> 50.0 | L46: =P33 -> 40.0 | V46: % O2 | W46: =X26/Z23*100 -> 6.54 | Y46: % O2 | Z46: =Z40/Z44*100 -> 6.67
B47: =IF(E35<0.19,"Hypoxie !",IF(E35<0.27,"Hypoxie proche !",IF(E35>1.6,"hyperoxie !",""))) ->  | G47: =IF(L46>81.5,"DANGER : mélange surazoté INTERDIT",IF(L46>79.5,"Danger : mélange surazoté ! Paliers rallongés !","")) ->  | T47: avant complèment | V47: % Hè | W47: =Z25/Z23*100 -> 51.92 | X47: après | Y47: % Hé | Z47: =Z42/Z44*100 -> 51.85185185
F48: volume variable de la boucle = | J48: =N37 -> 6 L | K48: Pne = | L48: =IF(((10*V13*(L46)%)/0.79)-(7.9/0.79)<=0,0,((10*V13*(L46)%)/0.79)-(7.9/0.79)) -> 36 m | N48: nombre | T48: diluant | V48: % N2 | W48: =AB26/Z23*100 -> 41.54 | Y48: % N2 | Z48: =Z43/Z44*100 -> 41.481
K49: =IF(P31="(AIR)","",IF(L37>35,"Pne élevée !","")) -> Pne élevée ! | N49: d'inspirations / expirations | V49: total = | W49: =W46+W47+W48 -> 100.00 | Y49: total | Z49: =Z46+Z47+Z48 -> 100
C50: Renouveler les cycles complets : | G50: =N51 -> 20 | H50: =IF(G50<2,"inspiration / expiration","inspirations / expirations") -> inspirations / expirations | K50: + 1 rinçage | N50: entre chaque rinçage
N51: 20 inspi/expi | V51: PP 2 | W51: =Z46*V13/100 -> 0.6
B52: 1 rinçage = | C52: =O28 -> 108 L | D52: cycles complets = | F52: =Z34 -> 3cycles
B53: Litres de diluant nécessaire pour le retour | G53: =O28+W35 -> 438 L | H53: ( pour | I53: =(C56) -> 10 mn | J53: à la profondeur de | L53: =N45 -> 80 m )
J54: pression | K54: bouteille
C55: temps retour | E55: Bouteille nécessaire | J55: 60 B | K55: =IF(G53/J55<2,"2 L",IF(G53/J55<3,"3 L",IF(G53/J55<4,"4 L",IF(G53/J55<5,"5 L",IF(G53/J55<6,"6 L",IF(G53/J55<7,"7 L",IF(G53/J55<8,"8 L",""))))))) -> 8 L | L55: =IF(G53/J55<8,"",IF(G53/J55<9,"9 L",IF(G53/J55<10,"10 L",IF(G53/J55<11,"11 L",IF(G53/J55<12,"12 L",IF(G53/J55<13,"13 L",IF(G53/J55<15,"15 L",IF(G53/J55<18,"18 L","!")))))))) -> 
C56: 10 mn
J57: pression | K57: bouteille
B58: Comparaison avec bail out (avec 1/3 de sécu) | G58: =(25*V13*C56)+((25*V13*C56)/3) -> 3000 L | J58: 200 B | K58: =IF(G58/J58<2,"2 L",IF(G58/J58<3,"3 L",IF(G58/J58<4,"4 L",IF(G58/J58<5,"5 L",IF(G58/J58<6,"6 L",IF(G58/J58<7,"7 L",IF(G58/J58<8,"8 L",""))))))) ->  | L58: =IF(G58/J58<8,"",IF(G58/J58<9,"9 L",IF(G58/J58<10,"10 L",IF(G58/J58<11,"11 L",IF(G58/J58<12,"12 L",IF(G58/J58<13,"13 L",IF(G58/J58<15,"15 L",IF(G58/J58<18,"18 L","")))))))) -> 18 L | M58: =IF(G58/J58<18,"",IF(G58/J58<20,"20 L",IF(G58/J58<24,"2x12 L",IF(G58/J58<30,"2x15 L",IF(G58/J58<36,"2x18 L",IF(G58/J58<40,"2x20 L","!")))))) -> 
G60: (lire)
C63: boucle | D63: 5 L | F63: TABLEAU RECAPITULATIF
C64: O2 / mn | D64: 1.4 L/mn | F64: (libre et non automatique)
O65: Total litres
B66: Profondeur | C66: % Diluant | F66: Nombre de cycles | I66: PPO2 après | L66: Temps à | N66: Litres | O66: (approximatif)
C67: O2 | D67: Hé | E67: N2 | F67: avant prochain rinçage | I67: une série d'inspi / expi | L67: profondeur | O67: =SUM(N68:N128) -> 669
B68: 0m | E68: =IF(C68=0,"",100-(C68+D68)) ->  | H68: =IF(J68=0,"",IF(J68<0.19,"hypoxie",IF(J68<0.27,"hypoxie proche",""))) ->  | P68: bouteille diluant
B69: 5 | C69: 8.5 | D69: 58 | E69: =IF(C69=0,"",100-(C69+D69)) -> 33.5 | G69: 0 | H69: =IF(J69=0,"",IF(J69<0.19,"hypoxie",IF(J69<0.27,"hypoxie proche",""))) -> hypoxie | J69: 0.15 | P69: 200 b
B70: 10m
B71: 15 | C71: 8.5 | D71: 58 | E71: 33.5 | G71: 0 | H71: hypoxie proche | J71: 0.21 | P71: =IF(O67/P69<2,"2 L",IF(O67/P69<3,"3 L",IF(O67/P69<4,"4 L",IF(O67/P69<5,"5 L",IF(O67/P69<6,"6 L",IF(O67/P69<7,"7 L",IF(O67/P69<8,"8 L",""))))))) -> 4 L
B72: 20m
B73: 25 | C73: 8.5 | D73: 58 | E73: 33.5 | G73: 3 | H73: hypoxie proche | J73: 0.22 | P73: =IF(O67/P69<8,"",IF(O67/P69<9,"9 L",IF(O67/P69<10,"10 L",IF(O67/P69<11,"11 L",IF(O67/P69<12,"12 L",IF(O67/P69<13,"13 L",IF(O67/P69<15,"15 L",IF(O67/P69<18,"18 L","")))))))) -> 
B74: 30m
B75: 35 | C75: 8.5 | D75: 58 | E75: 33.5 | G75: 5 | H75: hypoxie proche | J75: 0.25
B76: 40m
B77: 45 | C77: 8.5 | D77: 58 | E77: 33.5 | G77: 8 | H77: hypoxie proche | J77: 0.25 | L77: 1 | N77: 66
B78: 50m
B79: 55 | C79: 8.5 | D79: 58 | E79: 33.5 | G79: 11 | H79: hypoxie proche | J79: 0.26 | L79: 1 | N79: 78
B80: 60m
B81: 65 | C81: 8.5 | D81: 58 | E81: 33.5 | G81: 14 | H81: hypoxie proche | J81: 0.26 | L81: 1 | N81: 90
B82: 70m
B83: 75 | C83: 8.5 | D83: 58 | E83: 33.5 | G83: 17 | H83: hypoxie proche | J83: 0.26 | L83: 10 | N83: 435
B84: 80m
B85: 85
B86: 90m
B87: 95
B88: 100m
B89: 105
B90: 110m
B91: 115
B92: 120m | C92: 8.5 | D92: 58 | E92: 33.5 | G92: 30 | J92: 0.28
B93: 125
B94: 130m
B95: 135
B96: 140m
B97: 145
B98: 150m | C98: 8.5 | D98: 58 | E98: 33.5 | G98: 40 | H98: hypoxie proche | J98: 0.26
B99: 155
B100: 160m
B101: 165
B102: 170m
B103: 175
B104: 180m
B105: 185
B106: 190m
B107: 195
B108: 200m
B109: 205
B110: 210m
B111: 215
B112: 220m
B113: 225
B114: 230m
B115: 235
B116: 240m
B117: 245
B118: 250m
B119: 255
B120: 260m
B121: 265
B122: 270m
B123: 275 | P123: En construction
B124: 280m
B125: 285
B126: 290m
B127: 295
B128: 300m

Sheet 15
A1: JP Couloumy
B2: Degré de pollution dans une cloche de déco, si respiration de l'air de cette cloche
E5: (lire)
C6: Volume de la cloche
C7: 1000L | G7: Temps passé | AG7: volume plongeur(s) | AI7: Composition air neuf cloche
E8: poids plongeur | G8: dans la cloche | AG8: =(E9+20)*E12 -> 90
C9: Profondeur | E9: 70kg | G9: 0 | AJ9: % N2 | AK9: % CO2 | AL9: Total
C10: bas de la cloche | AJ10: =100-(C14+AK10) -> 78.97 | AK10: 0.03 | AL10: =C14+AJ10+AK10 -> 100
C11: 9m | E11: nombre plongeurs | G11: Conso O2 / mn
E12: 1 | G12: (métabolisme) | AG12: Pression Gaz cloche | AI12: L. O2 cloche | AJ12: L. N2 cloche | AK12: L. CO2 cloche | AL12: Total =
C13: % O2 dans la cloche | E13: =IF(E22<=0.025,"", IF(E22<0.03,"CO2 :-(","DANGER")) ->  | G13: 0.8 L/mn | AG13: =1+(C11/10) -> 1.9 | AI13: =AG17*C14/100 -> 363.09 | AJ13: =(AG17*(100-C14)/100)-AK13 -> 1365.39 | AK13: =0.03/100*AG17 -> 0.52 | AL13: =AI13+AJ13+AK13 -> 1729
C14: 21% | AG14: Volume cloche
C15: =IF(E22<=0.03,"",IF(E22<0.055,"début d'essoufflement",IF(E22<0.1,"essoufflement grave",IF(E22<0.12,"délires etc..., très grave",IF(E22<0.18,"perte de connaissance, convulsions",IF(E22>0.18,"MORT","")))))) ->  | AG15: à profondeur | AI15: PP O2 | AJ15: PP N2 | AK15: PP CO2 | AL15: Total=
AG16: avec plongeur | AI16: =AG13*C14/100 -> 0.40 | AJ16: =(AG13*(100-C14))/100 -> 1.50 | AK16: =AK13/AG17*100 -> 0.03 | AL16: =AI16+AJ16 -> 1.9
C17: Après | D17: =G9 -> 0 | E17: mn passées dans la cloche | AG17: =((C7-AG8)*AG13) -> 1729
C18: % O2 | D18: % N2 | E18: % CO2 | F18: % déchets | G18: Total
C19: =AI24/AM24*100 -> 21.00 % | D19: =AJ24/AM24*100 -> 78.97 % | E19: =AK24/AM24*100 -> 00.03 % | F19: =AL24/AM24*100 -> 0.00% | G19: =C19+D19+E19+F19 -> 100 %
C21: PP O2 | D21: PP N2 | E21: PP CO2 | F21: PP déchets | G21: Total | AI21: Composition air de la cloche
C22: =AG13*C19/100 -> 0.40b | D22: =AG13*D19/100 -> 1.50b | E22: =AG13*E19/100 -> 0.001b | F22: =AG13*F19/100 -> 0.000b | G22: =C22+D22+E22+F22 -> 1.9b | AI22: après | AJ22: =G9 -> 0 | AK22: mn passées à l'intérieur
C23: =IF(C22<0.19,"Manque d'oxygène, risque d'hypoxie !","") ->  | AG23: O2 consommé | AI23: L. d'O2 restant | AJ23: L. de N2 restant | AK23: L. de CO2 restant | AL23: L. déchets | AM23: Total restant
AG24: =G13*G9*E12 -> 0 | AI24: =AI13-AG24 -> 363.09 | AJ24: =AJ13 -> 1365.39 | AK24: =AG28+AK13 -> 0.52 | AL24: =AL13-(AI24+AJ24+AK24) -> 0 | AM24: =AI24+AJ24+AK24+AL24 -> 1729
AG27: Litres de CO2 rejeté | AL27: % déchets | AM27: % total
AG28: =(0.8*AG24) -> 0
AL30: PP déchets | AM30: PP totale
AH33: PPco2 > 0,03 = début d'essoufflement
AH34: PPco2 > 0,05= essoufflement grave | AL34: valeur maxi professionnelle = 0,5 %
AH35: PPco2 > 0,07= essoufflement très grave | AL35: valeur maxi à 1,5 % = 10 mn
AH36: PPco2 > 0,1= délire très grave
AH37: PPco2 > 0,12= perte de connaissance, convultions

Sheet 16
G1: Plongée YOYO
A2: JP Couloumy | G2: Entrer le trajet aller, le retour est calculé automatiquement
A4: Consommation théorique d'une | G4: 1ère | I4: 2ème | K4: 3ème | M4: 4ème | AQ4: les 3 ap
A5: combinaison, stab ou recycleur CCR | G5: descente | H5: 1ère | I5: descente | J5: 2ème | K5: descente | L5: 3ème | M5: descente | N5: 4ème | AO5: PA | AP5: Prof | AQ5: * PA
A6: (séparément ou ensemble) | H6: montée | J6: montée | L6: montée | N6: montée | P6: Exemple : | AG6: d | AH6: m | AI6: d | AJ6: m | AK6: d | AL6: m | AM6: d | AN6: m
G7: (1) | H7: (2) | I7: (3) | J7: (4) | K7: (5) | L7: (6) | M7: (7) | N7: (8)
D8: Lire | F8: 0m | G8: . | O8: 0m | AG8: =IF(G8=1,$AQ8,"") ->  | AH8: =IF(H8=2,$AQ8,"") ->  | AI8: =IF(I8=3,$AQ8,"") ->  | AJ8: =IF(J8=4,$AQ8,"") ->  | AK8: =IF(K8=5,$AQ8,"") ->  | AL8: =IF(L8=6,$AQ8,"") ->  | AM8: =IF(M8=7,$AQ8,"") ->  | AN8: =IF(N8=8,$AQ8,"") ->  | AO8: =(AP8+10)/10 -> 1 | AP8: 0 | AQ8: =($C$12+$D$12+$E$12)*AO8 -> 19
F9: 10m | Q9: Aller | AG9: =IF(G9=1,$AQ9,"") ->  | AH9: =IF(H9=2,$AQ9,"") ->  | AI9: =IF(I9=3,$AQ9,"") ->  | AJ9: =IF(J9=4,$AQ9,"") ->  | AK9: =IF(K9=5,$AQ9,"") ->  | AL9: =IF(L9=6,$AQ9,"") ->  | AM9: =IF(M9=7,$AQ9,"") ->  | AN9: =IF(N9=8,$AQ9,"") ->  | AO9: =(AP9+10)/10 -> 2 | AP9: 10 | AQ9: 38
C10: volume | D10: volume | E10: volume | F10: 20m | H10: . | T10: 20m | AO10: =(AP10+10)/10 -> 3 | AP10: 20 | AQ10: 57
C11: combi | D11: stab | E11: recycleur | F11: 30m | G11: . | H11: . | O11: =IF(C20="1 profondeur par descente !","!",IF(C20="1 profondeur par montée !","!","")) ->  | AO11: =(AP11+10)/10 -> 4 | AP11: 30 | AQ11: 76
C12: 8 | D12: 1 | E12: 10 | F12: 40m | H12: . | R12: 44m | U12: Retour | AB12: rinçage | AC12: vidage | AD12: rinçage | AO12: 5 | AP12: 40 | AQ12: 95
F13: 50m | H13: 2 | AB13: combi à : | AC13: masque | AD13: recycleur à : | AH13: 114 | AO13: 6 | AP13: 50 | AQ13: 114
F14: 60m | H14: . | Q14: 57m | AO14: 7 | AP14: 60 | AQ14: 133
C15: perte gaz | D15: vidage | E15: rinçage | F15: 70m | G15: . | S15: 88m | AB15: =IF(C17=0,0,(C17/10+1)*$C$12) -> 0 | AC15: =IF(D17=0,0,(D17/10+1)*1) -> 0 | AD15: =IF(E17=0,0,(E17/10+1)*($E$12-1.5)*2) -> 0 | AO15: 8 | AP15: 70 | AQ15: 152
C16: combi | D16: masque | E16: diluant CCR | F16: 80m | G16: 1 | I16: . | AB16: =IF(C18=0,0,(C18/10+1)*$C$12) -> 0 | AC16: =IF(D18=0,0,(D18/10+1)*1) -> 0 | AD16: =IF(E18=0,0,(E18/10+1)*($E$12-1.5)*2) -> 0 | AG16: 171 | AO16: 9 | AP16: 80 | AQ16: 171
B17: 1ère | C17: 0 | D17: 0 | E17: 0 | F17: 90m | Q17: montée | S17: montée | AB17: =IF(C19=0,0,(C19/10+1)*$C$12) -> 0 | AC17: =IF(D19=0,0,(D19/10+1)*1) -> 0 | AD17: =IF(E19=0,0,(E19/10+1)*($E$12-1.5)*2) -> 0 | AO17: 10 | AP17: 90 | AQ17: 190
B18: 2ème | C18: 0 | D18: 0 | E18: 0 | F18: 100m | I18: 3 | P18: (1) | Q18: (2) | R18: (3) | S18: (4) | T18: (5) | AA18: aller | AB18: =SUM(AG42:AN42) -> 266 | AC18: L | AD18: =1/C25*AB18 -> 88.66666667 | AE18: B | AI18: 209 | AO18: 11 | AP18: 100 | AQ18: 209
B19: 3ème | C19: 0 | D19: 0 | E19: 0 | F19: 110m | G19: . | O19: 0m | AA19: retour | AB19: =SUM(AG43:AN43) -> 57 | AC19: L | AD19: =1/C25*AB19 -> 19.0 | AE19: B | AO19: 12 | AP19: 110 | AQ19: 228
C20: =IF(G39>1,"1 profondeur par descente !",IF(H39>2,"1 profondeur par montée !",IF(I39>3,"1 profondeur par descente !",IF(J39>4,"1 profondeur par montée !",IF(K39>5,"1 profondeur par descente !",IF(L39>6,"1 profondeur par montée !",IF(M39>7,"1 profondeur par descente !",IF(N39>8,"1 profondeur par montée !","")))))))) ->  | F20: 120m | H20: . | O20: 10m | AO20: 13 | AP20: 120 | AQ20: 247
F21: 130m | O21: 20m | S21: 4 | AO21: 14 | AP21: 130 | AQ21: 266
C22: Conso totale aller / retour | F22: 140m | O22: 30m | AO22: 15 | AP22: 140 | AQ22: 285
C23: dans une bouteille de | F23: 150m | O23: 40m | Q23: 2 | AO23: 16 | AP23: 150 | AQ23: 304
F24: 160m | O24: 50m | AO24: 17 | AP24: 160 | AQ24: 323
C25: 3.0L | D25: = | E25: =IF(O11="!","",(1/C25)*(AB18+AB19+AB15+AB16+AB17+AD15+AD16+AD17+AC15+AC16+AC17)) -> 107.7 B | F25: 170m | O25: 60m | P25: 1 | AO25: 18 | AP25: 170 | AQ25: 342
F26: 180m | O26: 70m | AO26: 19 | AP26: 180 | AQ26: 361
C27: =IF(E25<0,"ERREUR !","") ->  | F27: 190m | O27: 80m | AO27: 20 | AP27: 190 | AQ27: 380
F28: 200m | O28: 90m | R28: 3 | AO28: 21 | AP28: 200 | AQ28: 399
C29: (Conso aller) = | E29: =IF(O11="!","",(1/C25)*(AB18+AB15+AB16+AB17+AD15+AD16+AD17+AC15+AC16+AC17)) -> 88.7 B | F29: 210m | AO29: 22 | AP29: 210 | AQ29: 418
F30: 220m | H30: . | O30: =IF(C20="1 profondeur par descente !","!",IF(C20="1 profondeur par montée !","!","")) ->  | AO30: 23 | AP30: 220 | AQ30: 437
F31: 230m | AO31: 24 | AP31: 230 | AQ31: 456
C32: Prévoir toujours beaucoup plus ! | F32: 240m | AO32: 25 | AP32: 240 | AQ32: 475
C33: (mauvais équilibrages, fuites, | F33: 250m | AO33: 26 | AP33: 250 | AQ33: 494
C34: vidages, rinçages…).Redondance !!! | F34: 260m | AO34: 27 | AP34: 260 | AQ34: 513
F35: 270m | AO35: 28 | AP35: 270 | AQ35: 532
F36: 280m | AO36: 29 | AP36: 280 | AQ36: 551
F37: 290m | AO37: 30 | AP37: 290 | AQ37: 570
F38: 300m | AO38: 31 | AP38: 300 | AQ38: 589
G39: =SUM(G8:G38) -> 1 | H39: 2 | I39: 3 | J39: 0 | K39: 0 | L39: 0 | M39: 0 | N39: 0
AG41: =SUM(AG8:AG38) -> 171 | AH41: 114 | AI41: 209 | AJ41: 0 | AK41: 0 | AL41: 0 | AM41: 0 | AN41: 0
AG42: =AG41 -> 171 | AH42: 0 | AI42: =IF(AI41=0,0,AI41-AH41) -> 95 | AJ42: 0 | AK42: =IF(AK41=0,0,AK41-AJ41) -> 0 | AL42: 0 | AM42: =IF(AM41=0,0,AM41-AL41) -> 0 | AN42: 0
AG43: =IF(AH41=0,0,IF(AI41=0,AG41-AH41,)) -> 0 | AH43: =IF(AI41=0,0,AG41-AH41) -> 57 | AI43: 0 | AJ43: =IF(AJ41=0,0,AI41-AJ41) -> 0 | AK43: 0 | AL43: =IF(AL41=0,0,AK41-AL41) -> 0 | AM43: 0 | AN43: =IF(AN41=0,0,AM41-AN41) -> 0

Sheet 17
C1: Contrôle des cellules d'un recycleur CCR
E2: par rinçage diluant
A3: JP Couloumy | B3: ( lire )
B4: ( lire )
C5: Pourcentage O2 du diluant | H5: 10 %
B7: O2 = | D7: =H5 -> 10% | F7: O2 = | H7: =H5 -> 10% | J7: O2 = | L7: =H5 -> 10%
B8: Profondeur rinçage | D8: PPO2 après rinçage | F8: Profondeur rinçage | H8: PPO2 après rinçage | J8: Profondeur rinçage | L8: PPO2 après rinçage
B11: 0 | C11: m | D11: =((B11+10)/10)*$H$5/100 -> 0.10 | F11: 100 | G11: m | H11: =((F11+10)/10)*$H$5/100 -> 1.10 | J11: 200 | K11: m | L11: =((J11+10)/10)*$H$5/100 -> 2.10
B12: 5 | C12: m | D12: =((B12+10)/10)*$H$5/100 -> 0.15 | F12: 105 | G12: m | H12: =((F12+10)/10)*$H$5/100 -> 1.15 | J12: 205 | K12: m | L12: =((J12+10)/10)*$H$5/100 -> 2.15
B13: 10 | C13: m | D13: 0.20 | F13: 110 | G13: m | H13: 1.20 | J13: 210 | K13: m | L13: 2.20
B14: 15 | C14: m | D14: 0.25 | F14: 115 | G14: m | H14: 1.25 | J14: 215 | K14: m | L14: 2.25
B15: 20 | C15: m | D15: 0.30 | F15: 120 | G15: m | H15: 1.30 | J15: 220 | K15: m | L15: 2.30
B16: 25 | C16: m | D16: 0.35 | F16: 125 | G16: m | H16: 1.35 | J16: 225 | K16: m | L16: 2.35
B17: 30 | C17: m | D17: 0.40 | F17: 130 | G17: m | H17: 1.40 | J17: 230 | K17: m | L17: 2.40
B18: 35 | C18: m | D18: 0.45 | F18: 135 | G18: m | H18: 1.45 | J18: 235 | K18: m | L18: 2.45
B19: 40 | C19: m | D19: 0.50 | F19: 140 | G19: m | H19: 1.50 | J19: 240 | K19: m | L19: 2.50
B20: 45 | C20: m | D20: 0.55 | F20: 145 | G20: m | H20: 1.55 | J20: 245 | K20: m | L20: 2.55
B21: 50 | C21: m | D21: =((B21+10)/10)*$H$5/100 -> 0.60 | F21: 150 | G21: m | H21: 1.60 | J21: 250 | K21: m | L21: 2.60
B22: 55 | C22: m | D22: =((B22+10)/10)*$H$5/100 -> 0.65 | F22: 155 | G22: m | H22: 1.65 | J22: 255 | K22: m | L22: 2.65
B23: 60 | C23: m | D23: 0.70 | F23: 160 | G23: m | H23: 1.70 | J23: 260 | K23: m | L23: 2.70
B24: 65 | C24: m | D24: 0.75 | F24: 165 | G24: m | H24: 1.75 | J24: 265 | K24: m | L24: 2.75
B25: 70 | C25: m | D25: 0.80 | F25: 170 | G25: m | H25: 1.80 | J25: 270 | K25: m | L25: 2.80
B26: 75 | C26: m | D26: 0.85 | F26: 175 | G26: m | H26: =((F26+10)/10)*$H$5/100 -> 1.85 | J26: 275 | K26: m | L26: 2.85
B27: 80 | C27: m | D27: 0.90 | F27: 180 | G27: m | H27: =((F27+10)/10)*$H$5/100 -> 1.90 | J27: 280 | K27: m | L27: 2.90
B28: 85 | C28: m | D28: 0.95 | F28: 185 | G28: m | H28: =((F28+10)/10)*$H$5/100 -> 1.95 | J28: 285 | K28: m | L28: 2.95
B29: 90 | C29: m | D29: 1.00 | F29: 190 | G29: m | H29: =((F29+10)/10)*$H$5/100 -> 2.00 | J29: 290 | K29: m | L29: 3.00
B30: 95 | C30: m | D30: 1.05 | F30: 195 | G30: m | H30: =((F30+10)/10)*$H$5/100 -> 2.05 | J30: 295 | K30: m | L30: 3.05
J31: 300 | K31: m | L31: 3.10

Sheet 18
D2: REMPLISSAGE DEPUIS BOUTEILLE TAMPON
A4: JP Couloumy | D4: 1ère bouteille | H4: 2ème bouteille | L4: 3ème bouteille | P4: 4ème bouteille | T4: 5ème bouteille | X4: 6ème bouteille | AB4: 7ème bouteille | AF4: 8ème bouteille | AJ4: 9ème bouteille
B6: Bouteille | D6: vers
B7: Tampon | F7: Tampon | H7: vers | J7: Tampon | L7: vers | N7: Tampon | P7: vers | R7: Tampon | T7: vers | V7: Tampon | X7: vers | Z7: Tampon | AB7: vers | AD7: Tampon | AF7: vers | AH7: Tampon | AJ7: vers
B8: 18 L | D8: 3 L | F8: =$B$8 -> 18L | H8: 3 L | J8: =$B$8 -> 18L | L8: 3 L | N8: =$B$8 -> 18L | P8: 3 L | R8: =$B$8 -> 18L | T8: 3 L | V8: =$B$8 -> 18L | X8: 3 L | Z8: =$B$8 -> 18L | AB8: 0 L | AD8: =$B$8 -> 18L | AF8: 0 L | AH8: =$B$8 -> 18L | AJ8: 0 L
B9: 180 B | D9: 50 B | F9: =B16 -> 163 B | H9: 80 B | J9: =F16 -> 151 B | L9: 50 B | N9: =J16 -> 136 B | P9: 50 B | R9: =N16 -> 124 B | T9: 50 B | V9: =R16 -> 114 B | X9: 30 B | Z9: =V16 -> 102 B | AB9: 0 B | AD9: =Z16 -> 102 B | AF9: 0 B | AH9: =AD16 -> 102 B | AJ9: 0 B
D14: Pression | H14: Pression | L14: Pression | P14: Pression | T14: Pression | X14: Pression | AB14: Pression | AF14: Pression | AJ14: Pression
B15: Restera | D15: désirée | F15: Restera | H15: désirée | J15: Restera | L15: désirée | N15: Restera | P15: désirée | R15: Restera | T15: désirée | V15: Restera | X15: désirée | Z15: Restera | AB15: désirée | AD15: Restera | AF15: désirée | AH15: Restera | AJ15: désirée
B16: =ROUNDDOWN(((B9*B8)-(D18-D9)*D8)/B8,0) -> 163 B | D16: =IF(D18>B16,"Erreur !",IF(D9>D18,"Erreur !","")) ->  | F16: =ROUNDDOWN(((F9*F8)-(H18-H9)*H8)/$B$8,0) -> 151 B | H16: =IF(H18>F16,"Erreur !",IF(H9>H18,"Erreur !","")) ->  | J16: =ROUNDDOWN(((J9*J8)-(L18-L9)*L8)/$B$8,0) -> 136 B | L16: =IF(L18>J16,"Erreur !",IF(L9>L18,"Erreur !","")) ->  | N16: =ROUNDDOWN(((N9*N8)-(P18-P9)*P8)/$B$8,0) -> 124 B | P16: =IF(P18>N16,"Erreur !",IF(P9>P18,"Erreur !","")) ->  | R16: =ROUNDDOWN(((R9*R8)-(T18-T9)*T8)/$B$8,0) -> 114 B | T16: =IF(T18>R16,"Erreur !",IF(T9>T18,"Erreur !","")) ->  | V16: =ROUNDDOWN(((V9*V8)-(X18-X9)*X8)/$B$8,0) -> 102 B | X16: =IF(X18>V16,"Erreur !",IF(X9>X18,"Erreur !","")) ->  | Z16: =ROUNDDOWN(((Z9*Z8)-(AB18-AB9)*AB8)/$B$8,0) -> 102 B | AB16: =IF(AB18>Z16,"Erreur !",IF(AB9>AB18,"Erreur !","")) ->  | AD16: =ROUNDDOWN(((AD9*AD8)-(AF18-AF9)*AF8)/$B$8,0) -> 102 B | AF16: =IF(AF18>AD16,"Erreur !",IF(AF9>AF18,"Erreur !","")) ->  | AH16: =ROUNDDOWN(((AH9*AH8)-(AJ18-AJ9)*AJ8)/$B$8,0) -> 102 B | AJ16: =IF(AJ18>AH16,"Erreur !",IF(AJ9>AJ18,"Erreur !","")) -> 
D18: 150 B | H18: 150 B | L18: 135 B | P18: 120 B | T18: 110 B | X18: 100 B | AB18: 0 B | AF18: 0 B | AJ18: 0 B
D20: =IF(D18>B16,"?","") ->  | H20: =IF(H18>F16,"?","") ->  | L20: =IF(L18>J16,"?","") ->  | P20: =IF(P18>N16,"?","") ->  | T20: =IF(T18>R16,"?","") ->  | X20: =IF(X18>V16,"?","") ->  | AB20: =IF(AB18>Z16,"?","") ->  | AF20: =IF(AF18>AD16,"?","") ->  | AJ20: =IF(AJ18>AH16,"?","") -> 

Sheet 19
F2: PANNE DE SCOOTER !
F4: RETOUR A LA PALME
F6: (consommations)
D8: =C22 -> 0 m | F8: =F22 -> 0 m
C9: Entrée | I9: =I22 -> 0 m | M9: =O22 -> 0 m | O9: =R22 -> 0 m
D10: 1er tronçon | F10: 2ème tronçon | K10: =L22 -> 0 m | Q10: fond
I11: 3ème tronçon | M11: 5ème tronçon | O11: 6ème tronçon
B12: (lire) | K12: 4ème tronçon
C15: Aller en SCOOTER | I15: Retour à la PALME
C16: Conso surface | E16: Vitesse | I16: Conso surface | K16: Vitesse
C17: 17 Lmn | E17: 30 m/mn | I17: 25 Lmn | K17: 18 m/mn
B20: 1er tronçon | E20: 2ème tronçon | H20: 3ème tronçon | K20: 4ème tronçon | N20: 5ème tronçon | Q20: 6ème tronçon
B21: profondeur | C21: distance | E21: profondeur | F21: distance | H21: profondeur | I21: distance | K21: profondeur | L21: distance | N21: profondeur | O21: distance | Q21: profondeur | R21: distance
B22: 0 m | C22: 0 m | E22: 0 m | F22: 0 m | H22: 0 m | I22: 0 m | K22: 0 m | L22: 0 m | N22: 0 m | O22: 0 m | Q22: 0 m | R22: 0 m
B24: SCOOTER | E24: SCOOTER | H24: SCOOTER | K24: SCOOTER | N24: SCOOTER | Q24: SCOOTER
B25: temps | C25: conso | E25: temps | F25: conso | H25: temps | I25: conso | K25: temps | L25: conso | N25: temps | O25: conso | Q25: temps | R25: conso
B26: =IF(C22=0,0,1/$E$17*C22) -> 0 mn | C26: =$C$17*(B22+10)/10*B26 -> 0 L | E26: =IF(F22=0,0,1/$E$17*F22) -> 0 mn | F26: =$C$17*(E22+10)/10*E26 -> 0 L | H26: =IF(I22=0,0,1/$E$17*I22) -> 0 mn | I26: =$C$17*(H22+10)/10*H26 -> 0 L | K26: =IF(L22=0,0,1/$E$17*L22) -> 0 mn | L26: =$C$17*(K22+10)/10*K26 -> 0 L | N26: =IF(O22=0,0,1/$E$17*O22) -> 0 mn | O26: =$C$17*(N22+10)/10*N26 -> 0 L | Q26: =IF(R22=0,0,1/$E$17*R22) -> 0 mn | R26: =$C$17*(Q22+10)/10*Q26 -> 0 L
B28: PALME | E28: PALME | H28: PALME | K28: PALME | N28: PALME | Q28: PALME
B29: temps | C29: conso | E29: temps | F29: conso | H29: temps | I29: conso | K29: temps | L29: conso | N29: temps | O29: conso | Q29: temps | R29: conso
B30: =IF(C22=0,0,1/$K$17*C22) -> 0 mn | C30: =$I$17*(B22+10)/10*B30 -> 0 L | E30: =IF(F22=0,0,1/$K$17*F22) -> 0 mn | F30: =$I$17*(E22+10)/10*E30 -> 0 L | H30: =IF(I22=0,0,1/$K$17*I22) -> 0 mn | I30: =$I$17*(H22+10)/10*H30 -> 0 L | K30: =IF(L22=0,0,1/$K$17*L22) -> 0 mn | L30: =$I$17*(K22+10)/10*K30 -> 0 L | N30: =IF(O22=0,0,1/$K$17*O22) -> 0 mn | O30: =$I$17*(N22+10)/10*N30 -> 0 L | Q30: =IF(R22=0,0,1/$K$17*R22) -> 0 mn | R30: =$I$17*(Q22+10)/10*Q30 -> 0 L
B32: Distance totale aller (ou retour) = | F32: =C22+F22+I22+L22+O22+R22 -> 0 m
H33: Prévoir 1/4, voire 1/3 de gaz en plus | N33: mémoire scooter (1 à 6) | P33: (lire) | Q33: mémoire palme (1 à 6)
B34: Scooter | C34: =B26+E26+H26+K26+N26+Q26 -> 0 mn | E34: Palme | F34: =B30+E30+H30+K30+N30+Q30 -> 0 mn | H34: pour retard, surconsommation… | N34: Temps | O34: Conso | Q34: Temps | R34: Conso
C35: =C26+F26+I26+L26+O26+R26 -> 0 L | F35: =C30+F30+I30+L30+O30+R30 -> 0 L | H35: =F35+(F35/4) -> 0 L | J35: =F35+(F35/3) -> 0 L | N35: 0 | O35: 0 | Q35: 0 | R35: 0
I36: (+1/4) | J36: (+1/3) | N36: mémoire scooter (7 à 12) | Q36: mémoire palme (7 à 12)
B37: Différence scooter / palme : | E37: =F34-C34 -> 0 mn | F37: =F35-C35 -> 0 L | H37: Prévoir aussi panne détendeur ! | N37: Temps | O37: Conso | Q37: Temps | R37: Conso
N38: 0 | O38: 0 | Q38: 0 | R38: 0
N39: Total | Q39: Total
N40: =N35+N38 -> 0 mn | O40: =O35+O38 -> 0 L | Q40: =Q35+Q38 -> 0 mn | R40: =R35+R38 -> 0 L
